Workbook

Sheet SVD model 43 parameter
A1: Singulärwertzerlegung zur Ermittlung des Betriebsleermassenanteils von Flugzeugen
A2: Credit to Petter Krus, Linköping University Sweden
B4: Rel error | C4: DC10-10 | D4: Estimate | E4: Adjusted | F4: Result | G4: Average | AZ4: SVD variables | BA4: w-diagonal | BB4: residual
A5: Max. wing load (kg/m2) | B5: =ABS((C5-D5)/C5) -> 0.0006% | C5: 519.05 | D5: =POWER(10,E5) -> 519.05 | E5: =F5+G5 -> 2.72 | F5: =MMULT(H5:AY48,AZ5:AZ48) -> -0.06 | G5: 2.77 | H5: -0.003 | I5: 0.054 | J5: -0.002 | K5: 0.023 | L5: -0.022 | M5: 0.024 | N5: -0.007 | O5: 0.017 | P5: -0.007 | Q5: 0.016 | R5: -0.018 | S5: 0.008 | T5: -0.007 | U5: 0.012 | V5: -0.011 | W5: 0.004 | X5: -0.001 | Y5: 0.000 | Z5: -0.004 | AA5: 0.002 | AB5: -0.002 | AC5: 0.001 | AD5: -0.001 | AE5: 0.001 | AF5: -0.003 | AG5: 0.001 | AH5: -0.000 | AI5: 0.001 | AJ5: -0.000 | AK5: 0.001 | AL5: -0.000 | AM5: 0.000 | AN5: -0.000 | AO5: 0.000 | AP5: 0.000 | AQ5: 0.000 | AR5: 0.000 | AS5: 0.000 | AT5: 0.000 | AU5: 0.000 | AV5: 0.000 | AW5: 0.000 | AX5: 0.000 | AY5: 0.000 | AZ5: -0.27 | BA5: 30.98 | BB5: 0.83
A6: Thrust/Weight Ratio | B6: 0.0002% | C6: 0.29 | D6: 0.29 | E6: -0.54 | F6: -0.00 | G6: -0.54 | H6: -0.003 | I6: -0.025 | J6: -0.027 | K6: -0.010 | L6: 0.010 | M6: 0.007 | N6: -0.019 | O6: -0.019 | P6: 0.001 | Q6: 0.000 | R6: 0.007 | S6: 0.010 | T6: 0.001 | U6: 0.007 | V6: -0.005 | W6: 0.010 | X6: 0.003 | Y6: 0.007 | Z6: 0.006 | AA6: -0.004 | AB6: -0.006 | AC6: -0.001 | AD6: -0.002 | AE6: 0.001 | AF6: 0.004 | AG6: -0.001 | AH6: 0.001 | AI6: -0.000 | AJ6: 0.000 | AK6: -0.000 | AL6: -0.000 | AM6: 0.000 | AN6: -0.000 | AO6: -0.000 | AP6: -0.000 | AQ6: -0.000 | AR6: -0.000 | AS6: 0.000 | AT6: 0.000 | AU6: 0.000 | AV6: 0.000 | AW6: -0.000 | AX6: -0.000 | AY6: 0.000 | AZ6: 0.86 | BA6: 9.12 | BB6: 0.50
A7: Max. payload | B7: 0.0021% | C7: 48330.00 | D7: 48328.99 | E7: 4.68 | F7: 0.28 | G7: 4.40 | H7: -0.013 | I7: 0.294 | J7: -0.001 | K7: 0.004 | L7: -0.028 | M7: 0.024 | N7: 0.016 | O7: -0.017 | P7: 0.008 | Q7: -0.013 | R7: -0.015 | S7: 0.014 | T7: 0.023 | U7: 0.009 | V7: -0.003 | W7: -0.007 | X7: -0.002 | Y7: 0.000 | Z7: -0.001 | AA7: -0.002 | AB7: 0.003 | AC7: 0.002 | AD7: -0.000 | AE7: 0.000 | AF7: -0.000 | AG7: -0.001 | AH7: -0.000 | AI7: 0.001 | AJ7: -0.000 | AK7: 0.001 | AL7: 0.000 | AM7: 0.000 | AN7: 0.000 | AO7: -0.000 | AP7: -0.000 | AQ7: 0.000 | AR7: 0.000 | AS7: -0.000 | AT7: -0.000 | AU7: 0.000 | AV7: 0.000 | AW7: 0.000 | AX7: 0.000 | AY7: -0.000 | AZ7: -0.25 | BA7: 2.00 | BB7: 0.36
A8: Max. take-off | B8: 0.0006% | C8: 190854.00 | D8: 190855.14 | E8: 5.28 | F8: 0.22 | G8: 5.06 | H8: -0.008 | I8: 0.347 | J8: 0.031 | K8: 0.004 | L8: -0.006 | M8: 0.001 | N8: -0.008 | O8: 0.011 | P8: -0.007 | Q8: 0.009 | R8: -0.010 | S8: -0.003 | T8: -0.001 | U8: 0.007 | V8: -0.008 | W8: 0.001 | X8: -0.004 | Y8: 0.000 | Z8: 0.000 | AA8: -0.002 | AB8: 0.002 | AC8: 0.000 | AD8: -0.001 | AE8: 0.000 | AF8: -0.001 | AG8: -0.000 | AH8: -0.000 | AI8: 0.001 | AJ8: -0.000 | AK8: 0.001 | AL8: 0.000 | AM8: 0.000 | AN8: 0.000 | AO8: 0.000 | AP8: -0.000 | AQ8: -0.000 | AR8: -0.000 | AS8: 0.000 | AT8: -0.000 | AU8: -0.000 | AV8: 0.000 | AW8: -0.000 | AX8: 0.000 | AY8: -0.000 | AZ8: 0.45 | BA8: 1.54 | BB8: 0.38
A9: Max. landing | B9: 0.0002% | C9: 164854.00 | D9: 164853.60 | E9: 5.22 | F9: 0.25 | G9: 4.97 | H9: -0.005 | I9: 0.310 | J9: 0.013 | K9: 0.005 | L9: -0.006 | M9: 0.005 | N9: -0.004 | O9: 0.002 | P9: -0.007 | Q9: 0.001 | R9: -0.001 | S9: -0.001 | T9: 0.000 | U9: 0.001 | V9: 0.001 | W9: -0.001 | X9: 0.000 | Y9: 0.004 | Z9: 0.001 | AA9: 0.001 | AB9: -0.001 | AC9: -0.002 | AD9: -0.003 | AE9: -0.003 | AF9: 0.001 | AG9: 0.007 | AH9: -0.002 | AI9: 0.000 | AJ9: -0.002 | AK9: 0.000 | AL9: 0.000 | AM9: 0.000 | AN9: -0.000 | AO9: -0.000 | AP9: 0.000 | AQ9: 0.000 | AR9: 0.000 | AS9: 0.000 | AT9: -0.000 | AU9: -0.000 | AV9: -0.000 | AW9: -0.000 | AX9: -0.000 | AY9: 0.000 | AZ9: 0.95 | BA9: 1.21 | BB9: 0.38
A10: Static thrust (kN) | B10: 0.0056% | C10: 178.00 | D10: 178.01 | E10: 2.25 | F10: 0.14 | G10: 2.11 | H10: -0.015 | I10: 0.267 | J10: -0.105 | K10: -0.058 | L10: -0.002 | M10: 0.011 | N10: -0.034 | O10: -0.006 | P10: -0.012 | Q10: 0.010 | R10: 0.002 | S10: -0.002 | T10: 0.004 | U10: 0.005 | V10: -0.008 | W10: 0.004 | X10: -0.001 | Y10: -0.006 | Z10: 0.002 | AA10: -0.001 | AB10: -0.001 | AC10: -0.001 | AD10: -0.005 | AE10: -0.001 | AF10: 0.000 | AG10: -0.001 | AH10: -0.001 | AI10: 0.000 | AJ10: -0.000 | AK10: 0.000 | AL10: -0.000 | AM10: -0.001 | AN10: -0.000 | AO10: 0.000 | AP10: 0.000 | AQ10: -0.000 | AR10: 0.000 | AS10: -0.000 | AT10: -0.000 | AU10: 0.000 | AV10: -0.000 | AW10: 0.000 | AX10: -0.000 | AY10: 0.000 | AZ10: -0.73 | BA10: 1.18 | BB10: 0.38
A11: Max. seats (single class) | B11: 0.0006% | C11: 380.00 | D11: 380.00 | E11: 2.58 | F11: 0.23 | G11: 2.35 | H11: -0.004 | I11: 0.270 | J11: 0.000 | K11: 0.020 | L11: -0.028 | M11: 0.027 | N11: -0.001 | O11: 0.011 | P11: -0.002 | Q11: 0.002 | R11: 0.002 | S11: 0.007 | T11: -0.011 | U11: -0.012 | V11: 0.010 | W11: -0.010 | X11: 0.001 | Y11: -0.007 | Z11: 0.012 | AA11: 0.015 | AB11: -0.005 | AC11: -0.001 | AD11: 0.000 | AE11: 0.004 | AF11: 0.006 | AG11: -0.002 | AH11: 0.002 | AI11: 0.002 | AJ11: 0.000 | AK11: -0.000 | AL11: -0.000 | AM11: -0.000 | AN11: -0.000 | AO11: -0.000 | AP11: 0.000 | AQ11: -0.000 | AR11: -0.000 | AS11: -0.000 | AT11: 0.000 | AU11: -0.000 | AV11: 0.000 | AW11: -0.000 | AX11: -0.000 | AY11: -0.000 | AZ11: 2.00 | BA11: 0.98 | BB11: 0.29
A12: Hold volume (m³) | B12: 0.0001% | C12: 132.20 | D12: 132.20 | E12: 2.12 | F12: 0.82 | G12: 1.30 | H12: -2.740 | I12: 0.095 | J12: -0.003 | K12: 0.010 | L12: -0.010 | M12: 0.016 | N12: -0.003 | O12: 0.010 | P12: -0.004 | Q12: 0.002 | R12: -0.004 | S12: 0.006 | T12: -0.006 | U12: -0.001 | V12: 0.016 | W12: 0.005 | X12: 0.016 | Y12: -0.005 | Z12: -0.001 | AA12: -0.009 | AB12: 0.003 | AC12: -0.001 | AD12: 0.001 | AE12: -0.000 | AF12: 0.001 | AG12: -0.000 | AH12: -0.001 | AI12: -0.000 | AJ12: 0.000 | AK12: 0.000 | AL12: -0.000 | AM12: -0.000 | AN12: -0.000 | AO12: 0.000 | AP12: 0.000 | AQ12: -0.000 | AR12: 0.000 | AS12: 0.000 | AT12: -0.000 | AU12: -0.000 | AV12: -0.000 | AW12: 0.000 | AX12: 0.000 | AY12: 0.000 | AZ12: -2.00 | BA12: 0.84 | BB12: 0.27
A13: Volume per passenger | B13: 0.0026% | C13: 0.35 | D13: 0.35 | E13: -0.46 | F13: 0.52 | G13: -0.98 | H13: -2.337 | I13: -0.121 | J13: 0.004 | K13: -0.011 | L13: 0.014 | M13: -0.017 | N13: 0.004 | O13: -0.012 | P13: 0.003 | Q13: -0.003 | R13: 0.005 | S13: -0.008 | T13: 0.007 | U13: 0.001 | V13: -0.019 | W13: -0.006 | X13: -0.018 | Y13: 0.005 | Z13: 0.001 | AA13: 0.011 | AB13: -0.003 | AC13: 0.001 | AD13: -0.001 | AE13: 0.000 | AF13: -0.001 | AG13: 0.000 | AH13: 0.001 | AI13: 0.000 | AJ13: -0.000 | AK13: -0.000 | AL13: 0.000 | AM13: 0.000 | AN13: 0.000 | AO13: -0.000 | AP13: -0.000 | AQ13: 0.000 | AR13: -0.000 | AS13: -0.000 | AT13: 0.000 | AU13: 0.000 | AV13: 0.000 | AW13: -0.000 | AX13: -0.000 | AY13: -0.000 | AZ13: -0.68 | BA13: 0.79 | BB13: 0.21
A14: Zero-fuel | B14: 0.0002% | C14: 151956.00 | D14: 151955.75 | E14: 5.18 | F14: 0.25 | G14: 4.94 | H14: -0.004 | I14: 0.311 | J14: 0.012 | K14: 0.005 | L14: -0.009 | M14: 0.005 | N14: -0.007 | O14: 0.001 | P14: -0.008 | Q14: -0.003 | R14: -0.003 | S14: 0.001 | T14: 0.003 | U14: -0.000 | V14: -0.001 | W14: -0.002 | X14: -0.000 | Y14: 0.006 | Z14: -0.001 | AA14: 0.001 | AB14: -0.003 | AC14: 0.002 | AD14: -0.001 | AE14: -0.003 | AF14: -0.004 | AG14: 0.000 | AH14: 0.000 | AI14: -0.000 | AJ14: 0.003 | AK14: -0.004 | AL14: -0.000 | AM14: 0.000 | AN14: -0.000 | AO14: 0.000 | AP14: -0.000 | AQ14: 0.000 | AR14: 0.000 | AS14: 0.000 | AT14: -0.000 | AU14: -0.000 | AV14: 0.000 | AW14: 0.000 | AX14: 0.000 | AY14: -0.000 | AZ14: -0.24 | BA14: 0.72 | BB14: 0.21
A15: Operational empty | B15: 0.0027% | C15: 111344.00 | D15: 111341.05 | E15: 5.05 | F15: 0.27 | G15: 4.78 | H15: -0.000 | I15: 0.321 | J15: 0.018 | K15: 0.004 | L15: -0.000 | M15: 0.001 | N15: -0.013 | O15: -0.000 | P15: -0.010 | Q15: -0.000 | R15: 0.002 | S15: -0.002 | T15: -0.002 | U15: -0.000 | V15: 0.001 | W15: 0.002 | X15: 0.002 | Y15: 0.008 | Z15: -0.000 | AA15: 0.000 | AB15: -0.004 | AC15: 0.002 | AD15: 0.001 | AE15: -0.000 | AF15: -0.006 | AG15: -0.001 | AH15: -0.001 | AI15: 0.002 | AJ15: -0.000 | AK15: 0.001 | AL15: 0.000 | AM15: 0.000 | AN15: 0.000 | AO15: 0.000 | AP15: 0.000 | AQ15: -0.000 | AR15: 0.000 | AS15: -0.000 | AT15: 0.000 | AU15: 0.000 | AV15: -0.000 | AW15: 0.000 | AX15: -0.000 | AY15: 0.000 | AZ15: 0.52 | BA15: 0.61 | BB15: 0.18
A16: Ops empty/Max. T/O | B16: 0.0032% | C16: 0.58 | D16: 0.58 | E16: -0.23 | F16: 0.04 | G16: -0.28 | H16: 0.008 | I16: -0.027 | J16: -0.013 | K16: -0.000 | L16: 0.005 | M16: -0.001 | N16: -0.005 | O16: -0.011 | P16: -0.004 | Q16: -0.010 | R16: 0.012 | S16: 0.001 | T16: -0.001 | U16: -0.007 | V16: 0.009 | W16: 0.000 | X16: 0.005 | Y16: 0.008 | Z16: -0.001 | AA16: 0.002 | AB16: -0.006 | AC16: 0.001 | AD16: 0.002 | AE16: -0.000 | AF16: -0.005 | AG16: -0.001 | AH16: -0.000 | AI16: 0.002 | AJ16: 0.000 | AK16: 0.001 | AL16: 0.000 | AM16: -0.000 | AN16: -0.000 | AO16: -0.000 | AP16: -0.000 | AQ16: 0.000 | AR16: 0.000 | AS16: 0.000 | AT16: -0.000 | AU16: -0.000 | AV16: 0.000 | AW16: 0.000 | AX16: -0.000 | AY16: -0.000 | AZ16: 1.54 | BA16: 0.55 | BB16: 0.18
A17: Max. payload/Max. T/O | B17: 0.0027% | C17: 0.25 | D17: 0.25 | E17: -0.60 | F17: 0.06 | G17: -0.66 | H17: -0.006 | I17: -0.054 | J17: -0.033 | K17: 0.000 | L17: -0.022 | M17: 0.022 | N17: 0.024 | O17: -0.028 | P17: 0.014 | Q17: -0.022 | R17: -0.005 | S17: 0.016 | T17: 0.024 | U17: 0.002 | V17: 0.005 | W17: -0.008 | X17: 0.001 | Y17: -0.000 | Z17: -0.001 | AA17: -0.000 | AB17: 0.001 | AC17: 0.002 | AD17: 0.000 | AE17: 0.000 | AF17: 0.000 | AG17: -0.001 | AH17: -0.000 | AI17: 0.000 | AJ17: 0.000 | AK17: 0.000 | AL17: -0.000 | AM17: -0.000 | AN17: -0.000 | AO17: 0.000 | AP17: 0.000 | AQ17: -0.000 | AR17: -0.000 | AS17: 0.000 | AT17: 0.000 | AU17: -0.000 | AV17: -0.000 | AW17: -0.000 | AX17: -0.000 | AY17: 0.000 | AZ17: 0.02 | BA17: 0.53 | BB17: 0.18
A18: Max. landing/Max. T/O | B18: 0.0008% | C18: 0.86 | D18: 0.86 | E18: -0.06 | F18: 0.02 | G18: -0.09 | H18: 0.003 | I18: -0.037 | J18: -0.019 | K18: 0.001 | L18: -0.001 | M18: 0.003 | N18: 0.004 | O18: -0.010 | P18: -0.000 | Q18: -0.008 | R18: 0.009 | S18: 0.001 | T18: 0.001 | U18: -0.006 | V18: 0.009 | W18: -0.002 | X18: 0.004 | Y18: 0.004 | Z18: 0.001 | AA18: 0.003 | AB18: -0.003 | AC18: -0.002 | AD18: -0.003 | AE18: -0.003 | AF18: 0.002 | AG18: 0.007 | AH18: -0.001 | AI18: -0.000 | AJ18: -0.001 | AK18: -0.000 | AL18: -0.000 | AM18: -0.000 | AN18: 0.000 | AO18: 0.000 | AP18: -0.000 | AQ18: -0.000 | AR18: -0.000 | AS18: -0.000 | AT18: 0.000 | AU18: 0.000 | AV18: 0.000 | AW18: 0.000 | AX18: 0.000 | AY18: -0.000 | AZ18: -0.67 | BA18: 0.47 | BB18: 0.16
A19: Length (m) | B19: 0.0001% | C19: 51.97 | D19: 51.97 | E19: 1.72 | F19: 0.07 | G19: 1.65 | H19: -0.016 | I19: 0.130 | J19: 0.008 | K19: -0.019 | L19: -0.017 | M19: 0.010 | N19: -0.002 | O19: 0.005 | P19: 0.013 | Q19: 0.008 | R19: 0.004 | S19: -0.001 | T19: -0.001 | U19: 0.002 | V19: 0.003 | W19: -0.002 | X19: 0.003 | Y19: 0.005 | Z19: 0.003 | AA19: 0.005 | AB19: -0.005 | AC19: 0.002 | AD19: 0.003 | AE19: 0.002 | AF19: -0.003 | AG19: -0.002 | AH19: -0.002 | AI19: -0.007 | AJ19: -0.002 | AK19: -0.000 | AL19: -0.000 | AM19: 0.000 | AN19: 0.000 | AO19: -0.000 | AP19: -0.000 | AQ19: 0.000 | AR19: -0.000 | AS19: 0.000 | AT19: -0.000 | AU19: 0.000 | AV19: -0.000 | AW19: 0.000 | AX19: 0.000 | AY19: -0.000 | AZ19: 1.79 | BA19: 0.46 | BB19: 0.12
A20: Height (m) | B20: 0.0002% | C20: 6.02 | D20: 6.02 | E20: 0.78 | F20: 0.12 | G20: 0.66 | H20: 0.008 | I20: 0.119 | J20: 0.002 | K20: 0.020 | L20: 0.013 | M20: 0.015 | N20: 0.000 | O20: -0.002 | P20: -0.010 | Q20: -0.013 | R20: 0.006 | S20: 0.004 | T20: 0.002 | U20: -0.004 | V20: 0.012 | W20: 0.016 | X20: -0.014 | Y20: 0.000 | Z20: -0.006 | AA20: 0.004 | AB20: 0.003 | AC20: -0.005 | AD20: -0.003 | AE20: 0.007 | AF20: 0.000 | AG20: 0.001 | AH20: -0.003 | AI20: -0.002 | AJ20: 0.003 | AK20: 0.001 | AL20: 0.000 | AM20: -0.000 | AN20: 0.000 | AO20: 0.000 | AP20: 0.000 | AQ20: -0.000 | AR20: -0.000 | AS20: 0.000 | AT20: -0.000 | AU20: 0.000 | AV20: 0.000 | AW20: -0.000 | AX20: -0.000 | AY20: 0.000 | AZ20: -0.19 | BA20: 0.41 | BB20: 0.11
A21: Width (m) | B21: 0.0011% | C21: 6.02 | D21: 6.02 | E21: 0.78 | F21: 0.13 | G21: 0.65 | H21: 0.003 | I21: 0.106 | J21: -0.004 | K21: 0.015 | L21: 0.007 | M21: 0.010 | N21: -0.001 | O21: -0.007 | P21: -0.016 | Q21: -0.012 | R21: 0.001 | S21: -0.000 | T21: 0.000 | U21: -0.006 | V21: 0.006 | W21: 0.010 | X21: -0.007 | Y21: 0.000 | Z21: -0.008 | AA21: -0.003 | AB21: 0.004 | AC21: -0.003 | AD21: -0.001 | AE21: 0.006 | AF21: -0.003 | AG21: -0.001 | AH21: 0.006 | AI21: 0.000 | AJ21: -0.004 | AK21: -0.001 | AL21: -0.000 | AM21: 0.000 | AN21: -0.000 | AO21: -0.000 | AP21: -0.000 | AQ21: 0.000 | AR21: 0.000 | AS21: 0.000 | AT21: 0.000 | AU21: 0.000 | AV21: -0.000 | AW21: 0.000 | AX21: 0.000 | AY21: -0.000 | AZ21: 0.99 | BA21: 0.37 | BB21: 0.12
A22: Finess Ratio | B22: 0.0001% | C22: 8.63 | D22: 8.63 | E22: 0.94 | F22: -0.05 | G22: 0.98 | H22: -0.018 | I22: 0.033 | J22: 0.012 | K22: -0.037 | L22: -0.041 | M22: -0.005 | N22: -0.005 | O22: 0.004 | P22: 0.036 | Q22: 0.021 | R22: 0.029 | S22: 0.005 | T22: -0.010 | U22: 0.017 | V22: 0.013 | W22: -0.012 | X22: -0.008 | Y22: 0.006 | Z22: -0.007 | AA22: -0.004 | AB22: 0.002 | AC22: -0.005 | AD22: -0.003 | AE22: 0.001 | AF22: -0.001 | AG22: 0.001 | AH22: 0.002 | AI22: 0.001 | AJ22: 0.001 | AK22: 0.000 | AL22: 0.000 | AM22: -0.000 | AN22: -0.000 | AO22: 0.000 | AP22: 0.000 | AQ22: -0.000 | AR22: 0.000 | AS22: -0.000 | AT22: 0.000 | AU22: -0.000 | AV22: 0.000 | AW22: 0.000 | AX22: -0.000 | AY22: 0.000 | AZ22: 0.45 | BA22: 0.34 | BB22: 0.10
A23: Area (m²) | B23: 0.0000% | C23: 367.70 | D23: 367.70 | E23: 2.57 | F23: 0.28 | G23: 2.28 | H23: -0.004 | I23: 0.294 | J23: 0.034 | K23: -0.019 | L23: 0.016 | M23: -0.023 | N23: -0.000 | O23: -0.005 | P23: 0.000 | Q23: -0.007 | R23: 0.008 | S23: -0.011 | T23: 0.006 | U23: -0.005 | V23: 0.004 | W23: -0.002 | X23: -0.003 | Y23: 0.000 | Z23: 0.005 | AA23: -0.004 | AB23: 0.003 | AC23: -0.001 | AD23: 0.001 | AE23: -0.001 | AF23: 0.002 | AG23: -0.001 | AH23: -0.000 | AI23: -0.000 | AJ23: -0.000 | AK23: 0.000 | AL23: 0.001 | AM23: 0.000 | AN23: -0.000 | AO23: 0.000 | AP23: 0.000 | AQ23: 0.000 | AR23: -0.000 | AS23: 0.000 | AT23: 0.000 | AU23: 0.000 | AV23: -0.000 | AW23: -0.000 | AX23: -0.000 | AY23: -0.000 | AZ23: 1.11 | BA23: 0.30 | BB23: 0.06
A24: Span (m) | B24: 0.0050% | C24: 50.40 | D24: 50.40 | E24: 1.70 | F24: 0.10 | G24: 1.60 | H24: -0.000 | I24: 0.138 | J24: 0.009 | K24: -0.007 | L24: -0.005 | M24: -0.009 | N24: -0.003 | O24: 0.004 | P24: -0.008 | Q24: -0.010 | R24: 0.003 | S24: -0.005 | T24: 0.002 | U24: -0.005 | V24: -0.001 | W24: -0.003 | X24: -0.001 | Y24: 0.003 | Z24: -0.002 | AA24: -0.001 | AB24: 0.001 | AC24: -0.002 | AD24: 0.000 | AE24: -0.004 | AF24: 0.002 | AG24: -0.001 | AH24: 0.002 | AI24: -0.001 | AJ24: 0.000 | AK24: 0.001 | AL24: -0.000 | AM24: 0.000 | AN24: -0.000 | AO24: -0.000 | AP24: -0.000 | AQ24: -0.000 | AR24: 0.000 | AS24: 0.000 | AT24: 0.000 | AU24: 0.000 | AV24: -0.000 | AW24: 0.000 | AX24: 0.000 | AY24: 0.000 | AZ24: 0.24 | BA24: 0.27 | BB24: 0.06
A25: MAC (m) | B25: 2.3513% | C25: 8.59 | D25: 8.38 | E25: 0.92 | F25: 0.17 | G25: 0.75 | H25: -0.004 | I25: 0.157 | J25: 0.020 | K25: -0.020 | L25: 0.019 | M25: -0.015 | N25: 0.003 | O25: -0.009 | P25: 0.010 | Q25: 0.003 | R25: 0.002 | S25: -0.004 | T25: 0.002 | U25: -0.001 | V25: 0.004 | W25: 0.001 | X25: -0.000 | Y25: 0.001 | Z25: 0.006 | AA25: -0.001 | AB25: 0.004 | AC25: 0.001 | AD25: 0.001 | AE25: 0.002 | AF25: -0.000 | AG25: -0.000 | AH25: -0.002 | AI25: 0.001 | AJ25: 0.000 | AK25: 0.000 | AL25: -0.002 | AM25: 0.000 | AN25: -0.000 | AO25: -0.000 | AP25: -0.000 | AQ25: -0.000 | AR25: -0.000 | AS25: -0.000 | AT25: -0.000 | AU25: 0.000 | AV25: -0.000 | AW25: 0.000 | AX25: -0.000 | AY25: -0.000 | AZ25: -0.10 | BA25: 0.24 | BB25: 0.04
A26: Aspect Ratio | B26: 0.0101% | C26: 6.91 | D26: 6.91 | E26: 0.84 | F26: -0.08 | G26: 0.92 | H26: 0.004 | I26: -0.018 | J26: -0.017 | K26: 0.006 | L26: -0.025 | M26: 0.005 | N26: -0.007 | O26: 0.012 | P26: -0.016 | Q26: -0.013 | R26: -0.002 | S26: 0.001 | T26: -0.001 | U26: -0.005 | V26: -0.005 | W26: -0.003 | X26: 0.001 | Y26: 0.005 | Z26: -0.009 | AA26: 0.002 | AB26: -0.001 | AC26: -0.004 | AD26: -0.001 | AE26: -0.006 | AF26: 0.002 | AG26: -0.001 | AH26: 0.005 | AI26: -0.002 | AJ26: 0.001 | AK26: 0.001 | AL26: -0.001 | AM26: -0.000 | AN26: 0.000 | AO26: 0.000 | AP26: 0.000 | AQ26: 0.000 | AR26: -0.000 | AS26: 0.000 | AT26: 0.000 | AU26: 0.000 | AV26: 0.000 | AW26: -0.000 | AX26: -0.000 | AY26: 0.000 | AZ26: 0.72 | BA26: 0.22 | BB26: 0.03
A27: Taper Ratio | B27: 0.0051% | C27: 0.22 | D27: 0.22 | E27: -0.65 | F27: -0.03 | G27: -0.62 | H27: -0.004 | I27: -0.016 | J27: 0.029 | K27: 0.051 | L27: 0.029 | M27: 0.008 | N27: -0.026 | O27: 0.002 | P27: 0.003 | Q27: 0.014 | R27: 0.007 | S27: 0.004 | T27: 0.009 | U27: -0.009 | V27: 0.011 | W27: -0.011 | X27: -0.013 | Y27: -0.012 | Z27: -0.006 | AA27: -0.008 | AB27: -0.010 | AC27: 0.009 | AD27: -0.005 | AE27: -0.002 | AF27: 0.001 | AG27: -0.001 | AH27: -0.000 | AI27: -0.001 | AJ27: -0.000 | AK27: 0.000 | AL27: -0.000 | AM27: 0.000 | AN27: 0.000 | AO27: 0.000 | AP27: -0.000 | AQ27: -0.000 | AR27: -0.000 | AS27: 0.000 | AT27: 0.000 | AU27: 0.000 | AV27: -0.000 | AW27: 0.000 | AX27: 0.000 | AY27: -0.000 | AZ27: 1.47 | BA27: 0.19 | BB27: 0.03
A28: 1/4 Chord Sweep (º) | B28: 0.0022% | C28: 35.00 | D28: 35.00 | E28: 1.54 | F28: 0.10 | G28: 1.44 | H28: -0.009 | I28: 0.073 | J28: -0.004 | K28: -0.028 | L28: 0.031 | M28: -0.012 | N28: 0.012 | O28: 0.006 | P28: 0.012 | Q28: 0.020 | R28: -0.015 | S28: -0.000 | T28: 0.005 | U28: -0.001 | V28: 0.012 | W28: 0.007 | X28: 0.008 | Y28: 0.013 | Z28: -0.012 | AA28: 0.010 | AB28: 0.003 | AC28: 0.008 | AD28: -0.007 | AE28: -0.001 | AF28: 0.004 | AG28: -0.002 | AH28: 0.001 | AI28: 0.000 | AJ28: -0.000 | AK28: -0.000 | AL28: 0.000 | AM28: 0.000 | AN28: -0.000 | AO28: 0.000 | AP28: 0.000 | AQ28: -0.000 | AR28: 0.000 | AS28: 0.000 | AT28: -0.000 | AU28: 0.000 | AV28: 0.000 | AW28: -0.000 | AX28: -0.000 | AY28: -0.000 | AZ28: 0.50 | BA28: 0.16 | BB28: 0.03
A29: Flap Span/Wing Span | B29: 0.0000% | C29: 0.68 | D29: 0.68 | E29: -0.17 | F29: -0.02 | G29: -0.14 | H29: -0.003 | I29: 0.017 | J29: -0.014 | K29: 0.002 | L29: -0.017 | M29: 0.008 | N29: -0.014 | O29: -0.033 | P29: 0.026 | Q29: -0.025 | R29: -0.031 | S29: -0.024 | T29: -0.028 | U29: 0.006 | V29: 0.011 | W29: 0.003 | X29: -0.009 | Y29: -0.001 | Z29: -0.000 | AA29: -0.002 | AB29: -0.003 | AC29: 0.002 | AD29: -0.001 | AE29: -0.002 | AF29: 0.001 | AG29: -0.000 | AH29: -0.000 | AI29: -0.000 | AJ29: 0.000 | AK29: 0.000 | AL29: 0.000 | AM29: 0.000 | AN29: 0.000 | AO29: -0.000 | AP29: 0.000 | AQ29: -0.000 | AR29: 0.000 | AS29: 0.000 | AT29: -0.000 | AU29: -0.000 | AV29: -0.000 | AW29: 0.000 | AX29: -0.000 | AY29: -0.000 | AZ29: -0.15 | BA29: 0.15 | BB29: 0.03
A30: Area (m²) | B30: 0.0001% | C30: 56.21 | D30: 56.21 | E30: 1.75 | F30: 0.26 | G30: 1.49 | H30: 0.021 | I30: 0.254 | J30: -0.015 | K30: 0.028 | L30: 0.051 | M30: 0.005 | N30: -0.010 | O30: -0.009 | P30: 0.002 | Q30: 0.002 | R30: 0.003 | S30: -0.012 | T30: 0.004 | U30: 0.003 | V30: 0.002 | W30: -0.012 | X30: 0.001 | Y30: 0.004 | Z30: -0.001 | AA30: -0.001 | AB30: 0.004 | AC30: -0.007 | AD30: 0.004 | AE30: -0.002 | AF30: 0.002 | AG30: -0.001 | AH30: -0.000 | AI30: -0.000 | AJ30: -0.000 | AK30: 0.000 | AL30: 0.000 | AM30: 0.000 | AN30: -0.000 | AO30: -0.000 | AP30: -0.000 | AQ30: -0.000 | AR30: 0.000 | AS30: -0.000 | AT30: -0.000 | AU30: 0.000 | AV30: 0.000 | AW30: -0.000 | AX30: -0.000 | AY30: 0.000 | AZ30: -0.08 | BA30: 0.11 | BB30: 0.03
A31: Height (m) | B31: 0.2020% | C31: 11.16 | D31: 11.14 | E31: 1.05 | F31: 0.22 | G31: 0.83 | H31: -0.001 | I31: 0.150 | J31: -0.027 | K31: 0.037 | L31: -0.001 | M31: -0.022 | N31: 0.011 | O31: -0.020 | P31: -0.006 | Q31: 0.018 | R31: 0.002 | S31: -0.010 | T31: 0.004 | U31: 0.001 | V31: 0.002 | W31: -0.002 | X31: 0.000 | Y31: 0.001 | Z31: -0.001 | AA31: -0.000 | AB31: -0.000 | AC31: -0.003 | AD31: 0.002 | AE31: -0.001 | AF31: 0.001 | AG31: -0.001 | AH31: -0.000 | AI31: -0.000 | AJ31: 0.000 | AK31: 0.000 | AL31: 0.000 | AM31: 0.000 | AN31: -0.000 | AO31: -0.000 | AP31: -0.000 | AQ31: -0.000 | AR31: 0.000 | AS31: 0.000 | AT31: 0.000 | AU31: -0.000 | AV31: -0.000 | AW31: -0.000 | AX31: -0.000 | AY31: 0.000 | AZ31: 1.55 | BA31: 0.11 | BB31: 0.03
A32: Aspect Ratio | B32: 0.4037% | C32: 2.22 | D32: 2.21 | E32: 0.34 | F32: 0.18 | G32: 0.17 | H32: -0.023 | I32: 0.046 | J32: -0.039 | K32: 0.047 | L32: -0.053 | M32: -0.049 | N32: 0.031 | O32: -0.031 | P32: -0.014 | Q32: 0.033 | R32: 0.000 | S32: -0.009 | T32: 0.004 | U32: -0.002 | V32: 0.003 | W32: 0.008 | X32: -0.000 | Y32: -0.002 | Z32: -0.002 | AA32: -0.000 | AB32: -0.004 | AC32: -0.000 | AD32: 0.001 | AE32: 0.000 | AF32: 0.001 | AG32: -0.000 | AH32: 0.000 | AI32: -0.000 | AJ32: 0.000 | AK32: 0.000 | AL32: -0.000 | AM32: -0.000 | AN32: 0.000 | AO32: 0.000 | AP32: 0.000 | AQ32: 0.000 | AR32: -0.000 | AS32: -0.000 | AT32: -0.000 | AU32: 0.000 | AV32: 0.000 | AW32: 0.000 | AX32: 0.000 | AY32: -0.000 | AZ32: 1.26 | BA32: 0.08 | BB32: 0.02
A33: Taper Ratio | B33: 25.7065% | C33: 0.48 | D33: 0.35 | E33: -0.45 | F33: -0.08 | G33: -0.37 | H33: 0.034 | I33: -0.106 | J33: 0.061 | K33: -0.037 | L33: 0.006 | M33: 0.065 | N33: 0.031 | O33: -0.017 | P33: -0.038 | Q33: 0.007 | R33: 0.015 | S33: -0.021 | T33: 0.002 | U33: 0.020 | V33: 0.007 | W33: 0.000 | X33: 0.001 | Y33: -0.004 | Z33: -0.000 | AA33: 0.002 | AB33: -0.002 | AC33: 0.003 | AD33: -0.000 | AE33: -0.002 | AF33: 0.001 | AG33: -0.000 | AH33: 0.001 | AI33: 0.000 | AJ33: 0.000 | AK33: 0.000 | AL33: -0.000 | AM33: 0.000 | AN33: 0.000 | AO33: -0.000 | AP33: -0.000 | AQ33: -0.000 | AR33: -0.000 | AS33: 0.000 | AT33: -0.000 | AU33: -0.000 | AV33: 0.000 | AW33: 0.000 | AX33: 0.000 | AY33: -0.000 | AZ33: -0.66 | BA33: 0.06 | BB33: 0.02
A34: Tail Arm (m) | B34: 0.0034% | C34: 20.65 | D34: 20.65 | E34: 1.31 | F34: 0.05 | G34: 1.27 | H34: -0.017 | I34: 0.130 | J34: 0.019 | K34: 0.004 | L34: -0.024 | M34: 0.007 | N34: -0.003 | O34: 0.003 | P34: 0.019 | Q34: -0.004 | R34: 0.013 | S34: -0.019 | T34: 0.010 | U34: -0.012 | V34: -0.006 | W34: 0.009 | X34: 0.004 | Y34: -0.001 | Z34: 0.006 | AA34: -0.003 | AB34: 0.005 | AC34: 0.006 | AD34: -0.002 | AE34: -0.000 | AF34: -0.001 | AG34: 0.001 | AH34: 0.004 | AI34: -0.001 | AJ34: 0.001 | AK34: 0.001 | AL34: 0.000 | AM34: -0.000 | AN34: -0.000 | AO34: -0.000 | AP34: -0.000 | AQ34: -0.000 | AR34: -0.000 | AS34: -0.000 | AT34: -0.000 | AU34: -0.000 | AV34: -0.000 | AW34: 0.000 | AX34: -0.000 | AY34: -0.000 | AZ34: -0.34 | BA34: 0.04 | BB34: 0.02
A35: Sv/S | B35: 0.0001% | C35: 0.15 | D35: 0.15 | E35: -0.82 | F35: -0.02 | G35: -0.79 | H35: 0.025 | I35: -0.040 | J35: -0.048 | K35: 0.047 | L35: 0.035 | M35: 0.027 | N35: -0.009 | O35: -0.004 | P35: 0.002 | Q35: 0.009 | R35: -0.005 | S35: -0.001 | T35: -0.002 | U35: 0.008 | V35: -0.002 | W35: -0.009 | X35: 0.004 | Y35: 0.003 | Z35: -0.006 | AA35: 0.003 | AB35: 0.000 | AC35: -0.006 | AD35: 0.003 | AE35: -0.000 | AF35: 0.000 | AG35: -0.000 | AH35: 0.000 | AI35: -0.000 | AJ35: 0.000 | AK35: 0.000 | AL35: -0.000 | AM35: -0.000 | AN35: 0.000 | AO35: -0.000 | AP35: 0.000 | AQ35: 0.000 | AR35: -0.000 | AS35: -0.000 | AT35: 0.000 | AU35: -0.000 | AV35: -0.000 | AW35: 0.000 | AX35: 0.000 | AY35: -0.000 | AZ35: 1.88 | BA35: 0.03 | BB35: 0.02
A36: SvLv/Sb | B36: 0.0016% | C36: 0.06 | D36: 0.06 | E36: -1.20 | F36: -0.07 | G36: -1.13 | H36: 0.008 | I36: -0.048 | J36: -0.038 | K36: 0.057 | L36: 0.016 | M36: 0.043 | N36: -0.009 | O36: -0.004 | P36: 0.029 | Q36: 0.015 | R36: 0.006 | S36: -0.016 | T36: 0.005 | U36: 0.000 | V36: -0.007 | W36: 0.002 | X36: 0.008 | Y36: 0.000 | Z36: 0.003 | AA36: 0.002 | AB36: 0.004 | AC36: 0.003 | AD36: 0.000 | AE36: 0.003 | AF36: -0.003 | AG36: 0.002 | AH36: 0.002 | AI36: 0.000 | AJ36: 0.001 | AK36: 0.000 | AL36: 0.000 | AM36: -0.000 | AN36: 0.000 | AO36: 0.000 | AP36: 0.000 | AQ36: 0.000 | AR36: 0.000 | AS36: 0.000 | AT36: 0.000 | AU36: 0.000 | AV36: 0.000 | AW36: -0.000 | AX36: 0.000 | AY36: 0.000 | AZ36: -0.60 | BA36: 0.01 | BB36: 0.00
A37: Area (m²) | B37: 0.0113% | C37: 124.30 | D37: 124.29 | E37: 2.09 | F37: 0.41 | G37: 1.68 | H37: 0.002 | I37: 0.301 | J37: -0.015 | K37: -0.001 | L37: 0.039 | M37: -0.008 | N37: 0.048 | O37: -0.009 | P37: 0.015 | Q37: -0.009 | R37: 0.012 | S37: 0.014 | T37: -0.020 | U37: 0.003 | V37: -0.011 | W37: 0.003 | X37: 0.004 | Y37: -0.011 | Z37: -0.004 | AA37: 0.000 | AB37: -0.003 | AC37: 0.001 | AD37: -0.001 | AE37: -0.002 | AF37: -0.001 | AG37: 0.000 | AH37: 0.002 | AI37: -0.001 | AJ37: 0.000 | AK37: 0.000 | AL37: 0.000 | AM37: -0.000 | AN37: -0.000 | AO37: 0.000 | AP37: 0.000 | AQ37: 0.000 | AR37: -0.000 | AS37: -0.000 | AT37: -0.000 | AU37: 0.000 | AV37: -0.000 | AW37: 0.000 | AX37: -0.000 | AY37: 0.000 | AZ37: -0.05 | BA37: 0.00 | BB37: 0.00
A38: Span (m) | B38: 0.0042% | C38: 21.69 | D38: 21.69 | E38: 1.34 | F38: 0.16 | G38: 1.17 | H38: 0.004 | I38: 0.129 | J38: -0.011 | K38: 0.018 | L38: 0.002 | M38: -0.006 | N38: 0.018 | O38: -0.006 | P38: -0.001 | Q38: -0.014 | R38: 0.014 | S38: 0.002 | T38: -0.015 | U38: 0.001 | V38: -0.011 | W38: -0.005 | X38: 0.005 | Y38: -0.002 | Z38: -0.005 | AA38: -0.001 | AB38: 0.001 | AC38: 0.003 | AD38: -0.003 | AE38: 0.001 | AF38: 0.001 | AG38: -0.001 | AH38: -0.001 | AI38: -0.000 | AJ38: -0.000 | AK38: -0.000 | AL38: 0.000 | AM38: 0.000 | AN38: -0.000 | AO38: -0.000 | AP38: -0.000 | AQ38: -0.000 | AR38: 0.000 | AS38: -0.000 | AT38: -0.000 | AU38: 0.000 | AV38: -0.000 | AW38: -0.000 | AX38: 0.000 | AY38: -0.000 | AZ38: -0.61 | BA38: 0.00 | BB38: 0.00
A39: Aspect Ratio | B39: 0.0028% | C39: 3.78 | D39: 3.78 | E39: 0.58 | F39: -0.09 | G39: 0.67 | H39: 0.006 | I39: -0.043 | J39: -0.007 | K39: 0.036 | L39: -0.035 | M39: -0.003 | N39: -0.013 | O39: -0.003 | P39: -0.017 | Q39: -0.019 | R39: 0.016 | S39: -0.011 | T39: -0.009 | U39: -0.001 | V39: -0.012 | W39: -0.012 | X39: 0.006 | Y39: 0.007 | Z39: -0.006 | AA39: -0.003 | AB39: 0.004 | AC39: 0.005 | AD39: -0.004 | AE39: 0.005 | AF39: 0.003 | AG39: -0.002 | AH39: -0.004 | AI39: 0.000 | AJ39: -0.000 | AK39: -0.000 | AL39: -0.000 | AM39: 0.000 | AN39: 0.000 | AO39: 0.000 | AP39: 0.000 | AQ39: 0.000 | AR39: -0.000 | AS39: 0.000 | AT39: 0.000 | AU39: -0.000 | AV39: 0.000 | AW39: 0.000 | AX39: -0.000 | AY39: 0.000 | AZ39: -0.57 | BA39: 0.00 | BB39: 0.00
A40: Taper Ratio | B40: 16.0428% | C40: 0.34 | D40: 0.29 | E40: -0.54 | F40: -0.03 | G40: -0.51 | H40: 0.016 | I40: -0.041 | J40: 0.067 | K40: -0.027 | L40: -0.007 | M40: 0.037 | N40: -0.014 | O40: -0.048 | P40: -0.000 | Q40: 0.027 | R40: -0.004 | S40: 0.014 | T40: -0.012 | U40: -0.026 | V40: -0.011 | W40: -0.002 | X40: 0.000 | Y40: 0.001 | Z40: -0.003 | AA40: 0.000 | AB40: 0.006 | AC40: -0.003 | AD40: -0.000 | AE40: -0.002 | AF40: -0.000 | AG40: -0.000 | AH40: -0.001 | AI40: -0.000 | AJ40: 0.000 | AK40: -0.000 | AL40: 0.000 | AM40: -0.000 | AN40: -0.000 | AO40: -0.000 | AP40: -0.000 | AQ40: 0.000 | AR40: 0.000 | AS40: -0.000 | AT40: -0.000 | AU40: 0.000 | AV40: -0.000 | AW40: -0.000 | AX40: -0.000 | AY40: -0.000 | AZ40: -0.24 | BA40: 0.00 | BB40: 0.00
A41: Tail Arm (m) | B41: 0.0003% | C41: 19.80 | D41: 19.80 | E41: 1.30 | F41: 0.00 | G41: 1.29 | H41: -0.009 | I41: 0.116 | J41: 0.019 | K41: -0.020 | L41: -0.008 | M41: 0.020 | N41: 0.009 | O41: 0.011 | P41: 0.030 | Q41: -0.005 | R41: 0.007 | S41: -0.011 | T41: 0.007 | U41: -0.007 | V41: -0.009 | W41: 0.011 | X41: 0.003 | Y41: -0.005 | Z41: -0.012 | AA41: 0.001 | AB41: -0.008 | AC41: -0.004 | AD41: 0.004 | AE41: 0.000 | AF41: 0.003 | AG41: -0.001 | AH41: -0.003 | AI41: 0.002 | AJ41: -0.000 | AK41: -0.000 | AL41: -0.001 | AM41: 0.000 | AN41: 0.000 | AO41: 0.000 | AP41: 0.000 | AQ41: 0.000 | AR41: 0.000 | AS41: 0.000 | AT41: 0.000 | AU41: -0.000 | AV41: 0.000 | AW41: -0.000 | AX41: 0.000 | AY41: 0.000 | AZ41: 1.04 | BA41: 0.00 | BB41: 0.00
A42: Sh/S | B42: 1.5943% | C42: 0.34 | D42: 0.33 | E42: -0.48 | F42: 0.12 | G42: -0.60 | H42: 0.004 | I42: 0.012 | J42: -0.052 | K42: 0.015 | L42: 0.016 | M42: 0.012 | N42: 0.032 | O42: 0.003 | P42: -0.005 | Q42: 0.007 | R42: 0.002 | S42: 0.010 | T42: -0.013 | U42: -0.002 | V42: 0.003 | W42: -0.000 | X42: -0.009 | Y42: 0.007 | Z42: 0.010 | AA42: -0.004 | AB42: 0.006 | AC42: 0.004 | AD42: -0.002 | AE42: -0.002 | AF42: -0.002 | AG42: -0.001 | AH42: -0.001 | AI42: -0.000 | AJ42: 0.000 | AK42: 0.000 | AL42: -0.001 | AM42: 0.000 | AN42: 0.000 | AO42: 0.000 | AP42: 0.000 | AQ42: 0.000 | AR42: 0.000 | AS42: 0.000 | AT42: 0.000 | AU42: -0.000 | AV42: 0.000 | AW42: -0.000 | AX42: 0.000 | AY42: 0.000 | AZ42: 0.56 | BA42: 0.00 | BB42: 0.00
A43: ShLh/Sc | B43: 0.0008% | C43: 0.78 | D43: 0.78 | E43: -0.11 | F43: -0.06 | G43: -0.05 | H43: -0.002 | I43: -0.027 | J43: -0.054 | K43: 0.014 | L43: -0.015 | M43: 0.046 | N43: 0.030 | O43: 0.027 | P43: 0.005 | Q43: 0.004 | R43: 0.006 | S43: -0.004 | T43: -0.002 | U43: -0.012 | V43: -0.001 | W43: 0.007 | X43: -0.013 | Y43: 0.011 | Z43: 0.002 | AA43: -0.006 | AB43: -0.001 | AC43: -0.001 | AD43: 0.002 | AE43: -0.005 | AF43: 0.002 | AG43: -0.002 | AH43: -0.002 | AI43: 0.001 | AJ43: -0.001 | AK43: -0.000 | AL43: 0.000 | AM43: 0.000 | AN43: -0.000 | AO43: -0.000 | AP43: -0.000 | AQ43: -0.000 | AR43: -0.000 | AS43: -0.000 | AT43: -0.000 | AU43: 0.000 | AV43: -0.000 | AW43: 0.000 | AX43: -0.000 | AY43: -0.000 | AZ43: 1.17 | BA43: 0.00 | BB43: 0.00
A44: Length (m) | B44: 0.0016% | C44: 6.50 | D44: 6.50 | E44: 0.81 | F44: 0.08 | G44: 0.74 | H44: 0.002 | I44: 0.062 | J44: -0.027 | K44: -0.058 | L44: 0.016 | M44: 0.006 | N44: 0.025 | O44: 0.007 | P44: -0.009 | Q44: 0.008 | R44: -0.019 | S44: -0.009 | T44: -0.002 | U44: -0.014 | V44: -0.002 | W44: -0.015 | X44: 0.001 | Y44: 0.006 | Z44: -0.003 | AA44: -0.010 | AB44: -0.007 | AC44: 0.002 | AD44: 0.003 | AE44: 0.008 | AF44: 0.001 | AG44: 0.003 | AH44: 0.002 | AI44: -0.000 | AJ44: 0.001 | AK44: 0.000 | AL44: 0.000 | AM44: -0.000 | AN44: -0.000 | AO44: -0.000 | AP44: 0.000 | AQ44: -0.000 | AR44: -0.000 | AS44: 0.000 | AT44: -0.000 | AU44: -0.000 | AV44: -0.000 | AW44: 0.000 | AX44: -0.000 | AY44: 0.000 | AZ44: -0.03 | BA44: 0.00 | BB44: 0.00
A45: Max. width (m) | B45: 0.0001% | C45: 2.70 | D45: 2.70 | E45: 0.43 | F45: 0.09 | G45: 0.34 | H45: -0.001 | I45: 0.098 | J45: -0.034 | K45: -0.013 | L45: -0.002 | M45: -0.003 | N45: -0.027 | O45: -0.004 | P45: -0.007 | Q45: -0.000 | R45: 0.011 | S45: 0.011 | T45: -0.005 | U45: 0.004 | V45: 0.003 | W45: 0.003 | X45: -0.007 | Y45: -0.001 | Z45: -0.007 | AA45: 0.002 | AB45: 0.005 | AC45: 0.012 | AD45: 0.014 | AE45: -0.001 | AF45: 0.004 | AG45: 0.003 | AH45: 0.001 | AI45: 0.000 | AJ45: 0.000 | AK45: 0.000 | AL45: 0.000 | AM45: 0.000 | AN45: 0.000 | AO45: -0.000 | AP45: 0.000 | AQ45: 0.000 | AR45: -0.000 | AS45: 0.000 | AT45: 0.000 | AU45: -0.000 | AV45: -0.000 | AW45: -0.000 | AX45: 0.000 | AY45: 0.000 | AZ45: -1.54 | BA45: 0.00 | BB45: 0.00
A46: Max. power load (kg/kN) | B46: 0.0003% | C46: 357.40 | D46: 357.40 | E46: 2.55 | F46: 0.00 | G46: 2.55 | H46: 0.003 | I46: 0.025 | J46: 0.027 | K46: 0.010 | L46: -0.010 | M46: -0.007 | N46: 0.019 | O46: 0.019 | P46: -0.001 | Q46: -0.000 | R46: -0.007 | S46: -0.010 | T46: -0.001 | U46: -0.007 | V46: 0.005 | W46: -0.010 | X46: -0.003 | Y46: -0.007 | Z46: -0.006 | AA46: 0.004 | AB46: 0.006 | AC46: 0.001 | AD46: 0.002 | AE46: -0.001 | AF46: -0.004 | AG46: 0.001 | AH46: -0.001 | AI46: 0.000 | AJ46: -0.000 | AK46: 0.000 | AL46: 0.000 | AM46: -0.000 | AN46: -0.000 | AO46: -0.000 | AP46: -0.000 | AQ46: -0.000 | AR46: -0.000 | AS46: 0.000 | AT46: 0.000 | AU46: 0.000 | AV46: 0.000 | AW46: -0.000 | AX46: -0.000 | AY46: 0.000 | AZ46: 0.47 | BA46: 0.00 | BB46: 0.00
A47: No. of engines | B47: 0.0003% | C47: 3.00 | D47: 3.00 | E47: 0.48 | F47: 0.08 | G47: 0.40 | H47: 0.004 | I47: 0.056 | J47: 0.109 | K47: 0.052 | L47: 0.007 | M47: -0.002 | N47: 0.006 | O47: -0.002 | P47: 0.006 | Q47: -0.001 | R47: -0.004 | S47: 0.010 | T47: -0.003 | U47: 0.009 | V47: -0.005 | W47: 0.006 | X47: -0.000 | Y47: 0.013 | Z47: 0.003 | AA47: -0.005 | AB47: -0.004 | AC47: 0.001 | AD47: 0.003 | AE47: 0.001 | AF47: 0.004 | AG47: 0.000 | AH47: 0.001 | AI47: 0.000 | AJ47: -0.000 | AK47: 0.000 | AL47: -0.000 | AM47: -0.001 | AN47: -0.000 | AO47: 0.000 | AP47: 0.000 | AQ47: -0.000 | AR47: 0.000 | AS47: -0.000 | AT47: -0.000 | AU47: -0.000 | AV47: -0.000 | AW47: 0.000 | AX47: -0.000 | AY47: 0.000 | AZ47: -0.05 | BA47: 0.00 | BB47: 0.00
A48: mOE/mTO | B48: 0.0032% | C48: 0.58 | D48: 0.58 | E48: -0.23 | F48: 0.04 | G48: -0.28 | H48: 0.008 | I48: -0.027 | J48: -0.013 | K48: -0.000 | L48: 0.005 | M48: -0.001 | N48: -0.005 | O48: -0.011 | P48: -0.004 | Q48: -0.010 | R48: 0.012 | S48: 0.001 | T48: -0.001 | U48: -0.007 | V48: 0.009 | W48: 0.000 | X48: 0.005 | Y48: 0.008 | Z48: -0.001 | AA48: 0.002 | AB48: -0.006 | AC48: 0.001 | AD48: 0.002 | AE48: -0.000 | AF48: -0.005 | AG48: -0.001 | AH48: -0.000 | AI48: 0.002 | AJ48: 0.000 | AK48: 0.001 | AL48: 0.000 | AM48: -0.000 | AN48: -0.000 | AO48: -0.000 | AP48: 0.000 | AQ48: 0.000 | AR48: -0.000 | AS48: 0.000 | AT48: -0.000 | AU48: 0.000 | AV48: -0.000 | AW48: -0.000 | AX48: 0.000 | AY48: 0.000 | AZ48: 1.12 | BA48: 0.00 | BB48: 0.00
B49: =MAX(B5:B48) -> 25.7065%
A50: Ʃ | B50: =SUM(B5:B47) -> 46.3736%

Sheet SVD model 30 parameters
A1: Singulärwertzerlegung zur Ermittlung des Betriebsleermassenanteils von Flugzeugen
A2: Credit to Petter Krus, Linköping University Sweden
B4: Rel error | C4: DC10-10 | D4: Estimate | E4: Adjusted | F4: Result | G4: Average | AM4: SVD variables | AN4: w-diagonal | AO4: residual
A5: Max. wing load (kg/m2) | B5: =ABS((C5-D5)/C5) -> 3.1846% | C5: 519.05 | D5: =POWER(10,E5) -> 535.58 | E5: =F5+G5 -> 2.73 | F5: =MMULT(H5:AL35,AM5:AM35) -> -0.05 | G5: 2.77 | H5: -0.003 | I5: 0.055 | J5: -0.004 | K5: 0.016 | L5: -0.025 | M5: 0.019 | N5: -0.027 | O5: 0.014 | P5: 0.022 | Q5: 0.003 | R5: 0.003 | S5: 0.008 | T5: -0.004 | U5: 0.002 | V5: -0.007 | W5: 0.001 | X5: -0.002 | Y5: 0.002 | Z5: -0.001 | AA5: 0.002 | AB5: -0.000 | AC5: 0.001 | AD5: -0.001 | AE5: 0.000 | AF5: 0.000 | AG5: 0.000 | AH5: 0.000 | AI5: 0.000 | AJ5: 0.000 | AK5: 0.000 | AL5: 0.000 | AM5: -0.27 | AN5: 30.98 | AO5: 0.83
A6: Thrust/Weight Ratio | B6: 0.0004% | C6: 0.29 | D6: 0.29 | E6: -0.54 | F6: -0.00 | G6: -0.54 | H6: -0.003 | I6: -0.025 | J6: 0.029 | K6: -0.009 | L6: 0.011 | M6: 0.012 | N6: 0.002 | O6: -0.006 | P6: -0.003 | Q6: 0.011 | R6: -0.006 | S6: 0.015 | T6: -0.021 | U6: -0.007 | V6: -0.004 | W6: -0.003 | X6: 0.006 | Y6: -0.005 | Z6: 0.002 | AA6: -0.002 | AB6: -0.000 | AC6: -0.001 | AD6: 0.000 | AE6: 0.001 | AF6: -0.000 | AG6: 0.000 | AH6: 0.000 | AI6: 0.000 | AJ6: 0.000 | AK6: -0.000 | AL6: 0.000 | AM6: 0.80 | AN6: 8.44 | AO6: 0.50
A7: Max. payload | B7: 2.9566% | C7: 48330.00 | D7: 46901.06 | E7: 4.67 | F7: 0.27 | G7: 4.40 | H7: -0.013 | I7: 0.294 | J7: 0.004 | K7: 0.003 | L7: -0.038 | M7: 0.013 | N7: 0.018 | O7: -0.020 | P7: 0.010 | Q7: -0.019 | R7: -0.014 | S7: 0.012 | T7: 0.000 | U7: 0.001 | V7: 0.005 | W7: 0.000 | X7: -0.002 | Y7: 0.001 | Z7: 0.000 | AA7: 0.001 | AB7: 0.000 | AC7: 0.001 | AD7: 0.000 | AE7: 0.000 | AF7: -0.000 | AG7: -0.000 | AH7: -0.000 | AI7: -0.000 | AJ7: 0.000 | AK7: -0.000 | AL7: 0.000 | AM7: -0.22 | AN7: 1.72 | AO7: 0.36
A8: Max. take-off | B8: 1.1139% | C8: 190854.00 | D8: 192980.01 | E8: 5.29 | F8: 0.23 | G8: 5.06 | H8: -0.008 | I8: 0.348 | J8: -0.029 | K8: -0.005 | L8: -0.005 | M8: -0.008 | N8: -0.009 | O8: 0.008 | P8: 0.009 | Q8: -0.001 | R8: 0.009 | S8: 0.008 | T8: 0.001 | U8: 0.002 | V8: 0.002 | W8: 0.001 | X8: 0.000 | Y8: 0.000 | Z8: -0.000 | AA8: 0.001 | AB8: 0.000 | AC8: 0.001 | AD8: 0.000 | AE8: 0.000 | AF8: -0.000 | AG8: 0.000 | AH8: 0.000 | AI8: 0.000 | AJ8: 0.000 | AK8: 0.000 | AL8: -0.000 | AM8: 0.21 | AN8: 1.23 | AO8: 0.29
A9: Max. landing | B9: 0.0007% | C9: 164854.00 | D9: 164855.23 | E9: 5.22 | F9: 0.25 | G9: 4.97 | H9: -0.005 | I9: 0.310 | J9: -0.011 | K9: -0.001 | L9: -0.006 | M9: 0.000 | N9: 0.000 | O9: 0.003 | P9: -0.003 | Q9: -0.001 | R9: 0.003 | S9: -0.000 | T9: -0.000 | U9: -0.001 | V9: -0.002 | W9: -0.001 | X9: -0.002 | Y9: -0.005 | Z9: -0.007 | AA9: 0.002 | AB9: -0.002 | AC9: 0.001 | AD9: 0.000 | AE9: 0.000 | AF9: 0.000 | AG9: -0.000 | AH9: -0.000 | AI9: 0.000 | AJ9: 0.000 | AK9: 0.000 | AL9: 0.000 | AM9: 0.47 | AN9: 1.05 | AO9: 0.28
A10: Static thrust (kN) | B10: 0.0135% | C10: 178.00 | D10: 178.02 | E10: 2.25 | F10: 0.14 | G10: 2.11 | H10: -0.015 | I10: 0.266 | J10: 0.118 | K10: -0.038 | L10: 0.011 | M10: 0.010 | N10: -0.007 | O10: 0.014 | P10: 0.003 | Q10: 0.010 | R10: 0.002 | S10: 0.014 | T10: -0.005 | U10: 0.001 | V10: 0.004 | W10: -0.003 | X10: 0.003 | Y10: -0.002 | Z10: 0.001 | AA10: -0.000 | AB10: 0.000 | AC10: 0.000 | AD10: 0.000 | AE10: -0.001 | AF10: 0.000 | AG10: -0.000 | AH10: -0.000 | AI10: -0.000 | AJ10: -0.000 | AK10: 0.000 | AL10: -0.000 | AM10: 0.57 | AN10: 0.93 | AO10: 0.29
A11: Max. seats (single class) | B11: 0.0042% | C11: 380.00 | D11: 380.02 | E11: 2.58 | F11: 0.23 | G11: 2.35 | H11: -0.004 | I11: 0.271 | J11: -0.003 | K11: 0.011 | L11: -0.031 | M11: 0.018 | N11: -0.018 | O11: 0.002 | P11: -0.008 | Q11: 0.002 | R11: -0.007 | S11: -0.015 | T11: 0.015 | U11: -0.004 | V11: -0.011 | W11: -0.010 | X11: 0.011 | Y11: -0.004 | Z11: 0.005 | AA11: 0.001 | AB11: 0.000 | AC11: -0.000 | AD11: 0.000 | AE11: -0.000 | AF11: 0.000 | AG11: -0.000 | AH11: 0.000 | AI11: 0.000 | AJ11: -0.000 | AK11: -0.000 | AL11: -0.000 | AM11: 2.00 | AN11: 0.78 | AO11: 0.22
A12: Hold volume (m³) | B12: 0.0073% | C12: 132.20 | D12: 132.21 | E12: 2.12 | F12: 0.82 | G12: 1.30 | H12: -2.740 | I12: 0.096 | J12: -0.000 | K12: 0.005 | L12: -0.013 | M12: 0.014 | N12: -0.013 | O12: 0.005 | P12: 0.001 | Q12: 0.001 | R12: -0.003 | S12: -0.019 | T12: -0.009 | U12: -0.006 | V12: 0.011 | W12: 0.006 | X12: 0.001 | Y12: -0.000 | Z12: -0.000 | AA12: -0.001 | AB12: 0.000 | AC12: -0.000 | AD12: -0.000 | AE12: -0.000 | AF12: -0.000 | AG12: 0.000 | AH12: 0.000 | AI12: -0.000 | AJ12: 0.000 | AK12: 0.000 | AL12: -0.000 | AM12: -0.31 | AN12: 0.71 | AO12: 0.22
A13: Volume per passenger | B13: 0.1627% | C13: 0.35 | D13: 0.35 | E13: -0.46 | F13: 0.52 | G13: -0.98 | H13: -2.337 | I13: -0.120 | J13: -0.002 | K13: -0.006 | L13: 0.016 | M13: -0.015 | N13: 0.016 | O13: -0.005 | P13: -0.002 | Q13: -0.002 | R13: 0.004 | S13: 0.022 | T13: 0.011 | U13: 0.006 | V13: -0.014 | W13: -0.006 | X13: -0.001 | Y13: 0.000 | Z13: 0.000 | AA13: 0.001 | AB13: -0.000 | AC13: 0.000 | AD13: 0.000 | AE13: 0.000 | AF13: 0.000 | AG13: -0.000 | AH13: -0.000 | AI13: 0.000 | AJ13: -0.000 | AK13: -0.000 | AL13: 0.000 | AM13: -0.87 | AN13: 0.52 | AO13: 0.22
A14: No. of engines | B14: 0.0002% | C14: 3.00 | D14: 3.00 | E14: 0.48 | F14: 0.08 | G14: 0.40 | H14: 0.004 | I14: 0.057 | J14: -0.118 | K14: 0.025 | L14: -0.004 | M14: -0.005 | N14: -0.000 | O14: -0.012 | P14: 0.002 | Q14: 0.001 | R14: 0.000 | S14: 0.009 | T14: -0.016 | U14: -0.005 | V14: -0.005 | W14: 0.001 | X14: 0.002 | Y14: -0.003 | Z14: 0.001 | AA14: -0.001 | AB14: -0.000 | AC14: 0.000 | AD14: 0.000 | AE14: -0.001 | AF14: 0.000 | AG14: -0.000 | AH14: -0.000 | AI14: -0.000 | AJ14: -0.000 | AK14: 0.000 | AL14: -0.000 | AM14: -0.78 | AN14: 0.56 | AO14: 0.22
A15: Zero-fuel | B15: 0.0030% | C15: 151956.00 | D15: 151951.45 | E15: 5.18 | F15: 0.25 | G15: 4.94 | H15: -0.004 | I15: 0.311 | J15: -0.010 | K15: -0.001 | L15: -0.007 | M15: 0.002 | N15: -0.002 | O15: 0.000 | P15: -0.005 | Q15: -0.003 | R15: 0.004 | S15: 0.004 | T15: -0.002 | U15: -0.001 | V15: -0.001 | W15: -0.004 | X15: -0.007 | Y15: 0.002 | Z15: -0.001 | AA15: 0.001 | AB15: 0.002 | AC15: -0.005 | AD15: -0.000 | AE15: -0.000 | AF15: 0.000 | AG15: -0.000 | AH15: -0.000 | AI15: -0.000 | AJ15: 0.000 | AK15: 0.000 | AL15: -0.000 | AM15: -0.95 | AN15: 0.55 | AO15: 0.18
A16: Operational empty | B16: 0.2155% | C16: 111344.00 | D16: 111104.11 | E16: 5.05 | F16: 0.26 | G16: 4.78 | H16: 0.000 | I16: 0.321 | J16: -0.016 | K16: -0.004 | L16: 0.003 | M16: -0.000 | N16: -0.002 | O16: 0.003 | P16: -0.008 | Q16: 0.003 | R16: 0.007 | S16: 0.002 | T16: -0.007 | U16: -0.003 | V16: -0.002 | W16: -0.004 | X16: -0.005 | Y16: 0.005 | Z16: 0.000 | AA16: 0.002 | AB16: 0.001 | AC16: 0.002 | AD16: 0.000 | AE16: 0.000 | AF16: -0.000 | AG16: 0.000 | AH16: -0.000 | AI16: -0.000 | AJ16: -0.000 | AK16: -0.000 | AL16: 0.000 | AM16: -1.51 | AN16: 0.45 | AO16: 0.12
A17: Ops empty/Max. T/O | B17: 1.3148% | C17: 0.58 | D17: 0.58 | E17: -0.24 | F17: 0.04 | G17: -0.28 | H17: 0.008 | I17: -0.027 | J17: 0.013 | K17: 0.001 | L17: 0.008 | M17: 0.008 | N17: 0.007 | O17: -0.005 | P17: -0.017 | Q17: 0.004 | R17: -0.002 | S17: -0.006 | T17: -0.008 | U17: -0.005 | V17: -0.005 | W17: -0.005 | X17: -0.005 | Y17: 0.004 | Z17: 0.000 | AA17: 0.002 | AB17: 0.001 | AC17: 0.001 | AD17: 0.000 | AE17: -0.000 | AF17: 0.000 | AG17: -0.000 | AH17: 0.000 | AI17: 0.000 | AJ17: 0.000 | AK17: 0.000 | AL17: 0.000 | AM17: -0.72 | AN17: 0.36 | AO17: 0.12
A18: Max. payload/Max. T/O | B18: 4.0257% | C18: 0.25 | D18: 0.24 | E18: -0.61 | F18: 0.04 | G18: -0.66 | H18: -0.006 | I18: -0.054 | J18: 0.033 | K18: 0.008 | L18: -0.033 | M18: 0.021 | N18: 0.028 | O18: -0.027 | P18: 0.001 | Q18: -0.018 | R18: -0.023 | S18: 0.004 | T18: -0.000 | U18: -0.001 | V18: 0.002 | W18: -0.001 | X18: -0.002 | Y18: 0.000 | Z18: 0.001 | AA18: -0.000 | AB18: 0.000 | AC18: 0.000 | AD18: -0.000 | AE18: -0.000 | AF18: 0.000 | AG18: 0.000 | AH18: 0.000 | AI18: 0.000 | AJ18: -0.000 | AK18: 0.000 | AL18: -0.000 | AM18: -1.30 | AN18: 0.30 | AO18: 0.13
A19: Max. landing/Max. T/O | B19: 1.1009% | C19: 0.86 | D19: 0.85 | E19: -0.07 | F19: 0.02 | G19: -0.09 | H19: 0.003 | I19: -0.038 | J19: 0.018 | K19: 0.003 | L19: -0.001 | M19: 0.009 | N19: 0.009 | O19: -0.005 | P19: -0.012 | Q19: 0.000 | R19: -0.006 | S19: -0.008 | T19: -0.001 | U19: -0.003 | V19: -0.004 | W19: -0.001 | X19: -0.002 | Y19: -0.006 | Z19: -0.007 | AA19: 0.002 | AB19: -0.002 | AC19: -0.000 | AD19: -0.000 | AE19: -0.000 | AF19: -0.000 | AG19: 0.000 | AH19: 0.000 | AI19: -0.000 | AJ19: -0.000 | AK19: -0.000 | AL19: -0.000 | AM19: -0.47 | AN19: 0.29 | AO19: 0.12
A20: Length (m) | B20: 0.4117% | C20: 51.97 | D20: 52.18 | E20: 1.72 | F20: 0.07 | G20: 1.65 | H20: -0.016 | I20: 0.130 | J20: -0.000 | K20: -0.019 | L20: -0.020 | M20: -0.013 | N20: -0.008 | O20: -0.003 | P20: 0.001 | Q20: 0.005 | R20: -0.008 | S20: -0.003 | T20: 0.000 | U20: -0.003 | V20: -0.005 | W20: -0.006 | X20: -0.000 | Y20: 0.007 | Z20: -0.003 | AA20: -0.008 | AB20: -0.003 | AC20: -0.000 | AD20: -0.000 | AE20: -0.000 | AF20: -0.000 | AG20: 0.000 | AH20: -0.000 | AI20: -0.000 | AJ20: 0.000 | AK20: -0.000 | AL20: 0.000 | AM20: -0.39 | AN20: 0.27 | AO20: 0.08
A21: Height (m) | B21: 0.0008% | C21: 6.02 | D21: 6.02 | E21: 0.78 | F21: 0.12 | G21: 0.66 | H21: 0.008 | I21: 0.120 | J21: -0.010 | K21: 0.007 | L21: 0.009 | M21: 0.028 | N21: 0.007 | O21: -0.001 | P21: -0.010 | Q21: -0.001 | R21: -0.002 | S21: -0.007 | T21: -0.007 | U21: 0.023 | V21: -0.006 | W21: 0.003 | X21: 0.008 | Y21: 0.000 | Z21: -0.004 | AA21: -0.003 | AB21: 0.004 | AC21: 0.000 | AD21: -0.000 | AE21: 0.000 | AF21: -0.000 | AG21: 0.000 | AH21: 0.000 | AI21: 0.000 | AJ21: 0.000 | AK21: 0.000 | AL21: -0.000 | AM21: 0.67 | AN21: 0.26 | AO21: 0.04
A22: Width (m) | B22: 0.3173% | C22: 6.02 | D22: 6.00 | E22: 0.78 | F22: 0.13 | G22: 0.65 | H22: 0.003 | I22: 0.107 | J22: -0.001 | K22: 0.008 | L22: 0.005 | M22: 0.024 | N22: 0.010 | O22: 0.001 | P22: -0.009 | Q22: -0.001 | R22: 0.007 | S22: -0.003 | T22: -0.006 | U22: 0.014 | V22: 0.001 | W22: 0.004 | X22: 0.001 | Y22: 0.002 | Z22: 0.005 | AA22: 0.002 | AB22: -0.006 | AC22: -0.001 | AD22: 0.000 | AE22: -0.000 | AF22: 0.000 | AG22: -0.000 | AH22: -0.000 | AI22: -0.000 | AJ22: 0.000 | AK22: -0.000 | AL22: 0.000 | AM22: 0.19 | AN22: 0.15 | AO22: 0.04
A23: Finess Ratio | B23: 0.0007% | C23: 8.63 | D23: 8.63 | E23: 0.94 | F23: -0.05 | G23: 0.98 | H23: -0.018 | I23: 0.033 | J23: 0.004 | K23: -0.027 | L23: -0.038 | M23: -0.049 | N23: -0.017 | O23: -0.009 | P23: -0.011 | Q23: 0.025 | R23: -0.028 | S23: 0.001 | T23: -0.002 | U23: 0.008 | V23: -0.003 | W23: 0.010 | X23: -0.004 | Y23: -0.001 | Z23: 0.001 | AA23: 0.002 | AB23: 0.000 | AC23: -0.000 | AD23: 0.000 | AE23: -0.000 | AF23: 0.000 | AG23: -0.000 | AH23: -0.000 | AI23: -0.000 | AJ23: 0.000 | AK23: -0.000 | AL23: 0.000 | AM23: 1.50 | AN23: 0.12 | AO23: 0.04
A24: Area (m²) | B24: 2.0068% | C24: 367.70 | D24: 360.32 | E24: 2.56 | F24: 0.27 | G24: 2.28 | H24: -0.004 | I24: 0.293 | J24: -0.025 | K24: -0.021 | L24: 0.020 | M24: -0.027 | N24: 0.018 | O24: -0.006 | P24: -0.014 | Q24: -0.004 | R24: 0.006 | S24: -0.000 | T24: 0.005 | U24: -0.000 | V24: 0.009 | W24: -0.001 | X24: 0.002 | Y24: -0.002 | Z24: 0.001 | AA24: -0.002 | AB24: 0.000 | AC24: 0.000 | AD24: 0.001 | AE24: 0.000 | AF24: 0.000 | AG24: 0.000 | AH24: -0.000 | AI24: 0.000 | AJ24: 0.000 | AK24: -0.000 | AL24: 0.000 | AM24: 2.00 | AN24: 0.11 | AO24: 0.03
A25: Span (m) | B25: 0.0006% | C25: 50.40 | D25: 50.40 | E25: 1.70 | F25: 0.10 | G25: 1.60 | H25: -0.000 | I25: 0.138 | J25: -0.004 | K25: -0.005 | L25: 0.001 | M25: -0.008 | N25: 0.001 | O25: 0.000 | P25: -0.013 | Q25: -0.008 | R25: 0.010 | S25: 0.001 | T25: 0.003 | U25: 0.001 | V25: 0.003 | W25: 0.001 | X25: -0.006 | Y25: -0.003 | Z25: 0.002 | AA25: -0.003 | AB25: 0.000 | AC25: 0.000 | AD25: -0.000 | AE25: 0.000 | AF25: 0.000 | AG25: -0.000 | AH25: 0.000 | AI25: -0.000 | AJ25: -0.000 | AK25: 0.000 | AL25: -0.000 | AM25: -0.66 | AN25: 0.08 | AO25: 0.03
A26: MAC (m) | B26: 4.4120% | C26: 8.59 | D26: 8.21 | E26: 0.91 | F26: 0.16 | G26: 0.75 | H26: -0.004 | I26: 0.157 | J26: -0.014 | K26: -0.020 | L26: 0.018 | M26: -0.023 | N26: 0.016 | O26: -0.008 | P26: 0.002 | Q26: 0.000 | R26: -0.002 | S26: -0.003 | T26: -0.001 | U26: -0.001 | V26: 0.003 | W26: -0.002 | X26: 0.008 | Y26: 0.001 | Z26: 0.000 | AA26: 0.002 | AB26: 0.000 | AC26: 0.000 | AD26: -0.003 | AE26: 0.000 | AF26: -0.000 | AG26: 0.000 | AH26: 0.000 | AI26: 0.000 | AJ26: -0.000 | AK26: -0.000 | AL26: 0.000 | AM26: -0.54 | AN26: 0.05 | AO26: 0.02
A27: Aspect Ratio | B27: 2.0466% | C27: 6.91 | D27: 7.05 | E27: 0.85 | F27: -0.07 | G27: 0.92 | H27: 0.004 | I27: -0.017 | J27: 0.016 | K27: 0.010 | L27: -0.019 | M27: 0.012 | N27: -0.015 | O27: 0.006 | P27: -0.013 | Q27: -0.011 | R27: 0.014 | S27: 0.002 | T27: 0.002 | U27: 0.002 | V27: -0.003 | W27: 0.003 | X27: -0.015 | Y27: -0.005 | Z27: 0.003 | AA27: -0.004 | AB27: 0.000 | AC27: 0.001 | AD27: -0.001 | AE27: 0.000 | AF27: -0.000 | AG27: 0.000 | AH27: -0.000 | AI27: 0.000 | AJ27: 0.000 | AK27: -0.000 | AL27: 0.000 | AM27: 1.99 | AN27: 0.03 | AO27: 0.02
A28: Taper Ratio | B28: 0.7044% | C28: 0.22 | D28: 0.22 | E28: -0.65 | F28: -0.03 | G28: -0.62 | H28: -0.004 | I28: -0.015 | J28: -0.044 | K28: 0.029 | L28: 0.031 | M28: 0.026 | N28: -0.017 | O28: 0.001 | P28: -0.002 | Q28: 0.021 | R28: -0.025 | S28: 0.009 | T28: 0.007 | U28: 0.007 | V28: 0.014 | W28: -0.013 | X28: -0.007 | Y28: -0.001 | Z28: -0.000 | AA28: -0.001 | AB28: -0.000 | AC28: 0.000 | AD28: -0.000 | AE28: 0.000 | AF28: -0.000 | AG28: 0.000 | AH28: 0.000 | AI28: 0.000 | AJ28: -0.000 | AK28: -0.000 | AL28: 0.000 | AM28: 1.81 | AN28: 0.01 | AO28: 0.00
A29: 1/4 Chord Sweep (º) | B29: 1.6987% | C29: 35.00 | D29: 34.41 | E29: 1.54 | F29: 0.10 | G29: 1.44 | H29: -0.009 | I29: 0.072 | J29: 0.007 | K29: -0.023 | L29: 0.026 | M29: -0.021 | N29: 0.011 | O29: 0.004 | P29: 0.030 | Q29: -0.009 | R29: -0.010 | S29: -0.022 | T29: -0.009 | U29: 0.008 | V29: -0.006 | W29: -0.009 | X29: -0.010 | Y29: -0.004 | Z29: 0.002 | AA29: -0.000 | AB29: 0.000 | AC29: 0.000 | AD29: 0.000 | AE29: -0.000 | AF29: 0.000 | AG29: 0.000 | AH29: -0.000 | AI29: -0.000 | AJ29: 0.000 | AK29: 0.000 | AL29: -0.000 | AM29: -0.39 | AN29: 0.00 | AO29: 0.00
A30: Flap Span/Wing Span | B30: 0.0014% | C30: 0.68 | D30: 0.68 | E30: -0.17 | F30: -0.02 | G30: -0.14 | H30: -0.003 | I30: 0.017 | J30: 0.018 | K30: 0.006 | L30: -0.015 | M30: 0.008 | N30: 0.005 | O30: -0.055 | P30: 0.012 | Q30: 0.031 | R30: 0.030 | S30: -0.007 | T30: 0.003 | U30: 0.003 | V30: 0.002 | W30: -0.002 | X30: -0.002 | Y30: -0.001 | Z30: -0.000 | AA30: -0.000 | AB30: 0.000 | AC30: 0.000 | AD30: 0.000 | AE30: 0.000 | AF30: 0.000 | AG30: -0.000 | AH30: 0.000 | AI30: 0.000 | AJ30: 0.000 | AK30: 0.000 | AL30: 0.000 | AM30: 0.30 | AN30: 0.00 | AO30: 0.00
A31: Area (m²) | B31: 0.0016% | C31: 56.21 | D31: 56.21 | E31: 1.75 | F31: 0.26 | G31: 1.49 | H31: 0.021 | I31: 0.254 | J31: 0.001 | K31: 0.010 | L31: 0.050 | M31: 0.025 | N31: 0.013 | O31: -0.004 | P31: 0.008 | Q31: 0.011 | R31: -0.014 | S31: -0.001 | T31: 0.010 | U31: -0.008 | V31: -0.008 | W31: 0.015 | X31: -0.004 | Y31: 0.001 | Z31: 0.001 | AA31: -0.001 | AB31: 0.000 | AC31: -0.000 | AD31: -0.000 | AE31: 0.000 | AF31: -0.000 | AG31: 0.000 | AH31: -0.000 | AI31: -0.000 | AJ31: -0.000 | AK31: 0.000 | AL31: -0.000 | AM31: 0.60 | AN31: 0.00 | AO31: 0.00
A32: Height (m) | B32: 12.5268% | C32: 11.16 | D32: 9.76 | E32: 0.99 | F32: 0.16 | G32: 0.83 | H32: -0.001 | I32: 0.150 | J32: 0.018 | K32: 0.048 | L32: 0.011 | M32: -0.004 | N32: 0.022 | O32: 0.010 | P32: 0.004 | Q32: 0.012 | R32: -0.005 | S32: -0.001 | T32: 0.003 | U32: -0.003 | V32: -0.003 | W32: 0.005 | X32: -0.002 | Y32: 0.000 | Z32: 0.000 | AA32: -0.001 | AB32: 0.000 | AC32: -0.000 | AD32: -0.000 | AE32: 0.000 | AF32: 0.000 | AG32: -0.000 | AH32: 0.000 | AI32: 0.000 | AJ32: 0.000 | AK32: -0.000 | AL32: 0.000 | AM32: 0.02 | AN32: 0.00 | AO32: 0.00
A33: Aspect Ratio | B33: 23.4856% | C33: 2.22 | D33: 1.70 | E33: 0.23 | F33: 0.06 | G33: 0.17 | H33: -0.023 | I33: 0.046 | J33: 0.036 | K33: 0.086 | L33: -0.028 | M33: -0.033 | N33: 0.032 | O33: 0.025 | P33: 0.000 | Q33: 0.012 | R33: 0.004 | S33: -0.001 | T33: -0.004 | U33: 0.002 | V33: 0.003 | W33: -0.004 | X33: 0.001 | Y33: -0.000 | Z33: 0.000 | AA33: -0.001 | AB33: 0.000 | AC33: 0.000 | AD33: -0.000 | AE33: 0.000 | AF33: -0.000 | AG33: 0.000 | AH33: -0.000 | AI33: -0.000 | AJ33: -0.000 | AK33: 0.000 | AL33: -0.000 | AM33: 0.04 | AN33: 0.00 | AO33: 0.00
A34: Taper Ratio | B34: 19.0729% | C34: 0.48 | D34: 0.38 | E34: -0.42 | F34: -0.04 | G34: -0.37 | H34: 0.034 | I34: -0.106 | J34: -0.056 | K34: -0.066 | L34: -0.039 | M34: 0.031 | N34: 0.044 | O34: 0.031 | P34: 0.003 | Q34: 0.021 | R34: 0.004 | S34: -0.000 | T34: 0.003 | U34: -0.001 | V34: 0.001 | W34: -0.001 | X34: -0.003 | Y34: -0.001 | Z34: 0.000 | AA34: -0.000 | AB34: 0.000 | AC34: 0.000 | AD34: -0.000 | AE34: 0.000 | AF34: -0.000 | AG34: -0.000 | AH34: 0.000 | AI34: -0.000 | AJ34: 0.000 | AK34: 0.000 | AL34: 0.000 | AM34: 0.21 | AN34: 0.00 | AO34: 0.00
A35: mOE/mTO | B35: 1.3148% | C35: 0.58 | D35: 0.58 | E35: -0.24 | F35: 0.04 | G35: -0.28 | H35: 0.008 | I35: -0.027 | J35: 0.013 | K35: 0.001 | L35: 0.008 | M35: 0.008 | N35: 0.007 | O35: -0.005 | P35: -0.017 | Q35: 0.004 | R35: -0.002 | S35: -0.006 | T35: -0.008 | U35: -0.005 | V35: -0.005 | W35: -0.005 | X35: -0.005 | Y35: 0.004 | Z35: 0.000 | AA35: 0.002 | AB35: 0.001 | AC35: 0.001 | AD35: 0.000 | AE35: -0.000 | AF35: 0.000 | AG35: -0.000 | AH35: 0.000 | AI35: 0.000 | AJ35: 0.000 | AK35: -0.000 | AL35: -0.000 | AM35: -0.18 | AN35: 0.00 | AO35: 0.00
B36: =MAX(B5:B35) -> 23.4856%
A37: Ʃ | B37: =SUM(B5:B34) -> 80.7922%

Sheet SVD model 20 parameter
A1: Singulärwertzerlegung zur Ermittlung des Betriebsleermassenanteils von Flugzeugen
A2: Credit to Petter Krus, Linköping University Sweden
B4: Rel error | C4: DC10-10 | D4: Estimate | E4: Adjusted | F4: Result | G4: Average | AB4: SVD variables | AC4: w-diagonal | AD4: residual
A5: Max. wing load (kg/m2) | B5: =ABS((C5-D5)/C5) -> 0.7557% | C5: 519.05 | D5: =POWER(10,E5) -> 522.97 | E5: =F5+G5 -> 2.72 | F5: =MMULT(H5:AA24,AB5:AB24) -> -0.06 | G5: 2.77 | H5: -0.003 | I5: 0.055 | J5: -0.004 | K5: 0.030 | L5: -0.013 | M5: 0.036 | N5: -0.016 | O5: 0.013 | P5: -0.001 | Q5: 0.004 | R5: -0.004 | S5: 0.001 | T5: -0.001 | U5: 0.001 | V5: 0.000 | W5: -0.000 | X5: 0.000 | Y5: 0.000 | Z5: 0.000 | AA5: 0.000 | AB5: -0.27 | AC5: 30.98 | AD5: 0.83
A6: Thrust/Weight Ratio | B6: 0.0000% | C6: 0.29 | D6: 0.29 | E6: -0.54 | F6: -0.00 | G6: -0.54 | H6: -0.003 | I6: -0.025 | J6: 0.036 | K6: -0.003 | L6: 0.009 | M6: -0.002 | N6: 0.004 | O6: 0.018 | P6: 0.006 | Q6: 0.015 | R6: 0.014 | S6: -0.005 | T6: 0.001 | U6: -0.001 | V6: 0.001 | W6: 0.000 | X6: 0.000 | Y6: 0.000 | Z6: -0.000 | AA6: 0.000 | AB6: 0.76 | AC6: 7.75 | AD6: 0.50
A7: Max. payload | B7: 3.3113% | C7: 48330.00 | D7: 46729.64 | E7: 4.67 | F7: 0.27 | G7: 4.40 | H7: -0.013 | I7: 0.294 | J7: 0.005 | K7: 0.034 | L7: -0.021 | M7: -0.030 | N7: -0.018 | O7: 0.002 | P7: 0.004 | Q7: 0.001 | R7: 0.001 | S7: -0.000 | T7: 0.001 | U7: 0.001 | V7: -0.000 | W7: 0.000 | X7: -0.000 | Y7: 0.000 | Z7: -0.000 | AA7: -0.000 | AB7: -0.10 | AC7: 1.23 | AD7: 0.26
A8: Max. take-off | B8: 0.0535% | C8: 190854.00 | D8: 190956.20 | E8: 5.28 | F8: 0.22 | G8: 5.06 | H8: -0.008 | I8: 0.348 | J8: -0.029 | K8: -0.010 | L8: 0.001 | M8: 0.009 | N8: -0.013 | O8: 0.004 | P8: 0.003 | Q8: 0.000 | R8: 0.001 | S8: -0.001 | T8: 0.000 | U8: 0.001 | V8: 0.000 | W8: 0.000 | X8: 0.000 | Y8: -0.000 | Z8: -0.000 | AA8: 0.000 | AB8: 0.80 | AC8: 0.86 | AD8: 0.13
A9: Max. landing | B9: 0.0000% | C9: 164854.00 | D9: 164854.05 | E9: 5.22 | F9: 0.25 | G9: 4.97 | H9: -0.005 | I9: 0.310 | J9: -0.011 | K9: -0.001 | L9: 0.003 | M9: -0.001 | N9: 0.001 | O9: 0.000 | P9: -0.002 | Q9: 0.003 | R9: -0.003 | S9: -0.005 | T9: -0.008 | U9: 0.001 | V9: 0.003 | W9: -0.000 | X9: -0.000 | Y9: -0.000 | Z9: 0.000 | AA9: 0.000 | AB9: 0.96 | AC9: 0.81 | AD9: 0.07
A10: Static thrust (kN) | B10: 0.0000% | C10: 178.00 | D10: 178.00 | E10: 2.25 | F10: 0.14 | G10: 2.11 | H10: -0.015 | I10: 0.267 | J10: 0.123 | K10: -0.021 | L10: 0.010 | M10: 0.014 | N10: -0.008 | O10: -0.004 | P10: -0.002 | Q10: -0.006 | R10: -0.002 | S10: 0.001 | T10: 0.000 | U10: 0.000 | V10: -0.001 | W10: 0.000 | X10: 0.000 | Y10: -0.000 | Z10: 0.000 | AA10: -0.000 | AB10: -2.00 | AC10: 0.66 | AD10: 0.07
A11: Max. seats (single class) | B11: 0.0050% | C11: 380.00 | D11: 380.02 | E11: 2.58 | F11: 0.23 | G11: 2.35 | H11: -0.004 | I11: 0.271 | J11: -0.005 | K11: 0.030 | L11: -0.016 | M11: 0.015 | N11: 0.017 | O11: -0.010 | P11: -0.023 | Q11: -0.001 | R11: 0.007 | S11: -0.004 | T11: 0.004 | U11: 0.000 | V11: 0.000 | W11: 0.000 | X11: -0.000 | Y11: 0.000 | Z11: 0.000 | AA11: -0.000 | AB11: 1.67 | AC11: 0.49 | AD11: 0.07
A12: Hold volume (m³) | B12: 0.0002% | C12: 132.20 | D12: 132.20 | E12: 2.12 | F12: 0.82 | G12: 1.30 | H12: -2.740 | I12: 0.096 | J12: 0.000 | K12: 0.019 | L12: -0.005 | M12: 0.016 | N12: 0.014 | O12: -0.009 | P12: 0.017 | Q12: -0.001 | R12: 0.001 | S12: -0.000 | T12: 0.000 | U12: -0.000 | V12: -0.000 | W12: -0.000 | X12: 0.000 | Y12: -0.000 | Z12: 0.000 | AA12: 0.000 | AB12: -1.05 | AC12: 0.34 | AD12: 0.05
A13: Volume per passenger | B13: 0.0002% | C13: 0.35 | D13: 0.35 | E13: -0.46 | F13: 0.52 | G13: -0.98 | H13: -2.337 | I13: -0.120 | J13: -0.001 | K13: -0.022 | L13: 0.007 | M13: -0.019 | N13: -0.016 | O13: 0.011 | P13: -0.020 | Q13: 0.001 | R13: -0.001 | S13: 0.000 | T13: -0.000 | U13: 0.000 | V13: 0.000 | W13: 0.000 | X13: -0.000 | Y13: 0.000 | Z13: -0.000 | AA13: -0.000 | AB13: 0.11 | AC13: 0.31 | AD13: 0.04
A14: Zero-fuel | B14: 0.0001% | C14: 151956.00 | D14: 151955.92 | E14: 5.18 | F14: 0.25 | G14: 4.94 | H14: -0.004 | I14: 0.311 | J14: -0.010 | K14: 0.002 | L14: 0.003 | M14: -0.003 | N14: -0.001 | O14: 0.002 | P14: -0.001 | Q14: 0.007 | R14: -0.006 | S14: 0.001 | T14: -0.000 | U14: -0.005 | V14: -0.003 | W14: 0.000 | X14: 0.000 | Y14: 0.000 | Z14: -0.000 | AA14: 0.000 | AB14: 0.83 | AC14: 0.28 | AD14: 0.04
A15: Operational empty | B15: 0.5809% | C15: 111344.00 | D15: 110697.26 | E15: 5.04 | F15: 0.26 | G15: 4.78 | H15: 0.000 | I15: 0.321 | J15: -0.014 | K15: -0.008 | L15: 0.011 | M15: -0.000 | N15: 0.005 | O15: 0.006 | P15: 0.001 | Q15: 0.010 | R15: -0.004 | S15: 0.002 | T15: 0.002 | U15: 0.002 | V15: -0.001 | W15: 0.000 | X15: 0.000 | Y15: 0.000 | Z15: 0.000 | AA15: -0.000 | AB15: 0.23 | AC15: 0.19 | AD15: 0.05
A16: Ops empty/Max. T/O | B16: 0.6341% | C16: 0.58 | D16: 0.58 | E16: -0.24 | F16: 0.04 | G16: -0.28 | H16: 0.008 | I16: -0.027 | J16: 0.015 | K16: 0.001 | L16: 0.010 | M16: -0.009 | N16: 0.019 | O16: 0.002 | P16: -0.002 | Q16: 0.010 | R16: -0.005 | S16: 0.003 | T16: 0.001 | U16: 0.001 | V16: -0.001 | W16: -0.000 | X16: -0.000 | Y16: -0.000 | Z16: -0.000 | AA16: -0.000 | AB16: -0.73 | AC16: 0.16 | AD16: 0.04
A17: Max. payload/Max. T/O | B17: 3.3631% | C17: 0.25 | D17: 0.24 | E17: -0.61 | F17: 0.04 | G17: -0.66 | H17: -0.006 | I17: -0.054 | J17: 0.034 | K17: 0.044 | L17: -0.021 | M17: -0.039 | N17: -0.005 | O17: -0.002 | P17: 0.002 | Q17: 0.000 | R17: -0.000 | S17: 0.000 | T17: 0.000 | U17: 0.000 | V17: -0.001 | W17: -0.000 | X17: 0.000 | Y17: -0.000 | Z17: 0.000 | AA17: 0.000 | AB17: 1.08 | AC17: 0.13 | AD17: 0.04
A18: Max. landing/Max. T/O | B18: 0.0535% | C18: 0.86 | D18: 0.86 | E18: -0.06 | F18: 0.02 | G18: -0.09 | H18: 0.003 | I18: -0.038 | J18: 0.018 | K18: 0.009 | L18: 0.003 | M18: -0.010 | N18: 0.015 | O18: -0.003 | P18: -0.004 | Q18: 0.002 | R18: -0.004 | S18: -0.004 | T18: -0.008 | U18: -0.000 | V18: 0.003 | W18: 0.000 | X18: 0.000 | Y18: 0.000 | Z18: -0.000 | AA18: -0.000 | AB18: 0.39 | AC18: 0.06 | AD18: 0.02
A19: Length (m) | B19: 0.0000% | C19: 51.97 | D19: 51.97 | E19: 1.72 | F19: 0.07 | G19: 1.65 | H19: -0.016 | I19: 0.131 | J19: 0.002 | K19: -0.010 | L19: -0.027 | M19: 0.000 | N19: 0.004 | O19: -0.001 | P19: -0.002 | Q19: 0.003 | R19: 0.006 | S19: 0.015 | T19: -0.003 | U19: -0.001 | V19: 0.003 | W19: 0.000 | X19: -0.000 | Y19: 0.000 | Z19: -0.000 | AA19: 0.000 | AB19: 0.83 | AC19: 0.09 | AD19: 0.02
A20: Height (m) | B20: 0.0000% | C20: 6.02 | D20: 6.02 | E20: 0.78 | F20: 0.12 | G20: 0.66 | H20: 0.008 | I20: 0.119 | J20: -0.007 | K20: 0.019 | L20: 0.025 | M20: -0.005 | N20: 0.016 | O20: 0.018 | P20: -0.001 | Q20: -0.017 | R20: 0.005 | S20: 0.003 | T20: -0.004 | U20: 0.000 | V20: -0.004 | W20: 0.000 | X20: 0.000 | Y20: -0.000 | Z20: -0.000 | AA20: 0.000 | AB20: 0.31 | AC20: 0.00 | AD20: 0.00
A21: Width (m) | B21: 0.0001% | C21: 6.02 | D21: 6.02 | E21: 0.78 | F21: 0.13 | G21: 0.65 | H21: 0.003 | I21: 0.106 | J21: 0.000 | K21: 0.017 | L21: 0.023 | M21: -0.005 | N21: 0.009 | O21: 0.010 | P21: 0.002 | Q21: -0.010 | R21: -0.006 | S21: 0.001 | T21: 0.006 | U21: -0.001 | V21: 0.007 | W21: -0.000 | X21: -0.000 | Y21: 0.000 | Z21: -0.000 | AA21: -0.000 | AB21: 0.01 | AC21: 0.00 | AD21: 0.00
A22: Finess Ratio | B22: 0.0000% | C22: 8.63 | D22: 8.63 | E22: 0.94 | F22: -0.05 | G22: 0.98 | H22: -0.018 | I22: 0.034 | J22: 0.005 | K22: -0.034 | L22: -0.070 | M22: -0.002 | N22: 0.017 | O22: 0.013 | P22: 0.002 | Q22: -0.006 | R22: -0.004 | S22: -0.004 | T22: 0.001 | U22: 0.000 | V22: -0.000 | W22: -0.000 | X22: -0.000 | Y22: 0.000 | Z22: 0.000 | AA22: -0.000 | AB22: 0.71 | AC22: 0.00 | AD22: 0.00
A23: Area (m²) | B23: 0.6969% | C23: 367.70 | D23: 365.14 | E23: 2.56 | F23: 0.28 | G23: 2.28 | H23: -0.004 | I23: 0.293 | J23: -0.025 | K23: -0.040 | L23: 0.013 | M23: -0.028 | N23: 0.002 | O23: -0.009 | P23: 0.004 | Q23: -0.004 | R23: 0.005 | S23: -0.002 | T23: 0.001 | U23: 0.000 | V23: 0.000 | W23: -0.000 | X23: 0.000 | Y23: -0.000 | Z23: -0.000 | AA23: 0.000 | AB23: -0.62 | AC23: 0.00 | AD23: 0.00
A24: mOE/mTO | B24: 0.6341% | C24: 0.58 | D24: 0.58 | E24: -0.24 | F24: 0.04 | G24: -0.28 | H24: 0.008 | I24: -0.027 | J24: 0.015 | K24: 0.001 | L24: 0.010 | M24: -0.009 | N24: 0.019 | O24: 0.002 | P24: -0.002 | Q24: 0.010 | R24: -0.005 | S24: 0.003 | T24: 0.001 | U24: 0.001 | V24: -0.001 | W24: -0.000 | X24: -0.000 | Y24: -0.000 | Z24: -0.000 | AA24: 0.000 | AB24: 0.10 | AC24: 0.00 | AD24: 0.00
B25: =MAX(B5:B24) -> 3.3631%
A26: Ʃ | B26: =SUM(B5:B23) -> 9.4545%

Sheet SVD model 15 parameters
A1: Singulärwertzerlegung zur Ermittlung des Betriebsleermassenanteils von Flugzeugen
A2: Credit to Petter Krus, Linköping University Sweden
B4: Rel error | C4: DC10-10 | D4: Estimate | E4: Adjusted | F4: Result | G4: Average | X4: SVD variables | Y4: w-diagonal | Z4: residual
A5: Max. wing load (kg/m2) | B5: =ABS((C5-D5)/C5) -> 1.5525% | C5: 519.05 | D5: =POWER(10,E5) -> 527.11 | E5: =F5+G5 -> 2.72 | F5: =MMULT(H5:W20,X5:X20) -> -0.05 | G5: 2.77 | H5: -0.003 | I5: 0.056 | J5: -0.008 | K5: 0.015 | L5: -0.038 | M5: 0.019 | N5: -0.018 | O5: 0.010 | P5: -0.012 | Q5: 0.001 | R5: -0.001 | S5: 0.000 | T5: 0.000 | U5: 0.000 | V5: 0.000 | W5: 0.000 | X5: -0.27 | Y5: 30.98 | Z5: 0.83
A6: Thrust/Weight Ratio | B6: 0.0000% | C6: 0.29 | D6: 0.29 | E6: -0.54 | F6: -0.00 | G6: -0.54 | H6: -0.003 | I6: -0.025 | J6: 0.032 | K6: -0.003 | L6: 0.008 | M6: -0.008 | N6: -0.031 | O6: 0.005 | P6: 0.008 | Q6: 0.001 | R6: 0.001 | S6: 0.001 | T6: 0.000 | U6: -0.000 | V6: 0.000 | W6: -0.000 | X6: 0.74 | Y6: 7.12 | Z6: 0.50
A7: Max. payload | B7: 0.1539% | C7: 48330.00 | D7: 48404.39 | E7: 4.68 | F7: 0.28 | G7: 4.40 | H7: -0.013 | I7: 0.295 | J7: 0.002 | K7: 0.045 | L7: 0.021 | M7: 0.014 | N7: -0.001 | O7: -0.004 | P7: 0.000 | Q7: -0.001 | R7: -0.001 | S7: 0.000 | T7: -0.000 | U7: 0.000 | V7: 0.000 | W7: 0.000 | X7: -0.13 | Y7: 1.59 | Z7: 0.36
A8: Max. take-off | B8: 0.1541% | C8: 190854.00 | D8: 191148.11 | E8: 5.28 | F8: 0.22 | G8: 5.06 | H8: -0.008 | I8: 0.348 | J8: -0.028 | K8: -0.017 | L8: 0.003 | M8: 0.012 | N8: 0.002 | O8: -0.003 | P8: 0.001 | Q8: -0.001 | R8: -0.001 | S8: 0.000 | T8: -0.000 | U8: -0.000 | V8: -0.000 | W8: -0.000 | X8: 1.29 | Y8: 0.78 | Z8: 0.12
A9: Max. landing | B9: 0.0000% | C9: 164854.00 | D9: 164853.94 | E9: 5.22 | F9: 0.25 | G9: 4.97 | H9: -0.005 | I9: 0.310 | J9: -0.011 | K9: -0.005 | L9: 0.007 | M9: -0.004 | N9: 0.004 | O9: 0.000 | P9: -0.001 | Q9: 0.009 | R9: -0.001 | S9: 0.000 | T9: 0.000 | U9: 0.000 | V9: -0.000 | W9: 0.000 | X9: 1.44 | Y9: 0.59 | Z9: 0.09
A10: Static thrust (kN) | B10: 0.0001% | C10: 178.00 | D10: 178.00 | E10: 2.25 | F10: 0.14 | G10: 2.11 | H10: -0.015 | I10: 0.266 | J10: 0.125 | K10: -0.021 | L10: 0.001 | M10: 0.007 | N10: -0.010 | O10: 0.000 | P10: 0.004 | Q10: -0.000 | R10: -0.000 | S10: -0.001 | T10: -0.000 | U10: 0.000 | V10: -0.000 | W10: 0.000 | X10: -2.00 | Y10: 0.47 | Z10: 0.06
A11: Max. seats (single class) | B11: 0.0023% | C11: 380.00 | D11: 379.99 | E11: 2.58 | F11: 0.23 | G11: 2.35 | H11: -0.004 | I11: 0.272 | J11: -0.006 | K11: 0.023 | L11: -0.025 | M11: -0.015 | N11: 0.013 | O11: 0.021 | P11: 0.009 | Q11: -0.002 | R11: 0.000 | S11: -0.000 | T11: -0.000 | U11: 0.000 | V11: 0.000 | W11: -0.000 | X11: 0.33 | Y11: 0.39 | Z11: 0.04
A12: Hold volume (m³) | B12: 0.0002% | C12: 132.20 | D12: 132.20 | E12: 2.12 | F12: 0.82 | G12: 1.30 | H12: -2.739 | I12: 0.097 | J12: -0.001 | K12: 0.011 | L12: -0.023 | M12: -0.013 | N12: -0.004 | O12: -0.016 | P12: 0.002 | Q12: -0.000 | R12: 0.000 | S12: -0.000 | T12: 0.000 | U12: -0.000 | V12: -0.000 | W12: 0.000 | X12: -0.39 | Y12: 0.30 | Z12: 0.04
A13: Volume per passenger | B13: 0.1262% | C13: 0.35 | D13: 0.35 | E13: -0.46 | F13: 0.52 | G13: -0.98 | H13: -2.337 | I13: -0.120 | J13: -0.000 | K13: -0.013 | L13: 0.027 | M13: 0.015 | N13: 0.004 | O13: 0.019 | P13: -0.002 | Q13: 0.000 | R13: -0.000 | S13: 0.000 | T13: -0.000 | U13: 0.000 | V13: 0.000 | W13: -0.000 | X13: 1.02 | Y13: 0.20 | Z13: 0.04
A14: No. of engines | B14: 0.0000% | C14: 3.00 | D14: 3.00 | E14: 0.48 | F14: 0.08 | G14: 0.40 | H14: 0.004 | I14: 0.056 | J14: -0.121 | K14: 0.000 | L14: 0.011 | M14: -0.003 | N14: -0.020 | O14: 0.002 | P14: 0.005 | Q14: 0.001 | R14: -0.000 | S14: -0.001 | T14: -0.000 | U14: 0.000 | V14: -0.000 | W14: 0.000 | X14: 0.15 | Y14: 0.13 | Z14: 0.01
A15: Zero-fuel | B15: 0.0000% | C15: 151956.00 | D15: 151955.99 | E15: 5.18 | F15: 0.25 | G15: 4.94 | H15: -0.004 | I15: 0.311 | J15: -0.010 | K15: -0.003 | L15: 0.009 | M15: -0.004 | N15: 0.001 | O15: 0.001 | P15: -0.007 | Q15: -0.002 | R15: 0.006 | S15: 0.000 | T15: -0.000 | U15: -0.000 | V15: -0.000 | W15: 0.000 | X15: 0.56 | Y15: 0.06 | Z15: 0.01
A16: Operational empty | B16: 4.0190% | C16: 111344.00 | D16: 106869.08 | E16: 5.03 | F16: 0.25 | G16: 4.78 | H16: 0.000 | I16: 0.321 | J16: -0.014 | K16: -0.016 | L16: 0.011 | M16: -0.011 | N16: -0.003 | O16: 0.000 | P16: -0.006 | Q16: -0.003 | R16: -0.002 | S16: 0.000 | T16: 0.000 | U16: -0.000 | V16: 0.000 | W16: 0.000 | X16: 0.05 | Y16: 0.01 | Z16: 0.00
A17: Ops empty/Max. T/O | B17: 4.1667% | C17: 0.58 | D17: 0.56 | E17: -0.25 | F17: 0.02 | G17: -0.28 | H17: 0.008 | I17: -0.027 | J17: 0.014 | K17: 0.001 | L17: 0.008 | M17: -0.023 | N17: -0.005 | O17: 0.003 | P17: -0.007 | Q17: -0.003 | R17: -0.001 | S17: -0.000 | T17: -0.000 | U17: 0.000 | V17: -0.000 | W17: -0.000 | X17: 1.22 | Y17: 0.00 | Z17: 0.00
A18: Max. payload/Max. T/O | B18: 0.0002% | C18: 0.25 | D18: 0.25 | E18: -0.60 | F18: 0.06 | G18: -0.66 | H18: -0.006 | I18: -0.053 | J18: 0.030 | K18: 0.062 | L18: 0.018 | M18: 0.002 | N18: -0.003 | O18: -0.001 | P18: -0.001 | Q18: -0.001 | R18: 0.000 | S18: -0.000 | T18: 0.000 | U18: -0.000 | V18: -0.000 | W18: -0.000 | X18: -0.65 | Y18: 0.00 | Z18: 0.00
A19: Max. landing/Max. T/O | B19: 0.1539% | C19: 0.86 | D19: 0.86 | E19: -0.06 | F19: 0.02 | G19: -0.09 | H19: 0.003 | I19: -0.038 | J19: 0.017 | K19: 0.012 | L19: 0.004 | M19: -0.017 | N19: 0.002 | O19: 0.003 | P19: -0.002 | Q19: 0.010 | R19: 0.000 | S19: -0.000 | T19: -0.000 | U19: -0.000 | V19: 0.000 | W19: 0.000 | X19: 0.42 | Y19: 0.00 | Z19: 0.00
A20: mOE/mTO | B20: 4.1667% | C20: 0.58 | D20: 0.56 | E20: -0.25 | F20: 0.02 | G20: -0.28 | H20: 0.008 | I20: -0.027 | J20: 0.014 | K20: 0.001 | L20: 0.008 | M20: -0.023 | N20: -0.005 | O20: 0.003 | P20: -0.007 | Q20: -0.003 | R20: -0.001 | S20: -0.000 | T20: -0.000 | U20: 0.000 | V20: -0.000 | W20: 0.000 | X20: 1.01 | Y20: 0.00 | Z20: 0.00
B21: =MAX(B5:B20) -> 4.1667%
A22: Ʃ | B22: =SUM(B5:B19) -> 10.3292%

Sheet SVD model 10 parameters
A1: Singulärwertzerlegung zur Ermittlung des Betriebsleermassenanteils von Flugzeugen
A2: Credit to Petter Krus, Linköping University Sweden
B4: Rel error | C4: DC10-10 | D4: Estimate | E4: Adjusted | F4: Result | G4: Average | S4: SVD variables | T4: w-diagonal | U4: residual
A5: Max. wing load (kg/m2) | B5: =ABS((C5-D5)/C5) -> 0.0000% | C5: 519.05 | D5: =POWER(10,E5) -> 519.05 | E5: =F5+G5 -> 2.72 | F5: =MMULT(H5:R15,S5:S15) -> -0.06 | G5: 2.77 | H5: -0.003 | I5: 0.057 | J5: -0.010 | K5: 0.036 | L5: -0.012 | M5: 0.031 | N5: -0.008 | O5: 0.005 | P5: -0.006 | Q5: 0.000 | R5: 0.000 | S5: -0.27 | T5: 30.98 | U5: 0.83
A6: Thrust/Weight Ratio | B6: 0.0000% | C6: 0.29 | D6: 0.29 | E6: -0.54 | F6: -0.00 | G6: -0.54 | H6: -0.003 | I6: -0.025 | J6: 0.032 | K6: -0.006 | L6: -0.001 | M6: 0.015 | N6: 0.029 | O6: 0.008 | P6: 0.004 | Q6: 0.002 | R6: 0.001 | S6: 0.74 | T6: 5.97 | U6: 0.50
A7: Max. payload | B7: 0.0000% | C7: 48330.00 | D7: 48330.00 | E7: 4.68 | F7: 0.28 | G7: 4.40 | H7: -0.013 | I7: 0.295 | J7: -0.009 | K7: 0.001 | L7: 0.045 | M7: 0.011 | N7: 0.002 | O7: -0.006 | P7: -0.000 | Q7: -0.001 | R7: -0.000 | S7: -0.30 | T7: 1.55 | U7: 0.37
A8: Max. take-off | B8: 0.0014% | C8: 190854.00 | D8: 190856.59 | E8: 5.28 | F8: 0.22 | G8: 5.06 | H8: -0.008 | I8: 0.347 | J8: -0.034 | K8: -0.022 | L8: -0.018 | M8: 0.003 | N8: -0.009 | O8: -0.005 | P8: 0.001 | Q8: -0.004 | R8: 0.001 | S8: -0.25 | T8: 0.59 | U8: 0.11
A9: Max. landing | B9: 0.0000% | C9: 164854.00 | D9: 164854.00 | E9: 5.22 | F9: 0.25 | G9: 4.97 | H9: -0.005 | I9: 0.309 | J9: -0.017 | K9: -0.015 | L9: -0.006 | M9: -0.008 | N9: 0.001 | O9: 0.001 | P9: -0.007 | Q9: 0.006 | R9: 0.000 | S9: 1.65 | T9: 0.46 | U9: 0.05
A10: Static thrust (kN) | B10: 0.0000% | C10: 178.00 | D10: 178.00 | E10: 2.25 | F10: 0.14 | G10: 2.11 | H10: -0.015 | I10: 0.269 | J10: 0.120 | K10: -0.013 | L10: -0.012 | M10: 0.008 | N10: 0.004 | O10: 0.001 | P10: 0.002 | Q10: -0.001 | R10: -0.001 | S10: -1.81 | T10: 0.39 | U10: 0.05
A11: Max. seats (single class) | B11: 0.0067% | C11: 380.00 | D11: 379.97 | E11: 2.58 | F11: 0.23 | G11: 2.35 | H11: -0.004 | I11: 0.272 | J11: -0.013 | K11: 0.030 | L11: 0.001 | M11: -0.017 | N11: -0.002 | O11: 0.023 | P11: 0.005 | Q11: -0.000 | R11: -0.000 | S11: 1.63 | T11: 0.37 | U11: 0.05
A12: Hold volume (m³) | B12: 0.0000% | C12: 132.20 | D12: 132.20 | E12: 2.12 | F12: 0.82 | G12: 1.30 | H12: -2.739 | I12: 0.098 | J12: -0.004 | K12: 0.025 | L12: -0.007 | M12: -0.007 | N12: 0.011 | O12: -0.014 | P12: 0.001 | Q12: -0.000 | R12: -0.000 | S12: -0.04 | T12: 0.30 | U12: 0.04
A13: Volume per passenger | B13: 0.0000% | C13: 0.35 | D13: 0.35 | E13: -0.46 | F13: 0.52 | G13: -0.98 | H13: -2.337 | I13: -0.121 | J13: 0.003 | K13: -0.029 | L13: 0.008 | M13: 0.008 | N13: -0.012 | O13: 0.017 | P13: -0.001 | Q13: 0.000 | R13: 0.000 | S13: 1.04 | T13: 0.14 | U13: 0.04
A14: No. of engines | B14: 0.0000% | C14: 3.00 | D14: 3.00 | E14: 0.48 | F14: 0.08 | G14: 0.40 | H14: 0.004 | I14: 0.053 | J14: -0.122 | K14: -0.015 | L14: -0.008 | M14: 0.010 | N14: 0.016 | O14: 0.003 | P14: 0.002 | Q14: -0.001 | R14: -0.001 | S14: 0.90 | T14: 0.08 | U14: 0.00
A15: mOE/mTO | B15: 6.1756% | C15: 0.58 | D15: 0.55 | E15: -0.26 | F15: 0.02 | G15: -0.28 | H15: 0.008 | I15: -0.027 | J15: 0.014 | K15: -0.001 | L15: 0.004 | M15: -0.012 | N15: 0.018 | O15: 0.006 | P15: -0.012 | Q15: -0.004 | R15: 0.000 | S15: -0.39 | T15: 0.01 | U15: 0.00
B16: =MAX(B5:B15) -> 6.1756%
A17: Ʃ | B17: =SUM(B5:B14) -> 0.0080%

Sheet SVD model 6 parameters
A1: Singulärwertzerlegung zur Ermittlung des Betriebsleermassenanteils von Flugzeugen
A2: Credit to Petter Krus, Linköping University Sweden
C4: Rel error | D4: DC10-10 | E4: Estimate | F4: Adjusted | G4: Result | H4: Average | P4: SVD variables | Q4: w-diagonal | R4: residual
B5: T/W [kN/kg] | C5: =ABS((D5-E5)/D5) -> 0.0001% | D5: 0.29 | E5: =POWER(10,F5) -> 0.29 | F5: =G5+H5 -> -0.54 | G5: =MMULT(I5:O11,P5:P11) -> 0.01 | H5: -0.54 | I5: -0.029 | J5: 0.023 | K5: -0.001 | L5: 0.017 | M5: -0.038 | N5: 0.004 | O5: -0.002 | P5: 0.77 | Q5: 3.08 | R5: 0.43
B6: W/S [N/m²] | C6: 0.0001% | D6: 519.05 | E6: 519.05 | F6: 2.72 | G6: -0.05 | H6: 2.77 | I6: 0.063 | J6: -0.006 | K6: 0.004 | L6: -0.046 | M6: -0.017 | N6: -0.004 | O6: 0.001 | P6: -0.05 | Q6: 0.92 | R6: 0.35
B7: design range [nm] | C7: 0.0003% | D7: 4000.00 | E7: 3999.99 | F7: 3.60 | G7: 0.12 | H7: 3.49 | I7: 0.250 | J7: 0.001 | K7: 0.067 | L7: 0.009 | M7: -0.001 | N7: -0.000 | O7: 0.001 | P7: -1.38 | Q7: 0.65 | R7: 0.09
B8: max Payload [kg] | C8: 0.0002% | D8: 48330.00 | E8: 48329.90 | F8: 4.68 | G8: 0.32 | H8: 4.37 | I8: 0.308 | J8: 0.026 | K8: -0.053 | L8: 0.004 | M8: 0.001 | N8: -0.000 | O8: -0.001 | P8: 1.98 | Q8: 0.40 | R8: 0.05
B9: number of engines | C9: 0.0000% | D9: 3.00 | E9: 3.00 | F9: 0.48 | G9: 0.08 | H9: 0.40 | I9: 0.061 | J9: -0.117 | K9: -0.012 | L9: 0.007 | M9: -0.007 | N9: 0.001 | O9: 0.000 | P9: 0.19 | Q9: 0.32 | R9: 0.06
B10: cruise speed [kt] | C10: 0.0001% | D10: 475.00 | E10: 475.00 | F10: 2.68 | G10: -0.01 | H10: 2.69 | I10: 0.010 | J10: 0.006 | K10: -0.002 | L10: -0.008 | M10: 0.002 | N10: 0.015 | O10: 0.009 | P10: 0.10 | Q10: 0.14 | R10: 0.05
B11: m_OE / m_MTO | C11: 6.5900% | D11: 0.58 | E11: 0.54 | F11: -0.27 | G11: 0.01 | H11: -0.27 | I11: -0.028 | J11: 0.006 | K11: -0.007 | L11: 0.015 | M11: -0.007 | N11: -0.010 | O11: 0.011 | P11: -0.67 | Q11: 0.11 | R11: 0.03
B12: Ʃ | C12: =SUM(C5:C10) -> 0.0008%

Sheet SVD model
A1: Singulärwertzerlegung zur Ermittlung des Betriebsleermassenanteils von Flugzeugen
A2: Credit to Petter Krus, Linköping University Sweden
C4: Rel error | D4: DC10-10 | E4: Estimate | F4: Adjusted | G4: Result | H4: Average | P4: SVD variables | Q4: w-diagonal | R4: residual
B5: T/W [kN/kg] | C5: =ABS((D5-E5)/D5) -> 0.000% | D5: 0.29 | E5: =POWER(10,F5) -> 0.29 | F5: =G5+H5 -> -0.54 | G5: =MMULT(I5:O11,P5:P11) -> 0.01 | H5: -0.54 | I5: -0.029 | J5: 0.023 | K5: -0.001 | L5: 0.017 | M5: -0.038 | N5: 0.004 | O5: -0.002 | P5: 0.77 | Q5: 3.08 | R5: 0.43
B6: W/S [N/m²] | C6: 0.023% | D6: 519.05 | E6: 519.17 | F6: 2.72 | G6: -0.05 | H6: 2.77 | I6: 0.063 | J6: -0.006 | K6: 0.004 | L6: -0.046 | M6: -0.017 | N6: -0.004 | O6: 0.001 | P6: -0.05 | Q6: 0.92 | R6: 0.35
B7: design range [nm] | C7: 0.000% | D7: 4000.00 | E7: 4000.00 | F7: 3.60 | G7: 0.12 | H7: 3.49 | I7: 0.250 | J7: 0.001 | K7: 0.067 | L7: 0.009 | M7: -0.001 | N7: -0.000 | O7: 0.001 | P7: -1.38 | Q7: 0.65 | R7: 0.09
B8: max Payload [kg] | C8: 0.000% | D8: 48330.00 | E8: 48330.00 | F8: 4.68 | G8: 0.32 | H8: 4.37 | I8: 0.308 | J8: 0.026 | K8: -0.053 | L8: 0.004 | M8: 0.001 | N8: -0.000 | O8: -0.001 | P8: 2.00 | Q8: 0.40 | R8: 0.05
B9: number of engines | C9: 0.000% | D9: 3.00 | E9: 3.00 | F9: 0.48 | G9: 0.08 | H9: 0.40 | I9: 0.061 | J9: -0.117 | K9: -0.012 | L9: 0.007 | M9: -0.007 | N9: 0.001 | O9: 0.000 | P9: 0.18 | Q9: 0.32 | R9: 0.06
B10: cruise speed [kt] | C10: 0.000% | D10: 475.00 | E10: 475.00 | F10: 2.68 | G10: -0.01 | H10: 2.69 | I10: 0.010 | J10: 0.006 | K10: -0.002 | L10: -0.008 | M10: 0.002 | N10: 0.015 | O10: 0.009 | P10: -0.02 | Q10: 0.14 | R10: 0.05
B11: m_OE / m_MTO | C11: 5.651% | D11: 0.58 | E11: 0.55 | F11: -0.26 | G11: 0.01 | H11: -0.27 | I11: -0.028 | J11: 0.006 | K11: -0.007 | L11: 0.015 | M11: -0.007 | N11: -0.010 | O11: 0.011 | P11: -0.43 | Q11: 0.11 | R11: 0.03
B12: Ʃ | C12: =SUM(C5:C10) -> 0.023%

Sheet SVD
A1: Singular Value Decomposition (SVD)
A2: X=U w transpose(v) X is a selection representing the X matrix
A3: U
A4: 0.0806723082 | B4: 0.1594641106 | C4: -0.06972719294 | D4: -0.02045970709 | E4: -0.09378056364 | F4: -0.08051127792 | G4: -0.1622120484
A5: 0.06533251312 | B5: 0.1381527253 | C5: 0.05302232733 | D5: -0.06254861844 | E5: -0.1294500254 | F5: -0.1114751963 | G5: -0.01722943557
A6: -0.08163125687 | B6: 0.08252449725 | C6: -0.1158682539 | D6: 0.04184698393 | E6: -0.05666731005 | F6: -0.07489207543 | G6: 0.198142788
A7: -0.03671314439 | B7: 0.08561243813 | C7: 0.03243229166 | D7: -0.054051925 | E7: -0.07883995265 | F7: -0.06363844475 | G7: 0.08305076364
A8: -0.01458367432 | B8: 0.1033644548 | C8: -0.03029773808 | D8: -0.2089796887 | E8: -0.24439396 | F8: -0.0962538754 | G8: -0.02188239901
A9: 0.1085338256 | B9: 0.1375028863 | C9: 0.2173734078 | D9: 0.03473902535 | E9: 0.07818300905 | F9: -0.1232322513 | G9: 0.08303195263
A10: 0.1069512831 | B10: 0.1712566642 | C10: -0.08063790931 | D10: 0.0717860259 | E10: 0.07577115136 | F10: -0.06188389183 | G10: 0.08166169929
A11: 0.1734466831 | B11: -0.1647035756 | C11: 0.1101135626 | D11: -0.0261455286 | E11: 0.149605633 | F11: 0.01029809941 | G11: 0.07232671726
A12: 0.1688519775 | B12: -0.1641233596 | C12: 0.1065944965 | D12: -0.06165855618 | E12: 0.06266181472 | F12: -0.02537637552 | G12: 0.1255692794
A13: 0.1925913938 | B13: -0.148788283 | C13: 0.1700541899 | D13: -0.09429048795 | E13: -0.140457672 | F13: 0.01480750074 | G13: 0.05800802487
A14: 0.2019941651 | B14: -0.1220856352 | C14: 0.02350201142 | D14: -0.06744919693 | E14: -0.2244877671 | F14: 0.02704790884 | G14: 0.01245210199
A15: 0.2324997038 | B15: -0.1065893082 | C15: -0.09558330322 | D15: 0.109162237 | E15: 0.1913612077 | F15: -0.03460541031 | G15: 0.1937543214
A16: -0.1473976572 | B16: 0.06369369498 | C16: -0.1386930093 | D16: -0.04827103773 | E16: -0.3266900139 | F16: 0.2100936126 | G16: 0.2228639557
A17: -0.03702779185 | B17: -0.1272648435 | C17: -0.0459478759 | D17: -0.1805499935 | E17: 0.2277448628 | F17: 0.2288514386 | G17: 0.08046078689
A18: -0.08941076318 | B18: 0.05351263894 | C18: -0.05669518494 | D18: -0.1475973144 | E18: 0.07698100189 | F18: 0.001247235188 | G18: -0.08705207075
A19: -0.05075755317 | B19: 0.06989689826 | C19: 0.1338277971 | D19: -0.08110284733 | E19: -0.1406065068 | F19: -0.03556823284 | G19: 0.1354221846
A20: -0.04177044825 | B20: 0.0764006701 | C20: 0.07085214583 | D20: -0.1993759968 | E20: -0.1824032448 | F20: -0.01728984796 | G20: -0.01718606887
A21: -0.1007780951 | B21: 0.06819276892 | C21: -0.1224060067 | D21: -0.09001450129 | E21: -0.1028173883 | F21: -0.05356868255 | G21: 0.1455697361
A22: -0.09496219285 | B22: 0.006184805928 | C22: 0.3882370172 | D22: -0.01366271819 | E22: 0.1824016946 | F22: -0.04361247345 | G22: 0.3125524816
A23: -0.07503473538 | B23: 0.02102526579 | C23: 0.3239986124 | D23: -0.06999594547 | E23: 0.1608203606 | F23: -0.03594254734 | G23: 0.1998839627
A24: -0.05647058936 | B24: 0.04792943323 | C24: 0.1818219131 | D24: -0.1600376455 | E24: 0.02072119555 | F24: -0.0419877703 | G24: 0.07943219259
A25: 0.1735356978 | B25: -0.1168339431 | C25: -0.2326644252 | D25: 0.0530124335 | E25: 0.0365340329 | F25: 0.06804702792 | G25: 0.03778577864
A26: 0.1881085269 | B26: -0.1302240007 | C26: -0.0504277642 | D26: -0.02673087411 | E26: -0.01527138806 | F26: 0.0970898415 | G26: -0.02937071957
A27: 0.1932111527 | B27: -0.1301889913 | C27: 0.006882653082 | D27: -0.02701445626 | E27: -0.07158868947 | F27: 0.1443378601 | G27: -0.08562752251
A28: 0.02938996876 | B28: 0.1218914744 | C28: 0.120041316 | D28: -0.008405121896 | E28: -0.1797165508 | F28: 0.2617866849 | G28: -0.1339462428
A29: 0.03373315317 | B29: 0.1528704851 | C29: -0.1204455111 | D29: 0.2642412797 | E29: 0.01003869613 | F29: 3.598007652e-05 | G29: 0.09748149592
A30: 0.1112677542 | B30: 0.1434567591 | C30: 0.2621539291 | D30: 0.07722328883 | E30: -0.01882246252 | F30: 0.09900293101 | G30: -0.2136784651
A31: 0.07216762019 | B31: 0.1546392525 | C31: -0.05596648261 | D31: 0.1342135606 | E31: 0.06269477748 | F31: -0.08491781302 | G31: 0.09360667758
A32: 0.1228950595 | B32: 0.1707005623 | C32: 0.0760620102 | D32: 0.06194647514 | E32: -0.07432819062 | F32: 0.0169631286 | G32: -0.1865466086
A33: 0.1237319702 | B33: 0.1875331158 | C33: -0.09752322731 | D33: 0.1752169204 | E33: 0.05391568622 | F33: -0.1862932482 | G33: 0.03600209099
A34: 0.1706809261 | B34: 0.1793036927 | C34: 0.1169223551 | D34: 0.02587519631 | E34: 0.0750775769 | F34: -0.1116846947 | G34: -0.2249875126
A35: 0.1661674959 | B35: 0.2045399229 | C35: -0.102896208 | D35: 0.001569925463 | E35: -0.04003134245 | F35: -0.2206786819 | G35: -0.1077933667
A36: 0.06530099901 | B36: -0.2168394773 | C36: -0.02100911134 | D36: -0.02762224919 | E36: 0.317809945 | F36: 0.1392737404 | G36: -0.3584232437
A37: -0.1819863893 | B37: 0.02626774353 | C37: -0.06814421817 | D37: 0.1415735154 | E37: 0.0821234545 | F37: 0.2761745147 | G37: 0.01090639436
A38: -0.1090586153 | B38: 0.03904545173 | C38: -0.06779266572 | D38: -0.1269673478 | E38: 0.2180847761 | F38: 0.1170403213 | G38: -0.07098923927
A39: -0.09978348514 | B39: 0.05224056758 | C39: -0.1219822973 | D39: -0.1479193268 | E39: 0.1388000823 | F39: 0.03385772262 | G39: 0.01003384425
A40: -0.1099978421 | B40: 0.04589971179 | C40: -0.1731800435 | D40: -0.2312252326 | E40: 0.1571644597 | F40: -0.0242375765 | G40: 0.02688435606
A41: -0.0906704536 | B41: 0.06718742827 | C41: -0.2208614337 | D41: -0.1523688909 | E41: 0.12747689 | F41: -0.05025979416 | G41: 0.07707109479
A42: -0.06084163014 | B42: 0.07304758195 | C42: -0.09682767406 | D42: -0.1660785467 | E42: 0.05718929126 | F42: 0.01297861158 | G42: -0.02858828291
A43: -0.04171421796 | B43: 0.0671212117 | C43: 0.01205718202 | D43: -0.2250390726 | E43: 0.07242830234 | F43: 0.03165830948 | G43: -0.1067149771
A44: -0.05712201786 | B44: 0.07391760017 | C44: 0.002704087032 | D44: -0.06574984318 | E44: 0.01078477753 | F44: 0.1366273924 | G44: -0.109456785
A45: 0.1008720352 | B45: -0.004727538116 | C45: -0.1858038826 | D45: 0.2827052484 | E45: 0.0104530361 | F45: -0.09517820587 | G45: 0.1207217146
A46: 0.1367053128 | B46: -0.02000759653 | C46: -0.01512340384 | D46: -0.08240044764 | E46: -0.02787876039 | F46: 0.2697313341 | G46: -0.09327176479
A47: 0.05586690936 | B47: -0.05422012149 | C47: -0.0991761975 | D47: -0.0631886678 | E47: -0.01852721447 | F47: 0.0419636214 | G47: 0.1738565387
A48: 0.1053591525 | B48: -0.1519435156 | C48: -0.03181355327 | D48: 0.2701867371 | E48: -0.1145597342 | F48: 0.1231467602 | G48: 0.06581950066
A49: 0.1732926862 | B49: -0.1377965192 | C49: -0.04524938814 | D49: 0.04946771094 | E49: 0.00663182289 | F49: -0.1074137917 | G49: -0.1074881424
A50: -0.1860211218 | B50: 0.003994659429 | C50: 0.07657250093 | D50: 0.2495289599 | E50: 0.2223586787 | F50: -0.05038887181 | G50: 0.1017433089
A51: -0.03582817841 | B51: -0.09502664061 | C51: 0.03357454258 | D51: 0.1797726094 | E51: -0.09066916096 | F51: 0.3318849678 | G51: 0.1225033086
A52: -0.1316747404 | B52: -0.3139133907 | C52: 0.1041806411 | D52: 0.01908866575 | E52: -0.01799336155 | F52: -0.2114648019 | G52: 0.01068174707
A53: -0.1123937782 | B53: -0.2795763539 | C53: -0.04742292672 | D53: 0.03067642815 | E53: -0.151122872 | F53: -0.1685068596 | G53: -0.1075333178
A54: -0.1105823 | B54: -0.2780765473 | C54: -0.1015399538 | D54: -0.03211522554 | E54: -0.1337795887 | F54: -0.2255072674 | G54: -0.09265460057
A55: -0.1136798426 | B55: -0.2917427046 | C55: -0.02376538873 | D55: -0.07799210101 | E55: -0.1186115759 | F55: -0.2740223551 | G55: -0.0215364743
A56: -0.269860381 | B56: -0.01281361362 | C56: 0.004315762174 | D56: 0.1763142618 | E56: -0.1745678654 | F56: 0.1220632865 | G56: -0.06276334536
A57: -0.2089595767 | B57: -0.007728828501 | C57: 0.2116137151 | D57: 0.1626603827 | E57: -0.1088655894 | F57: 0.1068351472 | G57: -0.07889550729
A58: -0.2385496423 | B58: -0.02879305604 | C58: 0.1854161552 | D58: 0.233831926 | E58: 0.04865512927 | F58: -0.1652926338 | G58: -0.2964604847
A59: -0.2039654436 | B59: 0.02845472581 | C59: -0.1589691741 | D59: 0.1908925381 | E59: 0.01016128778 | F59: 0.03773079214 | G59: -0.07245243519
A60: -0.1639327155 | B60: 0.027181944 | C60: -0.1298852173 | D60: 0.009476777436 | E60: 0.1322941172 | F60: -0.08489082235 | G60: -0.174539739
A62: W
A63: 3.08341335 | B63: 0 | C63: 0 | D63: 0 | E63: 0 | F63: 0 | G63: 0
A64: 0 | B64: 0.9234972547 | C64: 0 | D64: 0 | E64: 0 | F64: 0 | G64: 0
A65: 0 | B65: 0 | C65: 0.6548900541 | D65: 0 | E65: 0 | F65: 0 | G65: 0
A66: 0 | B66: 0 | C66: 0 | D66: 0.3987021287 | E66: 0 | F66: 0 | G66: 0
A67: 0 | B67: 0 | C67: 0 | D67: 0 | E67: 0.3227403823 | F67: 0 | G67: 0
A68: 0 | B68: 0 | C68: 0 | D68: 0 | E68: 0 | F68: 0.1414350391 | G68: 0
A69: 0 | B69: 0 | C69: 0 | D69: 0 | E69: 0 | F69: 0 | G69: 0.110883897
A71: V
A72: -0.0714822844 | B72: 0.1862868151 | C72: -0.01152562723 | D72: 0.315944945 | E72: -0.8829834509 | F72: 0.2316789125 | G72: -0.1640078172
A73: 0.1551215154 | B73: -0.04617800002 | C73: 0.04461235764 | D73: -0.8655151986 | E73: -0.4076106508 | F73: -0.216812669 | G73: 0.09769293832
A74: 0.6116090812 | B74: 0.005850584018 | C74: 0.7711309845 | D74: 0.16396447 | E74: -0.01316225727 | F74: -0.005704701479 | G74: 0.06455208084
A75: 0.7543774604 | B75: 0.2143898774 | C75: -0.6133388048 | D75: 0.07997767862 | E75: 0.02424392454 | F75: -0.01480373114 | G75: -0.0395447949
A76: 0.1492642733 | B76: -0.9549672537 | C76: -0.1429259795 | D76: 0.1286021689 | E76: -0.1530751537 | F76: 0.06771665515 | G76: 0.02781761173
A77: 0.0234566421 | B77: 0.05173415242 | C77: -0.02829430029 | D77: -0.1559228076 | E77: 0.05171974308 | F77: 0.7898550545 | G77: 0.5874648374
A78: -0.06961709677 | B78: 0.05028605954 | C78: -0.07629554134 | D78: 0.2773644109 | E78: -0.1653052795 | F78: -0.5202008281 | G78: 0.7822646669
A80: K0-transpose
A81: -0.22040943 | B81: 0.4783037516 | C81: 1.885843606 | D81: 2.326057532 | E81: 0.4602434529 | F81: 0.07232652339 | G81: -0.2146582855
A82: 0.1720353623 | B82: -0.04264525625 | C82: 0.005402998279 | D82: 0.1979884632 | E82: -0.8819096371 | F82: 0.04777634773 | G82: 0.04643903794
A83: -0.007548018643 | B83: 0.02921618931 | C83: 0.5050060122 | D83: -0.401669483 | E83: -0.09360080247 | F83: -0.01852965585 | G83: -0.0499651912
A84: 0.1259679221 | B84: -0.3450827521 | C84: 0.0653729832 | D84: 0.03188727071 | E84: 0.05127395848 | F84: -0.06216675529 | G84: 0.110585781
A85: -0.2849744165 | B85: -0.1315524173 | C85: -0.004247991945 | D85: 0.007824493474 | E85: -0.04940353363 | F85: 0.01669204965 | G85: -0.05335068909
A86: 0.03276751605 | B86: -0.03066490832 | C86: -0.0008068446766 | D86: -0.002093766292 | E86: 0.009577507767 | F86: 0.1117131805 | G86: -0.07357462445
A87: -0.0181858259 | B87: 0.01083257371 | C87: 0.00715778628 | D87: -0.004384880962 | E87: 0.003084525192 | F87: 0.0651403905 | G87: 0.08674055472
A96: U0
A97: 0.6090625704 | B97: 1.203927634 | C97: -0.5264287623 | D97: -0.1544674011 | E97: -0.7080277287 | F97: -0.6078468185 | G97: -1.224674109
A98: 0.4932496573 | B98: 1.043030203 | C98: 0.4003097927 | D98: -0.4722317134 | E98: -0.9773262591 | F98: -0.8416192757 | G98: -0.130079386
A99: -0.6163024741 | B99: 0.6230462911 | C99: -0.8747861332 | D99: 0.3159378003 | E99: -0.4278288088 | F99: -0.56542277 | G99: 1.495945244
A100: -0.2771781617 | B100: 0.6463597335 | C100: 0.2448584324 | D100: -0.4080830846 | E100: -0.5952285894 | F100: -0.4804597216 | G100: 0.6270195152
A101: -0.1101043266 | B101: 0.78038452 | C101: -0.2287429063 | D101: -1.57776205 | E101: -1.845133935 | F101: -0.726700823 | G101: -0.1652084896
A102: 0.8194124141 | B102: 1.038124026 | C102: 1.64113324 | D102: 0.2622738899 | E102: 0.590268774 | F102: -0.9303830945 | G102: 0.6268774952
A103: 0.8074644798 | B103: 1.292959461 | C103: -0.6088028645 | D103: 0.5419726103 | E103: 0.5720596478 | F103: -0.4672131375 | G103: 0.6165323093
A104: 1.309493741 | B104: -1.243484726 | C104: 0.8313391665 | D104: -0.1973944121 | E104: 1.12949776 | F104: 0.07774894551 | G104: 0.5460547406
A105: 1.274804474 | B105: -1.239104192 | C105: 0.8047708004 | D105: -0.4655118907 | E105: 0.4730863265 | F105: -0.1915874337 | G105: 0.9480272696
A106: 1.454033137 | B106: -1.123326903 | C106: 1.283880978 | D106: -0.7118775729 | E106: -1.060432169 | F106: 0.111794179 | G106: 0.4379509837
A107: 1.525022503 | B107: -0.9217263323 | C107: 0.1774362951 | D107: -0.5092302697 | E107: -1.694845475 | F107: 0.2042072336 | G107: 0.09401130843
A108: 1.75533427 | B108: -0.8047316293 | C108: -0.7216381141 | D108: 0.8241568162 | E108: 1.444745436 | F108: -0.2612651184 | G108: 1.462813048
A109: -1.112827908 | B109: 0.4808768517 | C109: -1.047109258 | D109: -0.3644383429 | E109: -2.466455517 | F109: 1.586171991 | G109: 1.682585967
A110: -0.279553698 | B110: -0.9608284978 | C110: -0.3468988557 | D110: -1.363122558 | E110: 1.719436008 | F110: 1.727790472 | G110: 0.6074656196
A111: -0.6750364588 | B111: 0.4040115642 | C111: -0.4280392596 | D111: -1.114335287 | E111: 0.5811938189 | F111: 0.009416419173 | G111: -0.6572287214
A112: -0.3832111228 | B112: 0.5277100094 | C112: 1.010377711 | D112: -0.6123130696 | E112: -1.061555847 | F112: -0.2685342691 | G112: 1.022415073
A113: -0.3153599686 | B113: 0.57681241 | C113: 0.5349219704 | D113: -1.505255766 | E113: -1.377114298 | F113: -0.1305354895 | G113: -0.1297519745
A114: -0.7608579324 | B114: 0.514844115 | C114: -0.9241450844 | D114: -0.6795945815 | E114: -0.7762542587 | F114: -0.4044346842 | G114: 1.099027407
A115: -0.7169488336 | B115: 0.04669426077 | C115: 2.931125201 | D115: -0.1031512602 | E115: 1.377102595 | F115: -0.3292669539 | G115: 2.359719488
A116: -0.566499829 | B116: 0.1587372756 | C116: 2.446135881 | D116: -0.5284577994 | E116: 1.214167096 | F116: -0.2713602816 | G116: 1.509090824
A117: -0.4263436001 | B117: 0.3618592855 | C117: 1.37272534 | D117: -1.208257727 | E117: 0.1564415957 | F117: -0.317000714 | G117: 0.5996999029
A118: 1.310165787 | B118: -0.8820769266 | C118: -1.756577889 | D118: 0.4002350959 | E118: 0.2758258997 | F118: 0.5137437946 | G118: 0.2852763728
A119: 1.420188234 | B119: -0.9831696444 | C119: -0.3807212707 | D119: -0.2018136739 | E119: -0.1152964514 | F119: 0.7330122287 | G119: -0.22174407
A120: 1.458712214 | B120: -0.9829053293 | C120: 0.05196289125 | D120: -0.2039546721 | E120: -0.5404827529 | F120: 1.089726946 | G120: -0.6464736181
A121: 0.2218893982 | B121: 0.920260451 | C121: 0.9062920609 | D121: -0.06345727872 | E121: -1.356830204 | F121: 1.976446128 | G121: -1.011271956
A122: 0.2546797214 | B122: 1.154146852 | C122: -0.9093436672 | D122: 1.994977913 | E122: 0.07579049373 | F122: 0.0002716436207 | G122: 0.7359691547
A123: 0.8400531219 | B123: 1.08307478 | C123: 1.979218761 | D123: 0.5830230452 | E123: -0.1421064757 | F123: 0.7474557377 | G123: -1.613237034
A124: 0.5448535841 | B124: 1.167500754 | C124: -0.4225376776 | D124: 1.013290162 | E124: 0.4733351899 | F124: -0.6411154289 | G124: 0.7067149178
A125: 0.9278373523 | B125: 1.288760983 | C125: 0.5742555838 | D125: 0.4676856312 | E125: -0.561165533 | F125: 0.1280688124 | G125: -1.408396009
A126: 0.9341558894 | B126: 1.415843975 | C126: -0.7362842198 | D126: 1.322858739 | E126: 0.4070545044 | F126: -1.40648318 | G126: 0.2718098263
A127: 1.288612734 | B127: 1.353713193 | C127: 0.8827444226 | D127: 0.1953534481 | E127: 0.5668232754 | F127: -0.8432009538 | G127: -1.69861847
A128: 1.254537083 | B128: 1.544242553 | C128: -0.776849334 | D128: 0.01185267732 | E128: -0.3022300077 | F128: -1.666087512 | G128: -0.8138220715
A129: 0.493011731 | B129: -1.637102152 | C129: -0.1586153123 | D129: -0.2085434081 | E129: 2.399412466 | F129: 1.051493681 | G129: -2.706036147
A130: -1.373967109 | B130: 0.1983171146 | C130: -0.5144775649 | D130: 1.068856602 | E130: 0.6200184847 | F130: 2.085071861 | G130: 0.08234147168
A131: -0.8233744894 | B131: 0.294786696 | C131: -0.5118234021 | D131: -0.9585824547 | E131: 1.646503952 | F131: 0.8836350481 | G131: -0.5359570032
A132: -0.7533487922 | B132: 0.3944076361 | C132: -0.9209461486 | D132: -1.116766427 | E132: 1.047917641 | F132: 0.2556202002 | G132: 0.07575386285
A133: -0.8304654961 | B133: 0.3465352247 | C133: -1.307480656 | D133: -1.745712224 | E133: 1.18656565 | F133: -0.1829896897 | G133: 0.2029724372
A134: -0.6845469128 | B134: 0.5072539596 | C134: -1.667467257 | D134: -1.150359899 | E134: 0.9624294137 | F134: -0.3794531247 | G134: 0.5818740054
A135: -0.4593442343 | B135: 0.5514971496 | C135: -0.7310329079 | D135: -1.253865531 | E135: 0.4317696805 | F135: 0.09798636863 | G135: -0.2158368028
A136: -0.3149354392 | B136: 0.5067540354 | C136: 0.09102972804 | D136: -1.699007739 | E136: 0.5468216911 | F136: 0.2390149951 | G136: -0.8056804086
A137: -0.4312617774 | B137: 0.5580656431 | C137: 0.02041540939 | D137: -0.4964004302 | E137: 0.0814232848 | F137: 1.031514192 | G137: -0.8263806047
A138: 0.7615671647 | B138: -0.03569213007 | C138: -1.402788551 | D138: 2.134377819 | E138: 0.07891869187 | F138: -0.7185796962 | G138: 0.9114289581
A139: 1.032102478 | B139: -0.1510540413 | C139: -0.1141791951 | D139: -0.6221097371 | E139: -0.2104800252 | F139: 2.036426914 | G139: -0.7041863816
A140: 0.4217859161 | B140: -0.4093529403 | C140: -0.748763871 | D140: -0.4770639801 | E140: -0.1398774018 | F140: 0.3168183939 | G140: 1.312588082
A141: 0.7954441574 | B141: -1.147148386 | C141: -0.24018706 | D141: 2.039865132 | E141: -0.8649070261 | F141: 0.9297376508 | G141: 0.4969263326
A142: 1.308331089 | B142: -1.040340906 | C142: -0.3416253888 | D142: 0.3734730275 | E142: 0.05006916482 | F142: -0.8109563431 | G142: -0.8115176787
A143: -1.404428671 | B143: 0.03015901731 | C143: 0.5781097043 | D143: 1.883902334 | E143: 1.678771209 | F143: -0.3804276395 | G143: 0.7681451368
A144: -0.2704968151 | B144: -0.7174354036 | C144: 0.2534822377 | D144: 1.357253437 | E144: -0.6845371537 | F144: 2.505676559 | G144: 0.9248796976
A145: -0.9941224897 | B145: -2.369994127 | C145: 0.7865465919 | D145: 0.144116266 | E145: -0.1358469007 | F145: -1.596524243 | G145: 0.08064542188
A146: -0.8485544167 | B146: -2.110755184 | C146: -0.3580352452 | D146: 0.2316019536 | E146: -1.140952663 | F146: -1.272198891 | G146: -0.8118587459
A147: -0.8348780567 | B147: -2.099431892 | C147: -0.7666098395 | D147: -0.2424646356 | E147: -1.010013746 | F147: -1.702542533 | G147: -0.699526894
A148: -0.8582639901 | B148: -2.202609117 | C148: -0.1794247502 | D148: -0.5888274499 | E148: -0.8954977603 | F148: -2.068823412 | G148: -0.1625968153
A149: -2.037401198 | B149: -0.09674066131 | C149: 0.03258328988 | D149: 1.331143485 | E149: -1.317958481 | F149: 0.9215576033 | G149: -0.4738528661
A150: -1.577610208 | B150: -0.05835137556 | C150: 1.597648513 | D150: 1.228058958 | E150: -0.8219171757 | F150: 0.8065876729 | G150: -0.5956480177
A151: -1.801010304 | B151: -0.217382806 | C151: 1.399861274 | D151: 1.765392327 | E151: 0.3673381704 | F151: -1.247932018 | G151: -2.238227576
A152: -1.53990533 | B152: 0.2148284688 | C152: -1.200190945 | D152: 1.441207057 | E152: 0.07671604041 | F152: 0.2848612338 | G152: -0.5470038901
A153: -1.237664861 | B153: 0.2052191768 | C153: -0.9806118862 | D153: 0.07154810062 | E153: 0.9987986815 | F153: -0.6409116538 | G153: -1.317746131
A160: Xe
A161: 0.03463843084 | B161: 0.04985736578 | C161: 0.1157490372 | D161: 0.2467214326 | E161: -0.09466491654 | F161: -0.005108822048 | G161: -0.01183375798
A162: 0.03463843084 | B162: 0.06875198879 | C162: 0.1471574666 | D162: 0.1553239456 | E162: -0.09466491654 | F162: -0.001504701778 | G162: -0.003561241192
A163: 0.04842670002 | B163: -0.04849203937 | C163: -0.2075569945 | D163: -0.1268203928 | E163: -0.09466491654 | F163: 0.001178894814 | G163: 0.05749265647
A164: 0.03463843084 | B164: 0.01161164289 | C164: -0.0549470006 | D164: -0.08404504755 | E164: -0.09466491654 | F164: 0.001178894814 | G164: 0.02035088968
A165: 0.06179064675 | B165: 0.09471186163 | C165: -0.0549470006 | D165: -0.009566385183 | E165: -0.09466491654 | F165: 0.001178894814 | G165: 0.004556640023
A166: -0.02535943226 | B166: 0.03480446592 | C166: 0.3178282539 | D166: 0.1939810529 | E166: -0.09466491654 | F166: 0.001178894814 | G166: -0.01183375798
A167: -0.009565182605 | B167: 0.009538255919 | C167: 0.1669015028 | D167: 0.3177248935 | E167: -0.09466491654 | F167: 0.01261992524 | G167: 0.004556640023
A168: -0.1143004169 | B168: 0.08301020662 | C168: 0.3799760917 | D168: 0.326606471 | E168: 0.2063647451 | F168: 0.01261992524 | G168: -0.05573919496
A169: -0.09499528313 | B169: 0.1060482958 | C169: 0.3679948077 | D169: 0.3154758259 | E169: 0.2063647451 | F169: 0.01261992524 | G169: -0.04659582566
A170: -0.04174983026 | B170: 0.154620509 | C170: 0.4431076083 | D170: 0.3458236821 | E170: 0.2063647451 | F170: 0.01261992524 | G170: -0.05573919496
A171: -0.009565182605 | B171: 0.154620509 | C171: 0.3887500063 | D171: 0.4322199543 | E171: 0.2063647451 | F171: 0.01261992524 | G171: -0.04659582566
A172: -0.1143004169 | B172: 0.05327442412 | C172: 0.3973501685 | D172: 0.5622981862 | E172: 0.2063647451 | F172: 0.01865787354 | G172: -0.02886707838
A173: 0.1343412334 | B173: -0.02166311512 | C173: -0.3480077414 | D173: -0.2800485989 | E173: -0.09466491654 | F173: 0.03048762438 | G173: 0.05749265647
A174: -0.09499528313 | B174: 0.01257247871 | C174: -0.1060994663 | D174: -0.09767711609 | E174: 0.08142614712 | F174: 0.03792576242 | G174: -0.03764099295
A175: -0.009565182605 | B175: -0.006878974681 | C175: -0.2075569945 | D175: -0.178332005 | E175: -0.09466491654 | F175: 0.002069754614 | G175: -0.003561241192
A176: 0.04842670002 | B176: 0.02569362602 | C176: -0.03146593081 | D176: -0.1621864132 | E176: -0.09466491654 | F176: 0.00473142178 | G176: 0.02035088968
A177: 0.04842670002 | B177: 0.07197376914 | C177: -0.0549470006 | D177: -0.1181663689 | E177: -0.09466491654 | F177: 0.005615031444 | G177: -0.003561241192
A178: 0.04842670002 | B178: -0.006878974681 | C178: -0.2558616204 | D178: -0.1759484646 | E178: -0.09466491654 | F178: 0.005615031444 | G178: 0.04301484917
A179: -0.04174983026 | B179: -0.04889921469 | C179: 0.01761595892 | D179: -0.3758936227 | E179: -0.09466491654 | F179: 0.005615031444 | G179: 0.02035088968
A180: -0.04174983026 | B180: -0.02105449949 | C180: 0.01843179009 | D180: -0.3022875604 | E180: -0.09466491654 | F180: 0.005615031444 | G180: 0.004556640023
A181: -0.009565182605 | B181: 0.03090639972 | C181: -0.02436230349 | D181: -0.2000980977 | E181: -0.09466491654 | F181: 0.005615031444 | G181: -0.003561241192
A182: -0.05878315066 | B182: 0.05641046539 | C182: 0.2126589426 | D182: 0.4756445649 | E182: 0.2063647451 | F182: 0.01865787354 | G182: -0.02886707838
A183: -0.05878315066 | B183: 0.1019910829 | C183: 0.3266021685 | D183: 0.4309773383 | E183: 0.2063647451 | F183: 0.01865787354 | G183: -0.05573919496
A184: -0.04174983026 | B184: 0.1115528613 | C184: 0.364947118 | D184: 0.4195314813 | E184: 0.2063647451 | F184: 0.01865787354 | G184: -0.06507921085
A185: 0.07475560953 | B185: 0.02943035101 | C185: 0.1157490372 | D185: 0.04264394141 | E185: -0.09466491654 | F185: 0.02376727365 | G185: -0.02886707838
A186: 0.04842670002 | B186: -0.08535431674 | C186: 0.02154502206 | D186: 0.1651880944 | E186: -0.09466491654 | F186: 0.002069754614 | G186: 0.04301484917
A187: 0.02039800752 | B187: 0.0252382847 | C187: 0.3465169193 | D187: 0.1849635771 | E187: -0.09466491654 | F187: 0.002069754614 | G187: -0.04659582566
A188: 0.005674767041 | B188: -0.02465615062 | C188: 0.1179150965 | D188: 0.2255004556 | E188: -0.09466491654 | F188: 0.002958790748 | G188: 0.02035088968
A189: 0.03463843084 | B189: 0.03958428124 | C189: 0.2741113535 | D189: 0.291282124 | E189: -0.09466491654 | F189: 0.0002862038522 | G189: -0.02886707838
A190: 0.005674767041 | B190: -0.01311960457 | C190: 0.1967359942 | D190: 0.3703504209 | E190: -0.09466491654 | F190: -0.00874310267 | G190: 0.02035088968
A191: -0.02535943226 | B191: 0.05958878747 | C191: 0.3817451125 | D191: 0.388182493 | E191: -0.09466491654 | F191: -0.00874310267 | G191: -0.04659582566
A192: 0.005674767041 | B192: 0.0780735218 | C192: 0.26218701 | D192: 0.4690135135 | E192: -0.09466491654 | F192: -0.00874310267 | G192: -0.01183375798
A193: -0.1345037806 | B193: -0.0005630857 | C193: 0.1055324684 | D193: 0.1202868249 | E193: 0.2063647451 | F193: -0.006014545004 | G193: -0.08438434462
A194: 0.04842670002 | B194: -0.1581647209 | C194: -0.3687077249 | D194: -0.3862077492 | E194: -0.09466491654 | F194: 0.01348764581 | G194: 0.03559083933
A195: -0.04174983026 | B195: -0.04504225604 | C195: -0.2495214494 | D195: -0.2209918346 | E195: -0.09466491654 | F195: 0.01521790308 | G195: -0.01183375798
A196: -0.02535943226 | B196: -0.02166311512 | C196: -0.2597106323 | D196: -0.1765081219 | E196: -0.09466491654 | F196: 0.01348764581 | G196: 0.004556640023
A197: -0.04174983026 | B197: 0.0005214984222 | C197: -0.3102192224 | D197: -0.1834231034 | E197: -0.09466491654 | F197: 0.01348764581 | G197: 0.004556640023
A198: -0.02535943226 | B198: -0.01449989919 | C198: -0.2920737529 | D198: -0.1129829593 | E198: -0.09466491654 | F198: 0.01175046749 | G198: 0.02035088968
A199: -0.009565182605 | B199: 0.01403493137 | C199: -0.174556771 | D199: -0.09291596409 | E199: -0.09466491654 | F199: 0.01175046749 | G199: -0.003561241192
A200: -0.02535943226 | B200: 0.04353998392 | C200: -0.0880234227 | D200: -0.09479096708 | E200: -0.09466491654 | F200: 0.01175046749 | G200: -0.02886707838
A201: 0.02039800752 | B201: -0.01449989919 | C201: -0.1111960177 | D201: -0.1211387256 | E201: -0.09466491654 | F201: 0.01175046749 | G201: -0.01183375798
A202: 0.005674767041 | B202: -0.05168487096 | C202: 0.1157490372 | D202: 0.3170963277 | E202: 0.08142614712 | F202: -0.009656444753 | G202: 0.03559083933
A203: -0.02535943226 | B203: 0.0886188765 | C203: 0.2439057442 | D203: 0.3170963277 | E203: 0.08142614712 | F203: 0.03792576242 | G203: -0.06507921085
A204: -0.02535943226 | B204: 0.05097515515 | C204: 0.05213716813 | D204: 0.1560406563 | E204: 0.08142614712 | F204: 0.02291987045 | G204: -0.003561241192
A205: 0.02039800752 | B205: -0.02528558513 | C205: 0.2003252212 | D205: 0.2349396151 | E205: 0.2063647451 | F205: 0.0002862038522 | G205: 0.004556640023
A206: -0.05878315066 | B206: 0.07162746979 | C206: 0.3057301457 | D206: 0.3963074383 | E206: 0.2063647451 | F206: -0.01517720554 | G206: -0.03764099295
A207: 0.005674767041 | B207: -0.1996204469 | C207: -0.2959787991 | D207: -0.4533057602 | E207: -0.09466491654 | F207: -0.02548455881 | G207: 0.06455450312
A208: 0.04842670002 | B208: -0.07106227201 | C208: -0.03837791755 | D208: -0.1118474863 | E208: 0.08142614712 | F208: 0.02461302659 | G208: 0.01252556085
A209: -0.02535943226 | B209: -0.04416968355 | C209: -0.1958307951 | D209: -0.4094166197 | E209: 0.2063647451 | F209: -0.05086626184 | G209: 0.02803770982
A210: 0.02039800752 | B210: -0.02992422002 | C210: -0.2354028648 | D210: -0.297118882 | E210: 0.2063647451 | F210: -0.05086626184 | G210: 0.02803770982
A211: 0.005674767041 | B211: -0.009406983283 | C211: -0.2633340836 | D211: -0.2726836249 | E211: 0.2063647451 | F211: -0.05086626184 | G211: 0.02803770982
A212: -0.009565182605 | B212: 0.008060556446 | C212: -0.232488129 | D212: -0.3153885695 | E212: 0.2063647451 | F212: -0.05086626184 | G212: 0.02803770982
A213: 0.1343412334 | B213: -0.1707038368 | C213: -0.4950842007 | D213: -0.6277053163 | E213: -0.09466491654 | F213: -0.02453735233 | G213: 0.07150335537
A214: 0.09957916571 | B214: -0.1393744977 | C214: -0.276795504 | D214: -0.5681237507 | E214: -0.09466491654 | F214: -0.02453735233 | G214: 0.04301484917
A215: 0.06179064675 | B215: -0.1926889591 | C215: -0.3432956445 | D215: -0.6255739046 | E215: -0.09466491654 | F215: -0.07356612674 | G215: 0.05031407981
A216: 0.07475560953 | B216: -0.1725676914 | C216: -0.4528865677 | D216: -0.3985433381 | E216: -0.09466491654 | F216: -0.02264911457 | G216: 0.06455450312
A217: 0.005674767041 | B217: -0.1033249935 | C217: -0.3757206985 | D217: -0.3214838877 | E217: -0.09466491654 | F217: -0.02738519204 | G217: 0.02803770982

Sheet Dataset
A1: Flugzeugstatistik von Jenksinson: https://booksite.elsevier.com/9780340741528/appendices/data-a/default.htm
A3: Manufacturer | B3: Type | C3: Model | D3: Max. wing load (kg/m2) | E3: Thrust/Weight Ratio | F3: Max. payload | G3: Max. take-off | H3: Max. landing | I3: Static thrust (kN) | J3: Max. seats (single class) | K3: Hold volume (m³) | L3: Volume per passenger | M3: No. of engines | N3: Zero-fuel | O3: Operational empty | P3: Ops empty/Max. T/O | Q3: Max. payload/Max. T/O | R3: Max. landing/Max. T/O | S3: Length (m) | T3: Height (m) | U3: Width (m) | V3: Finess Ratio | W3: Area (m²) | X3: Span (m) | Y3: MAC (m) | Z3: Aspect Ratio | AA3: Taper Ratio | AB3: 1/4 Chord Sweep (º) | AC3: Flap Span/Wing Span | AD3: Area (m²) | AE3: Height (m) | AF3: Aspect Ratio | AG3: Taper Ratio | AH3: mOE/mTO | AI3: Tail Arm (m) | AJ3: Sv/S | AK3: SvLv/Sb | AL3: Area (m²) | AM3: Span (m) | AN3: Aspect Ratio | AO3: Taper Ratio | AP3: Tail Arm (m) | AQ3: Sh/S | AR3: ShLh/Sc | AS3: Length (m) | AT3: Max. width (m) | AU3: Max. power load (kg/kN)
A4: AIRBUS | B4: A300- | C4: 600R | D4: 655.77 | E4: 0.3073 | F4: 41100 | G4: 170500 | H4: 140000 | I4: 257.0 | J4: 375 | K4: 116.00 | L4: 0.31 | M4: 2 | N4: 130000 | O4: 88900 | P4: 0.521 | Q4: 0.241 | R4: 0.821 | S4: 53.30 | T4: 5.64 | U4: 5.64 | V4: 9.45 | W4: 260.00 | X4: 44.84 | Y4: 6.44 | Z4: 7.73 | AA4: 0.300 | AB4: 28.00 | AC4: 0.800 | AD4: 45.20 | AE4: 8.60 | AF4: 1.64 | AG4: 0.365 | AH4: =O4/G4 -> 0.5214 | AI4: 24.90 | AJ4: 0.174 | AK4: 0.097 | AL4: 69.45 | AM4: 16.26 | AN4: 3.81 | AO4: 0.420 | AP4: 25.60 | AQ4: 0.267 | AR4: 1.062 | AS4: 6.70 | AT4: 2.70 | AU4: 331.71
A5: AIRBUS | B5: A310- | C5: 300 | D5: 684.93 | E5: 0.3140 | F5: 33300 | G5: 150000 | H5: 123000 | I5: 231.0 | J5: 280 | K5: 79.90 | L5: 0.29 | M5: 2 | N5: 113000 | O5: 79666 | P5: 0.531 | Q5: 0.222 | R5: 0.820 | S5: 45.13 | T5: 5.64 | U5: 5.64 | V5: 8.00 | W5: 219.00 | X5: 43.89 | Y5: 5.89 | Z5: 8.80 | AA5: 0.283 | AB5: 28.00 | AC5: 0.840 | AD5: 45.20 | AE5: 8.10 | AF5: 1.45 | AG5: 0.395 | AH5: 0.5311 | AI5: 20.20 | AJ5: 0.206 | AK5: 0.095 | AL5: 64.00 | AM5: 16.26 | AN5: 4.13 | AO5: 0.417 | AP5: 22.50 | AQ5: 0.292 | AR5: 1.116 | AS5: 6.30 | AT5: 2.70 | AU5: 324.68
A6: AIRBUS | B6: A319- | C6: 100 | D6: 522.88 | E6: 0.3176 | F6: 17390 | G6: 64000 | H6: 61000 | I6: 99.7 | J6: 153 | K6: 27.00 | L6: 0.18 | M6: 2 | N6: 57000 | O6: 39200 | P6: 0.613 | Q6: 0.272 | R6: 0.953 | S6: 33.84 | T6: 4.14 | U6: 3.95 | V6: 8.57 | W6: 122.40 | X6: 33.91 | Y6: 4.29 | Z6: 9.39 | AA6: 0.240 | AB6: 25.00 | AC6: 0.780 | AD6: 21.50 | AE6: 6.26 | AF6: 1.82 | AG6: 0.303 | AH6: 0.6125 | AI6: 10.67 | AJ6: 0.176 | AK6: 0.055 | AL6: 31.00 | AM6: 12.45 | AN6: 5.00 | AO6: 0.256 | AP6: 11.67 | AQ6: 0.253 | AR6: 0.689 | AS6: 4.44 | AT6: 2.37 | AU6: 320.96
A7: AIRBUS | B7: A320- | C7: 200 | D7: 600.49 | E7: 0.3084 | F7: 19190 | G7: 73500 | H7: 64500 | I7: 111.2 | J7: 179 | K7: 38.76 | L7: 0.22 | M7: 2 | N7: 60500 | O7: 41310 | P7: 0.562 | Q7: 0.261 | R7: 0.878 | S7: 37.57 | T7: 4.14 | U7: 3.95 | V7: 9.51 | W7: 122.40 | X7: 33.91 | Y7: 4.29 | Z7: 9.39 | AA7: 0.240 | AB7: 25.00 | AC7: 0.780 | AD7: 21.50 | AE7: 6.26 | AF7: 1.82 | AG7: 0.303 | AH7: 0.5620 | AI7: 12.53 | AJ7: 0.176 | AK7: 0.065 | AL7: 31.00 | AM7: 12.45 | AN7: 5.00 | AO7: 0.256 | AP7: 13.53 | AQ7: 0.253 | AR7: 0.799 | AS7: 4.44 | AT7: 2.37 | AU7: 330.49
A8: AIRBUS | B8: A321- | C8: 200 | D8: 727.12 | E8: 0.3253 | F8: 22780 | G8: 89000 | H8: 73500 | I8: 142.0 | J8: 220 | K8: 51.76 | L8: 0.24 | M8: 2 | N8: 71500 | O8: 48000 | P8: 0.539 | Q8: 0.256 | R8: 0.826 | S8: 44.51 | T8: 4.14 | U8: 3.95 | V8: 11.27 | W8: 122.40 | X8: 33.91 | Y8: 4.29 | Z8: 9.39 | AA8: 0.240 | AB8: 25.00 | AC8: 0.780 | AD8: 21.50 | AE8: 6.26 | AF8: 1.82 | AG8: 0.303 | AH8: 0.5393 | AI8: 15.20 | AJ8: 0.176 | AK8: 0.079 | AL8: 31.00 | AM8: 12.45 | AN8: 5.00 | AO8: 0.256 | AP8: 16.20 | AQ8: 0.253 | AR8: 0.957 | AS8: 4.44 | AT8: 2.37 | AU8: 313.38
A9: AIRBUS | B9: A330- | C9: 200 | D9: 633.43 | E9: 0.2748 | F9: 36400 | G9: 230000 | H9: 177150 | I9: 310.0 | J9: 380 | K9: 136.00 | L9: 0.36 | M9: 2 | N9: 165142 | O9: 120200 | P9: 0.523 | Q9: 0.158 | R9: 0.770 | S9: 57.77 | T9: 5.64 | U9: 5.64 | V9: 10.24 | W9: 363.10 | X9: 58.00 | Y9: 7.26 | Z9: 9.26 | AA9: 0.251 | AB9: 29.70 | AC9: 0.665 | AD9: 47.65 | AE9: 9.44 | AF9: 1.87 | AG9: 0.350 | AH9: 0.5226 | AI9: 25.20 | AJ9: 0.131 | AK9: 0.057 | AL9: 31.00 | AM9: 12.45 | AN9: 5.00 | AO9: 0.256 | AP9: 16.20 | AQ9: 0.253 | AR9: 0.957 | AS9: 7.00 | AT9: 3.10 | AU9: 370.97
A10: AIRBUS | B10: A330- | C10: 300 | D10: 597.63 | E10: 0.2819 | F10: 48400 | G10: 217000 | H10: 179000 | I10: 300.0 | J10: 440 | K10: 162.90 | L10: 0.37 | M10: 2 | N10: 169000 | O10: 118189 | P10: 0.545 | Q10: 0.223 | R10: 0.825 | S10: 62.47 | T10: 5.64 | U10: 5.64 | V10: 11.08 | W10: 363.10 | X10: 58.00 | Y10: 7.26 | Z10: 9.26 | AA10: 0.251 | AB10: 29.70 | AC10: 0.665 | AD10: 45.20 | AE10: 8.45 | AF10: 1.58 | AG10: 0.350 | AH10: 0.5446 | AI10: 27.50 | AJ10: 0.124 | AK10: 0.059 | AL10: 72.90 | AM10: 19.06 | AN10: 4.98 | AO10: 0.360 | AP10: 28.60 | AQ10: 0.201 | AR10: 0.791 | AS10: 7.00 | AT10: 3.10 | AU10: 361.67
A11: AIRBUS | B11: A340- | C11: 200 | D11: 707.79 | E11: 0.2205 | F11: 49400 | G11: 257000 | H11: 181000 | I11: 139.0 | J11: 440 | K11: 136.00 | L11: 0.31 | M11: 4 | N11: 172000 | O11: 120228 | P11: 0.468 | Q11: 0.192 | R11: 0.704 | S11: 58.21 | T11: 5.64 | U11: 5.64 | V11: 10.32 | W11: 363.10 | X11: 58.00 | Y11: 7.26 | Z11: 9.26 | AA11: 0.251 | AB11: 29.70 | AC11: 0.665 | AD11: 45.20 | AE11: 8.45 | AF11: 1.58 | AG11: 0.350 | AH11: 0.4678 | AI11: 25.50 | AJ11: 0.124 | AK11: 0.055 | AL11: 72.90 | AM11: 19.06 | AN11: 4.98 | AO11: 0.360 | AP11: 26.50 | AQ11: 0.201 | AR11: 0.733 | AS11: 4.95 | AT11: 2.37 | AU11: 462.23
A12: AIRBUS | B12: A340- | C12: 300 | D12: 746.35 | E12: 0.2272 | F12: 48150 | G12: 271000 | H12: 190000 | I12: 151.0 | J12: 440 | K12: 162.90 | L12: 0.37 | M12: 4 | N12: 178000 | O12: 129850 | P12: 0.479 | Q12: 0.178 | R12: 0.701 | S12: 62.47 | T12: 5.64 | U12: 5.64 | V12: 11.08 | W12: 363.10 | X12: 58.00 | Y12: 7.26 | Z12: 9.26 | AA12: 0.251 | AB12: 29.70 | AC12: 0.665 | AD12: 45.20 | AE12: 8.45 | AF12: 1.58 | AG12: 0.350 | AH12: 0.4792 | AI12: 27.50 | AJ12: 0.124 | AK12: 0.059 | AL12: 72.90 | AM12: 19.06 | AN12: 4.98 | AO12: 0.360 | AP12: 28.60 | AQ12: 0.201 | AR12: 0.791 | AS12: 4.95 | AT12: 2.37 | AU12: 448.68
A13: AIRBUS | B13: A340- | C13: 500 | D13: 834.67 | E13: 0.2634 | F13: 51635 | G13: 365000 | H13: 236000 | I13: 235.8 | J13: 440 | K13: 134.10 | L13: 0.30 | M13: 4 | N13: 222000 | O13: 170390 | P13: 0.467 | Q13: 0.141 | R13: 0.647 | S13: 65.60 | T13: 5.64 | U13: 5.64 | V13: 11.63 | W13: 437.30 | X13: 61.20 | Y13: 8.35 | Z13: 8.56 | AA13: 0.220 | AB13: 31.10 | AC13: 0.625 | AD13: 47.65 | AE13: 9.44 | AF13: 1.87 | AG13: 0.350 | AH13: 0.4668 | AI13: 27.50 | AJ13: 0.109 | AK13: 0.049 | AL13: 93.00 | AM13: 21.50 | AN13: 4.97 | AO13: 0.360 | AP13: 28.60 | AQ13: 0.213 | AR13: 0.729 | AS13: 6.10 | AT13: 3.05 | AU13: 386.98
A14: AIRBUS | B14: A340- | C14: 600 | D14: 834.67 | E14: 0.2783 | F14: 63000 | G14: 365000 | H14: 254000 | I14: 249.1 | J14: 475 | K14: 187.74 | L14: 0.40 | M14: 4 | N14: 240000 | O14: 177010 | P14: 0.485 | Q14: 0.173 | R14: 0.696 | S14: 69.57 | T14: 5.64 | U14: 5.64 | V14: 12.34 | W14: 437.30 | X14: 61.20 | Y14: 8.35 | Z14: 8.56 | AA14: 0.220 | AB14: 31.10 | AC14: 0.625 | AD14: 47.65 | AE14: 9.44 | AF14: 1.87 | AG14: 0.350 | AH14: 0.4850 | AI14: 27.50 | AJ14: 0.109 | AK14: 0.049 | AL14: 93.00 | AM14: 21.50 | AN14: 4.97 | AO14: 0.360 | AP14: 28.60 | AQ14: 0.213 | AR14: 0.729 | AS14: 6.10 | AT14: 3.05 | AU14: 366.32
A15: AIRBUS | B15: A380- | C15: 100 | D15: 660.95 | E15: 0.2220 | F15: 85000 | G15: 540000 | H15: 381000 | I15: 294.0 | J15: 850 | M15: 4 | N15: 356000 | O15: 271000 | P15: 0.502 | Q15: 0.157 | R15: 0.706 | S15: 67.46 | T15: 8.50 | U15: 7.02 | V15: 9.61 | W15: 817.00 | X15: 79.80 | Y15: 12.02 | Z15: 7.79 | AA15: 0.213 | AB15: 30.00 | AC15: 0.737 | AD15: 134.20 | AE15: 13.66 | AF15: 1.39 | AG15: 0.424 | AH15: 0.5019 | AI15: 28.99 | AJ15: 0.164 | AK15: 0.060 | AL15: 222.57 | AM15: 31.29 | AN15: 4.40 | AO15: 0.383 | AP15: 31.29 | AQ15: 0.272 | AR15: 0.709 | AS15: 7.30 | AT15: 3.20 | AU15: 459.18
A16: BOEING | B16: 707- | C16: 320C | D16: 533.93 | E16: 0.2278 | F16: 38100 | G16: 151315 | H16: 112037 | I16: 84.5 | J16: 219 | K16: 50.27 | L16: 0.23 | M16: 4 | N16: 104330 | O16: 66224 | P16: 0.438 | Q16: 0.252 | R16: 0.740 | S16: 44.35 | T16: 3.76 | U16: 3.76 | V16: 7.30 | W16: 283.40 | X16: 44.42 | Y16: 7.36 | Z16: 6.96 | AA16: 0.259 | AB16: 35.00 | AC16: 0.670 | AD16: 30.47 | AE16: 7.20 | AF16: 1.70 | AG16: 0.410 | AH16: 0.4377 | AI16: 21.00 | AJ16: 0.108 | AK16: 0.051 | AL16: 58.06 | AM16: 13.95 | AN16: 3.35 | AO16: 0.400 | AP16: 20.50 | AQ16: 0.205 | AR16: 0.571 | AS16: 6.00 | AT16: 1.60 | AU16: 447.47
A17: BOEING | B17: 717- | C17: 200 | D17: 556.20 | E17: 0.3860 | F17: 12220 | G17: 51710 | H17: 46266 | I17: 97.9 | J17: 110 | K17: 25.00 | L17: 0.23 | M17: 2 | N17: 43545 | O17: 31675 | P17: 0.613 | Q17: 0.236 | R17: 0.895 | S17: 33.00 | T17: 3.61 | U17: 3.61 | V17: 4.30 | W17: 92.97 | X17: 28.40 | Y17: 3.88 | Z17: 8.68 | AA17: 0.196 | AB17: 24.50 | AC17: 0.650 | AD17: 19.50 | AE17: 4.35 | AF17: 0.97 | AG17: 0.780 | AH17: 0.6126 | AI17: 12.80 | AJ17: 0.210 | AK17: 0.095 | AL17: 24.20 | AM17: 10.80 | AN17: 4.82 | AO17: 0.380 | AP17: 14.30 | AQ17: 0.260 | AR17: 0.959 | AS17: 6.10 | AT17: 1.75 | AU17: 264.10
A18: BOEING | B18: 727- | C18: 200Adv | D18: 601.82 | E18: 0.2291 | F18: 18597 | G18: 95028 | H18: 72575 | I18: 71.2 | J18: 189 | K18: 43.10 | L18: 0.23 | M18: 3 | N18: 63318 | O18: 46164 | P18: 0.486 | Q18: 0.196 | R18: 0.764 | S18: 41.51 | T18: 3.76 | U18: 3.76 | V18: 7.00 | W18: 157.90 | X18: 32.92 | Y18: 5.46 | Z18: 6.86 | AA18: 0.309 | AB18: 32.00 | AC18: 0.740 | AD18: 33.07 | AE18: 4.60 | AF18: 0.64 | AG18: 0.780 | AH18: 0.4858 | AI18: 14.20 | AJ18: 0.209 | AK18: 0.090 | AL18: 34.93 | AM18: 10.90 | AN18: 3.40 | AO18: 0.380 | AP18: 20.10 | AQ18: 0.221 | AR18: 0.814 | AS18: 7.00 | AT18: 1.50 | AU18: 444.89
A19: BOEING | B19: 737- | C19: 200 | D19: 575.46 | E19: 0.2771 | F19: 15445 | G19: 52390 | H19: 46720 | I19: 71.2 | J19: 130 | K19: 24.78 | L19: 0.19 | M19: 2 | N19: 43091 | O19: 27646 | P19: 0.528 | Q19: 0.295 | R19: 0.892 | S19: 29.54 | T19: 3.73 | U19: 3.73 | V19: 7.40 | W19: 91.04 | X19: 28.35 | Y19: 3.80 | Z19: 8.83 | AA19: 0.266 | AB19: 25.00 | AC19: 0.740 | AD19: 19.70 | AE19: 5.85 | AF19: 1.74 | AG19: 0.288 | AH19: 0.5277 | AI19: 12.10 | AJ19: 0.216 | AK19: 0.092 | AL19: 31.31 | AM19: 12.70 | AN19: 5.15 | AO19: 0.260 | AP19: 14.78 | AQ19: 0.344 | AR19: 1.338 | AS19: 7.00 | AT19: 1.50 | AU19: 367.91
A20: BOEING | B20: 737- | C20: 300 | D20: 620.28 | E20: 0.3213 | F20: 16030 | G20: 56470 | H20: 51710 | I20: 89.0 | J20: 149 | K20: 30.20 | L20: 0.20 | M20: 2 | N20: 47630 | O20: 31869 | P20: 0.564 | Q20: 0.284 | R20: 0.916 | S20: 32.30 | T20: 3.73 | U20: 3.73 | V20: 7.40 | W20: 91.04 | X20: 28.90 | Y20: 3.73 | Z20: 9.17 | AA20: 0.240 | AB20: 25.00 | AC20: 0.720 | AD20: 23.13 | AE20: 6.00 | AF20: 1.56 | AG20: 0.310 | AH20: 0.5644 | AI20: 13.68 | AJ20: 0.254 | AK20: 0.120 | AL20: 31.31 | AM20: 12.70 | AN20: 5.15 | AO20: 0.260 | AP20: 14.78 | AQ20: 0.344 | AR20: 1.363 | AS20: 4.70 | AT20: 2.00 | AU20: 317.25
A21: BOEING | B21: 737- | C21: 400 | D21: 690.03 | E21: 0.3177 | F21: 17740 | G21: 62820 | H21: 54880 | I21: 97.9 | J21: 170 | K21: 38.90 | L21: 0.23 | M21: 2 | N21: 51250 | O21: 33370 | P21: 0.531 | Q21: 0.282 | R21: 0.874 | S21: 35.30 | T21: 3.73 | U21: 3.73 | V21: 7.40 | W21: 91.04 | X21: 28.90 | Y21: 3.73 | Z21: 9.17 | AA21: 0.240 | AB21: 25.00 | AC21: 0.720 | AD21: 23.13 | AE21: 6.00 | AF21: 1.56 | AG21: 0.310 | AH21: 0.5312 | AI21: 14.90 | AJ21: 0.254 | AK21: 0.131 | AL21: 31.31 | AM21: 12.70 | AN21: 5.15 | AO21: 0.260 | AP21: 16.00 | AQ21: 0.344 | AR21: 1.475 | AS21: 4.70 | AT21: 2.00 | AU21: 320.84
A22: BOEING | B22: 737- | C22: 500 | D22: 575.46 | E22: 0.3203 | F22: 15530 | G22: 52390 | H22: 49900 | I22: 82.3 | J22: 130 | K22: 23.30 | L22: 0.18 | M22: 2 | N22: 46490 | O22: 30960 | P22: 0.591 | Q22: 0.296 | R22: 0.952 | S22: 29.90 | T22: 3.73 | U22: 3.73 | V22: 7.40 | W22: 91.04 | X22: 28.90 | Y22: 3.73 | Z22: 9.17 | AA22: 0.240 | AB22: 25.00 | AC22: 0.720 | AD22: 23.13 | AE22: 6.00 | AF22: 1.56 | AG22: 0.310 | AH22: 0.5910 | AI22: 12.90 | AJ22: 0.254 | AK22: 0.113 | AL22: 31.31 | AM22: 12.70 | AN22: 5.15 | AO22: 0.260 | AP22: 14.00 | AQ22: 0.344 | AR22: 1.291 | AS22: 4.70 | AT22: 2.00 | AU22: 318.29
A23: BOEING | B23: 737- | C23: 600 | D23: 522.39 | E23: 0.2568 | F23: 9800 | G23: 65090 | H23: 54650 | I23: 82.0 | J23: 132 | K23: 23.30 | L23: 0.18 | M23: 2 | N23: 51480 | O23: 36440 | P23: 0.560 | Q23: 0.151 | R23: 0.840 | S23: 29.88 | T23: 3.73 | U23: 3.73 | V23: 7.40 | W23: 124.60 | X23: 34.30 | Y23: 4.17 | Z23: 9.44 | AA23: 0.278 | AB23: 25.00 | AC23: 0.599 | AD23: 23.13 | AE23: 6.00 | AF23: 1.56 | AG23: 0.310 | AH23: 0.5598 | AI23: 13.55 | AJ23: 0.186 | AK23: 0.073 | AL23: 32.40 | AM23: 13.40 | AN23: 5.54 | AO23: 0.186 | AP23: 13.58 | AQ23: 0.260 | AR23: 0.847 | AS23: 4.70 | AT23: 2.06 | AU23: 396.89
A24: BOEING | B24: 737- | C24: 700 | D24: 556.98 | E24: 0.2615 | F24: 11610 | G24: 69400 | H24: 58060 | I24: 89.0 | J24: 149 | K24: 30.2 | L24: 0.20 | M24: 2 | N24: 54650 | O24: 37585 | P24: 0.542 | Q24: 0.167 | R24: 0.837 | S24: 32.18 | T24: 3.73 | U24: 3.73 | V24: 7.40 | W24: 124.60 | X24: 34.30 | Y24: 4.17 | Z24: 9.44 | AA24: 0.278 | AB24: 25.00 | AC24: 0.599 | AD24: 23.13 | AE24: 6.00 | AF24: 1.56 | AG24: 0.310 | AH24: 0.5416 | AI24: 14.7 | AJ24: 0.186 | AK24: 0.080 | AL24: 32.40 | AM24: 13.40 | AN24: 5.54 | AO24: 0.186 | AP24: 14.73 | AQ24: 0.260 | AR24: 0.919 | AS24: 4.70 | AT24: 2.06 | AU24: 389.89
A25: BOEING | B25: 737- | C25: 800 | D25: 627.77 | E25: 0.2789 | F25: 14690 | G25: 78220 | H25: 65310 | I25: 107.0 | J25: 189 | K25: 47.1 | L25: 0.25 | M25: 2 | N25: 61680 | O25: 41480 | P25: 0.530 | Q25: 0.188 | R25: 0.835 | S25: 38.08 | T25: 3.73 | U25: 3.73 | V25: 7.40 | W25: 124.60 | X25: 34.30 | Y25: 4.17 | Z25: 9.44 | AA25: 0.278 | AB25: 25.00 | AC25: 0.599 | AD25: 23.13 | AE25: 6.00 | AF25: 1.56 | AG25: 0.310 | AH25: 0.5303 | AI25: 17.7 | AJ25: 0.186 | AK25: 0.096 | AL25: 32.40 | AM25: 13.40 | AN25: 5.54 | AO25: 0.186 | AP25: 17.68 | AQ25: 0.260 | AR25: 1.102 | AS25: 4.70 | AT25: 2.06 | AU25: 365.51
A26: BOEING | B26: 747- | C26: 100 | D26: 665.74 | E26: 0.2503 | F26: 69625 | G26: 340195 | H26: 255830 | I26: 208.8 | J26: 516 | K26: 171.00 | L26: 0.33 | M26: 4 | N26: 238815 | O26: 169190 | P26: 0.497 | Q26: 0.205 | R26: 0.752 | S26: 68.63 | T26: 8.10 | U26: 6.50 | V26: 10.56 | W26: 511.00 | X26: 59.64 | Y26: 9.80 | Z26: 6.96 | AA26: 0.284 | AB26: 37.50 | AC26: 0.700 | AD26: 77.10 | AE26: 10.16 | AF26: 1.34 | AG26: 0.330 | AH26: 0.4973 | AI26: 30.00 | AJ26: 0.151 | AK26: 0.076 | AL26: 136.60 | AM26: 22.08 | AN26: 3.57 | AO26: 0.265 | AP26: 32.50 | AQ26: 0.267 | AR26: 0.887 | AS26: 5.61 | AT26: 2.80 | AU26: 407.32
A27: BOEING | B27: 747- | C27: 200 | D27: 739.41 | E27: 0.2547 | F27: 62820 | G27: 377840 | H27: 255830 | I27: 236.0 | J27: 516 | K27: 171.00 | L27: 0.33 | M27: 4 | N27: 238815 | O27: 175995 | P27: 0.466 | Q27: 0.166 | R27: 0.677 | S27: 68.63 | T27: 8.10 | U27: 6.50 | V27: 10.56 | W27: 511.00 | X27: 59.64 | Y27: 9.80 | Z27: 6.96 | AA27: 0.284 | AB27: 37.50 | AC27: 0.700 | AD27: 77.10 | AE27: 10.16 | AF27: 1.34 | AG27: 0.330 | AH27: 0.4658 | AI27: 30.00 | AJ27: 0.151 | AK27: 0.076 | AL27: 136.60 | AM27: 22.08 | AN27: 3.57 | AO27: 0.265 | AP27: 32.50 | AQ27: 0.267 | AR27: 0.887 | AS27: 5.61 | AT27: 2.80 | AU27: 400.25
A28: BOEING | B28: 747- | C28: 400 | D28: 755.87 | E28: 0.2593 | F28: 61186 | G28: 396830 | H28: 285760 | I28: 252.4 | J28: 660 | K28: 171.00 | L28: 0.26 | M28: 4 | N28: 242670 | O28: 181484 | P28: 0.457 | Q28: 0.154 | R28: 0.720 | S28: 68.63 | T28: 8.10 | U28: 6.50 | V28: 10.56 | W28: 525.00 | X28: 62.30 | Y28: 9.68 | Z28: 7.39 | AA28: 0.275 | AB28: 37.50 | AC28: 0.639 | AD28: 77.10 | AE28: 10.16 | AF28: 1.34 | AG28: 0.330 | AH28: 0.4573 | AI28: 30.00 | AJ28: 0.147 | AK28: 0.071 | AL28: 136.60 | AM28: 22.08 | AN28: 3.57 | AO28: 0.265 | AP28: 32.50 | AQ28: 0.260 | AR28: 0.874 | AS28: 5.64 | AT28: 2.90 | AU28: 393.06
A29: BOEING | B29: 757- | C29: 200 | D29: 625.64 | E29: 0.3365 | F29: 25690 | G29: 115900 | H29: 95450 | I29: 191.3 | J29: 239 | K29: 50.69 | L29: 0.21 | M29: 2 | N29: 84550 | O29: 58040 | P29: 0.501 | Q29: 0.222 | R29: 0.824 | S29: 46.96 | T29: 4.10 | U29: 4.00 | V29: 11.74 | W29: 185.25 | X29: 38.05 | Y29: 5.64 | Z29: 7.82 | AA29: 0.243 | AB29: 25.00 | AC29: 0.757 | AD29: 34.37 | AE29: 7.33 | AF29: 1.56 | AG29: 0.35 | AH29: 0.5008 | AI29: 18.97 | AJ29: 0.19 | AK29: 0.092 | AL29: 50.35 | AM29: 15.21 | AN29: 4.59 | AO29: 0.33 | AP29: 19.85 | AQ29: 0.27 | AR29: 0.957 | AS29: 5.2 | AT29: 2.60 | AU29: 302.93
A30: BOEING | B30: 757- | C30: 300 | D30: 661.11 | E30: 0.3196 | F30: 29470 | G30: 122470 | H30: 101600 | I30: 192.0 | J30: 289 | K30: 70.90 | L30: 0.25 | M30: 2 | N30: 95250 | O30: 65980 | P30: 0.539 | Q30: 0.241 | R30: 0.830 | S30: 53.96 | T30: 4.10 | U30: 4.00 | V30: 13.49 | W30: 185.25 | X30: 38.05 | Y30: 5.64 | Z30: 7.82 | AA30: 0.243 | AB30: 25.00 | AC30: 0.757 | AD30: 34.37 | AE30: 7.33 | AF30: 1.56 | AG30: 0.35 | AH30: 0.5387 | AI30: 18.97 | AJ30: 0.19 | AK30: 0.092 | AL30: 50.35 | AM30: 15.21 | AN30: 4.59 | AO30: 0.33 | AP30: 19.85 | AQ30: 0.27 | AR30: 0.957 | AS30: 5.2 | AT30: 2.60 | AU30: 318.93
A31: BOEING | B31: 767- | C31: 200 | D31: 480.33 | E31: 0.3199 | F31: 34065 | G31: 136078 | H31: 122470 | I31: 213.5 | J31: 255 | K31: 87.00 | L31: 0.34 | M31: 2 | N31: 112491 | O31: 80921 | P31: 0.595 | Q31: 0.250 | R31: 0.900 | S31: 47.24 | T31: 5.03 | U31: 5.03 | V31: 9.39 | W31: 283.30 | X31: 47.57 | Y31: 6.98 | Z31: 7.99 | AA31: 0.207 | AB31: 31.50 | AC31: 0.750 | AD31: 46.14 | AE31: 9.01 | AF31: 1.76 | AG31: 0.306 | AH31: 0.5947 | AI31: 19.82 | AJ31: 0.163 | AK31: 0.068 | AL31: 77.69 | AM31: 18.62 | AN31: 4.46 | AO31: 0.200 | AP31: 20.34 | AQ31: 0.274 | AR31: 0.799 | AS31: 6.22 | AT31: 2.68 | AU31: 318.68
A32: BOEING | B32: 767- | C32: 200ER | D32: 619.63 | E32: 0.2992 | F32: 35652 | G32: 175540 | H32: 129293 | I32: 257.6 | J32: 255 | K32: 87.00 | L32: 0.34 | M32: 2 | N32: 117934 | O32: 83788 | P32: 0.477 | Q32: 0.203 | R32: 0.737 | S32: 47.24 | T32: 5.03 | U32: 5.03 | V32: 9.39 | W32: 283.30 | X32: 47.57 | Y32: 6.98 | Z32: 7.99 | AA32: 0.207 | AB32: 31.50 | AC32: 0.750 | AD32: 46.14 | AE32: 9.01 | AF32: 1.76 | AG32: 0.306 | AH32: 0.4773 | AI32: 19.82 | AJ32: 0.163 | AK32: 0.068 | AL32: 77.69 | AM32: 18.62 | AN32: 4.46 | AO32: 0.200 | AP32: 20.34 | AQ32: 0.274 | AR32: 0.799 | AS32: 6.22 | AT32: 2.68 | AU32: 340.72
A33: BOEING | B33: 767- | C33: 300 | D33: 552.38 | E33: 0.2912 | F33: 39140 | G33: 156489 | H33: 136078 | I33: 223.5 | J33: 290 | K33: 114.10 | L33: 0.39 | M33: 2 | N33: 126099 | O33: 87135 | P33: 0.557 | Q33: 0.250 | R33: 0.870 | S33: 53.67 | T33: 5.03 | U33: 5.03 | V33: 10.67 | W33: 283.30 | X33: 47.57 | Y33: 6.98 | Z33: 7.99 | AA33: 0.207 | AB33: 31.50 | AC33: 0.750 | AD33: 46.14 | AE33: 9.01 | AF33: 1.76 | AG33: 0.306 | AH33: 0.5568 | AI33: 23.17 | AJ33: 0.163 | AK33: 0.079 | AL33: 77.69 | AM33: 18.62 | AN33: 4.46 | AO33: 0.200 | AP33: 23.69 | AQ33: 0.274 | AR33: 0.931 | AS33: 6.22 | AT33: 2.68 | AU33: 350.09
A34: BOEING | B34: 767- | C34: 300ER | D34: 640.44 | E34: 0.3074 | F34: 45541 | G34: 181437 | H34: 145149 | I34: 273.6 | J34: 290 | K34: 114.10 | L34: 0.39 | M34: 2 | N34: 130634 | O34: 89902 | P34: 0.495 | Q34: 0.251 | R34: 0.800 | S34: 53.67 | T34: 5.03 | U34: 5.03 | V34: 10.67 | W34: 283.30 | X34: 47.57 | Y34: 6.98 | Z34: 7.99 | AA34: 0.207 | AB34: 31.50 | AC34: 0.750 | AD34: 46.14 | AE34: 9.01 | AF34: 1.76 | AG34: 0.306 | AH34: 0.4955 | AI34: 23.17 | AJ34: 0.163 | AK34: 0.079 | AL34: 77.69 | AM34: 18.62 | AN34: 4.46 | AO34: 0.200 | AP34: 23.69 | AQ34: 0.274 | AR34: 0.931 | AS34: 6.22 | AT34: 2.68 | AU34: 331.57
A35: BOEING | B35: 747- | C35: 100 | D35: 665.74 | E35: 0.2503 | F35: 69625 | G35: 340195 | H35: 255830 | I35: 208.8 | J35: 516 | K35: 171.00 | L35: 0.33 | M35: 4 | N35: 238815 | O35: 169190 | P35: 0.497 | Q35: 0.205 | R35: 0.752 | S35: 68.63 | T35: 8.10 | U35: 6.50 | V35: 10.56 | W35: 511.00 | X35: 59.64 | Y35: 9.80 | Z35: 6.96 | AA35: 0.284 | AB35: 37.50 | AC35: 0.700 | AD35: 77.10 | AE35: 10.16 | AF35: 1.34 | AG35: 0.330 | AH35: 0.4973 | AI35: 30.00 | AJ35: 0.151 | AK35: 0.076 | AL35: 136.60 | AM35: 22.08 | AN35: 3.57 | AO35: 0.265 | AP35: 32.50 | AQ35: 0.267 | AR35: 0.887 | AS35: 5.61 | AT35: 2.80 | AU35: 407.32
A36: BOEING | B36: 747- | C36: 200 | D36: 739.41 | E36: 0.2547 | F36: 62820 | G36: 377840 | H36: 255830 | I36: 236.0 | J36: 516 | K36: 171.00 | L36: 0.33 | M36: 4 | N36: 238815 | O36: 175995 | P36: 0.466 | Q36: 0.166 | R36: 0.677 | S36: 68.63 | T36: 8.10 | U36: 6.50 | V36: 10.56 | W36: 511.00 | X36: 59.64 | Y36: 9.80 | Z36: 6.96 | AA36: 0.284 | AB36: 37.50 | AC36: 0.700 | AD36: 77.10 | AE36: 10.16 | AF36: 1.34 | AG36: 0.330 | AH36: =O36/G36 -> 0.4658 | AI36: 30.00 | AJ36: 0.151 | AK36: 0.076 | AL36: 136.60 | AM36: 22.08 | AN36: 3.57 | AO36: 0.265 | AP36: 32.50 | AQ36: 0.267 | AR36: 0.887 | AS36: 5.61 | AT36: 2.80 | AU36: 400.25
A37: BOEING | B37: 747- | C37: 400 | D37: 755.87 | E37: 0.2593 | F37: 61186 | G37: 396830 | H37: 285760 | I37: 252.4 | J37: 660 | K37: 171.00 | L37: 0.26 | M37: 4 | N37: 242670 | O37: 181484 | P37: 0.457 | Q37: 0.154 | R37: 0.720 | S37: 68.63 | T37: 8.10 | U37: 6.50 | V37: 10.56 | W37: 525.00 | X37: 62.30 | Y37: 9.68 | Z37: 7.39 | AA37: 0.275 | AB37: 37.50 | AC37: 0.639 | AD37: 77.10 | AE37: 10.16 | AF37: 1.34 | AG37: 0.330 | AH37: 0.4573 | AI37: 30.00 | AJ37: 0.147 | AK37: 0.071 | AL37: 136.60 | AM37: 22.08 | AN37: 3.57 | AO37: 0.265 | AP37: 32.50 | AQ37: 0.260 | AR37: 0.874 | AS37: 5.64 | AT37: 2.90 | AU37: 393.06
A38: BOEING | B38: 757- | C38: 200 | D38: 625.64 | E38: 0.3365 | F38: 25690 | G38: 115900 | H38: 95450 | I38: 191.3 | J38: 239 | K38: 50.69 | L38: 0.21 | M38: 2 | N38: 84550 | O38: 58040 | P38: 0.501 | Q38: 0.222 | R38: 0.824 | S38: 46.96 | T38: 4.10 | U38: 4.00 | V38: 11.74 | W38: 185.25 | X38: 38.05 | Y38: 5.64 | Z38: 7.82 | AA38: 0.243 | AB38: 25.00 | AC38: 0.757 | AD38: 34.37 | AE38: 7.33 | AF38: 1.56 | AG38: 0.35 | AH38: 0.5008 | AI38: 18.97 | AJ38: 0.19 | AK38: 0.092 | AL38: 50.35 | AM38: 15.21 | AN38: 4.59 | AO38: 0.33 | AP38: 19.85 | AQ38: 0.27 | AR38: 0.957 | AS38: 5.2 | AT38: 2.60 | AU38: 302.93
A39: BOEING | B39: 757- | C39: 300 | D39: 661.11 | E39: 0.3196 | F39: 29470 | G39: 122470 | H39: 101600 | I39: 192.0 | J39: 289 | K39: 70.90 | L39: 0.25 | M39: 2 | N39: 95250 | O39: 65980 | P39: 0.539 | Q39: 0.241 | R39: 0.830 | S39: 53.96 | T39: 4.10 | U39: 4.00 | V39: 13.49 | W39: 185.25 | X39: 38.05 | Y39: 5.64 | Z39: 7.82 | AA39: 0.243 | AB39: 25.00 | AC39: 0.757 | AD39: 34.37 | AE39: 7.33 | AF39: 1.56 | AG39: 0.35 | AH39: 0.5387 | AI39: 18.97 | AJ39: 0.19 | AK39: 0.092 | AL39: 50.35 | AM39: 15.21 | AN39: 4.59 | AO39: 0.33 | AP39: 19.85 | AQ39: 0.27 | AR39: 0.957 | AS39: 5.2 | AT39: 2.60 | AU39: 318.93
A40: BOEING | B40: 767- | C40: 200 | D40: 480.33 | E40: 0.3199 | F40: 34065 | G40: 136078 | H40: 122470 | I40: 213.5 | J40: 255 | K40: 87.00 | L40: 0.34 | M40: 2 | N40: 112491 | O40: 80921 | P40: 0.595 | Q40: 0.250 | R40: 0.900 | S40: 47.24 | T40: 5.03 | U40: 5.03 | V40: 9.39 | W40: 283.30 | X40: 47.57 | Y40: 6.98 | Z40: 7.99 | AA40: 0.207 | AB40: 31.50 | AC40: 0.750 | AD40: 46.14 | AE40: 9.01 | AF40: 1.76 | AG40: 0.306 | AH40: 0.5947 | AI40: 19.82 | AJ40: 0.163 | AK40: 0.068 | AL40: 77.69 | AM40: 18.62 | AN40: 4.46 | AO40: 0.200 | AP40: 20.34 | AQ40: 0.274 | AR40: 0.799 | AS40: 6.22 | AT40: 2.68 | AU40: 318.68
A41: BOEING | B41: 767- | C41: 200ER | D41: 619.63 | E41: 0.2992 | F41: 35652 | G41: 175540 | H41: 129293 | I41: 257.6 | J41: 255 | K41: 87.00 | L41: 0.34 | M41: 2 | N41: 117934 | O41: 83788 | P41: 0.477 | Q41: 0.203 | R41: 0.737 | S41: 47.24 | T41: 5.03 | U41: 5.03 | V41: 9.39 | W41: 283.30 | X41: 47.57 | Y41: 6.98 | Z41: 7.99 | AA41: 0.207 | AB41: 31.50 | AC41: 0.750 | AD41: 46.14 | AE41: 9.01 | AF41: 1.76 | AG41: 0.306 | AH41: 0.4773 | AI41: 19.82 | AJ41: 0.163 | AK41: 0.068 | AL41: 77.69 | AM41: 18.62 | AN41: 4.46 | AO41: 0.200 | AP41: 20.34 | AQ41: 0.274 | AR41: 0.799 | AS41: 6.22 | AT41: 2.68 | AU41: 340.72
A42: BOEING | B42: 767- | C42: 300 | D42: 552.38 | E42: 0.2912 | F42: 39140 | G42: 156489 | H42: 136078 | I42: 223.5 | J42: 290 | K42: 114.10 | L42: 0.39 | M42: 2 | N42: 126099 | O42: 87135 | P42: 0.557 | Q42: 0.250 | R42: 0.870 | S42: 53.67 | T42: 5.03 | U42: 5.03 | V42: 10.67 | W42: 283.30 | X42: 47.57 | Y42: 6.98 | Z42: 7.99 | AA42: 0.207 | AB42: 31.50 | AC42: 0.750 | AD42: 46.14 | AE42: 9.01 | AF42: 1.76 | AG42: 0.306 | AH42: 0.5568 | AI42: 23.17 | AJ42: 0.163 | AK42: 0.079 | AL42: 77.69 | AM42: 18.62 | AN42: 4.46 | AO42: 0.200 | AP42: 23.69 | AQ42: 0.274 | AR42: 0.931 | AS42: 6.22 | AT42: 2.68 | AU42: 350.09
A43: BOEING | B43: 767- | C43: 300ER | D43: 640.44 | E43: 0.3074 | F43: 45541 | G43: 181437 | H43: 145149 | I43: 273.6 | J43: 290 | K43: 114.10 | L43: 0.39 | M43: 2 | N43: 130634 | O43: 89902 | P43: 0.495 | Q43: 0.251 | R43: 0.800 | S43: 53.67 | T43: 5.03 | U43: 5.03 | V43: 10.67 | W43: 283.30 | X43: 47.57 | Y43: 6.98 | Z43: 7.99 | AA43: 0.207 | AB43: 31.50 | AC43: 0.750 | AD43: 46.14 | AE43: 9.01 | AF43: 1.76 | AG43: 0.306 | AH43: 0.4955 | AI43: 23.17 | AJ43: 0.163 | AK43: 0.079 | AL43: 77.69 | AM43: 18.62 | AN43: 4.46 | AO43: 0.200 | AP43: 23.69 | AQ43: 0.274 | AR43: 0.931 | AS43: 6.22 | AT43: 2.68 | AU43: 331.57
A44: BOEING | B44: 777- | C44: 200 | D44: 567.25 | E44: 0.2878 | F44: 54635 | G44: 242670 | H44: 201850 | I44: 342.5 | J44: 440 | K44: 160.00 | L44: 0.36 | M44: 2 | N44: 190510 | O44: 135875 | P44: 0.560 | Q44: 0.225 | R44: 0.832 | S44: 62.78 | T44: 6.20 | U44: 6.20 | V44: 10.13 | W44: 427.80 | X44: 60.90 | Y44: 8.75 | Z44: 8.67 | AA44: 0.149 | AB44: 31.60 | AC44: 0.758 | AD44: 53.23 | AE44: 9.24 | AF44: 1.60 | AG44: 0.290 | AH44: 0.5599 | AI44: 26.60 | AJ44: 0.124 | AK44: 0.054 | AL44: 101.26 | AM44: 21.35 | AN44: 4.50 | AO44: 0.300 | AP44: 27.90 | AQ44: 0.237 | AR44: 0.755 | AS44: 7.30 | AT44: 3.20 | AU44: 354.24
A45: BOEING | B45: 777- | C45: 200IGW | D45: 670.63 | E45: 0.2655 | F45: 56925 | G45: 286897 | H45: 208652 | I45: 373.7 | J45: 440 | K45: 160.00 | L45: 0.36 | M45: 2 | N45: 195045 | O45: 138120 | P45: 0.481 | Q45: 0.198 | R45: 0.727 | S45: 62.78 | T45: 6.20 | U45: 6.20 | V45: 10.13 | W45: 427.80 | X45: 60.90 | Y45: 8.75 | Z45: 8.67 | AA45: 0.149 | AB45: 31.60 | AC45: 0.758 | AD45: 53.23 | AE45: 9.24 | AF45: 1.60 | AG45: 0.290 | AH45: 0.4814 | AI45: 26.60 | AJ45: 0.124 | AK45: 0.054 | AL45: 101.26 | AM45: 21.35 | AN45: 4.50 | AO45: 0.300 | AP45: 27.90 | AQ45: 0.237 | AR45: 0.755 | AS45: 7.30 | AT45: 3.20 | AU45: 383.90
A46: BOEING | B46: 777- | C46: 300 | D46: 699.79 | E46: 0.2881 | F46: 68570 | G46: 299370 | H46: 237685 | I46: 423.0 | J46: 550 | K46: 200.50 | L46: 0.36 | M46: 2 | N46: 224530 | O46: 155960 | P46: 0.521 | Q46: 0.229 | R46: 0.794 | S46: 72.88 | T46: 6.20 | U46: 6.20 | V46: 11.75 | W46: 427.80 | X46: 60.90 | Y46: 8.75 | Z46: 8.67 | AA46: 0.149 | AB46: 31.60 | AC46: 2.758 | AD46: 53.23 | AE46: 9.24 | AF46: 1.60 | AG46: 0.290 | AH46: 0.5210 | AI46: 31.65 | AJ46: 0.124 | AK46: 0.065 | AL46: 101.26 | AM46: 21.35 | AN46: 4.50 | AO46: 0.300 | AP46: 32.95 | AQ46: 0.237 | AR46: 0.891 | AS46: 7.30 | AT46: 3.20 | AU46: 353.87
A47: DOUG. | C47: DC8-63 | D47: 583.89 | E47: 0.217 | F47: 30719 | G47: 158760 | H47: 111130 | I47: 80.1 | J47: 259 | K47: 70.8 | L47: 0.27 | M47: 4 | N47: 100458 | O47: 69739 | P47: 0.439 | Q47: 0.193 | R47: 0.700 | S47: 55.70 | T47: 3.80 | U47: 3.80 | V47: 14.66 | W47: 271.90 | X47: 45.23 | Y47: 7.10 | Z47: 7.52 | AA47: 0.181 | AB47: 30.00 | AC47: 0.730 | AD47: 23.60 | AE47: 6.40 | AF47: 1.74 | AG47: 0.333 | AH47: 0.4393 | AI47: 25.70 | AJ47: 0.087 | AK47: 0.049 | AL47: 51.10 | AM47: 14.48 | AN47: 4.10 | AO47: 0.341 | AP47: 24.95 | AQ47: 0.188 | AR47: 0.660 | AS47: 6.00 | AT47: 1.60 | AU47: 469.70
A48: DOUG. | C48: DC8-73 | D48: 592.13 | E48: 0.248 | F48: 29257 | G48: 161000 | H48: 117000 | I48: 98 | J48: 259 | K48: 70.8 | L48: 0.27 | M48: 4 | N48: 104800 | O48: 75500 | P48: 0.469 | Q48: 0.182 | R48: 0.727 | S48: 55.70 | T48: 3.80 | U48: 3.80 | V48: 14.66 | W48: 271.90 | X48: 45.23 | Y48: 7.10 | Z48: 7.52 | AA48: 0.181 | AB48: 30.00 | AC48: 0.730 | AD48: 23.60 | AE48: 6.40 | AF48: 1.74 | AG48: 0.333 | AH48: 0.4689 | AI48: 25.70 | AJ48: 0.087 | AK48: 0.049 | AL48: 51.10 | AM48: 14.48 | AN48: 4.10 | AO48: 0.341 | AP48: 24.95 | AQ48: 0.188 | AR48: 0.660 | AS48: 4.70 | AT48: 2.00 | AU48: 410.71
A49: DOUG. | C49: DC 9-10 | D49: 406.19 | E49: 0.315 | F49: 9570 | G49: 35245 | H49: 33565 | I49: 54.5 | J49: 90 | K49: 17 | L49: 0.19 | M49: 2 | N49: 30120 | O49: 20550 | P49: 0.583 | Q49: 0.272 | R49: 0.952 | S49: 27.91 | T49: 3.60 | U49: 3.60 | V49: 7.75 | W49: 86.77 | X49: 27.25 | Y49: 3.67 | Z49: 8.56 | AA49: 0.194 | AB49: 24.00 | AC49: 0.670 | AD49: 14.96 | AE49: 3.90 | AF49: 1.02 | AG49: 0.750 | AH49: 0.5831 | AI49: 11.70 | AJ49: 0.172 | AK49: 0.074 | AL49: 25.60 | AM49: 11.23 | AN49: 4.93 | AO49: 0.318 | AP49: 14.35 | AQ49: 0.295 | AR49: 1.154 | AS49: 5.30 | AT49: 1.56 | AU49: 323.35
A50: DOUG. | C50: DC 9-30 | D50: 527.05 | E50: 0.258 | F50: 14000 | G50: 49000 | H50: 45000 | I50: 62 | J50: 119 | K50: 25.3 | L50: 0.21 | M50: 2 | N50: 39500 | O50: 25400 | P50: 0.518 | Q50: 0.286 | R50: 0.918 | S50: 32.28 | T50: 3.60 | U50: 3.60 | V50: 8.97 | W50: 92.97 | X50: 28.47 | Y50: 3.73 | Z50: 8.72 | AA50: 0.206 | AB50: 24.00 | AC50: 0.670 | AD50: 14.96 | AE50: 4.90 | AF50: 1.60 | AG50: 0.750 | AH50: 0.5184 | AI50: 13.10 | AJ50: 0.161 | AK50: 0.074 | AL50: 25.60 | AM50: 11.23 | AN50: 4.93 | AO50: 0.318 | AP50: 15.82 | AQ50: 0.275 | AR50: 1.168 | AS50: 5.30 | AT50: 1.56 | AU50: 395.16
A51: DOUG. | C51: DC 9-40 | D51: 556.20 | E51: 0.272 | F51: 15510 | G51: 51710 | H51: 46265 | I51: 68.9 | J51: 125 | K51: 28.9 | L51: 0.23 | M51: 2 | N51: 42184 | O51: 27800 | P51: 0.538 | Q51: 0.300 | R51: 0.895 | S51: 34.70 | T51: 3.60 | U51: 3.60 | V51: 9.64 | W51: 92.97 | X51: 28.47 | Y51: 3.73 | Z51: 8.72 | AA51: 0.206 | AB51: 24.00 | AC51: 0.670 | AD51: 14.96 | AE51: 5.90 | AF51: 2.33 | AG51: 0.750 | AH51: 0.5376 | AI51: 14.50 | AJ51: 0.161 | AK51: 0.082 | AL51: 25.60 | AM51: 11.23 | AN51: 4.93 | AO51: 0.318 | AP51: 17.23 | AQ51: 0.275 | AR51: 1.272 | AS51: 5.30 | AT51: 1.56 | AU51: 375.25
A52: DOUG. | C52: DC 9-50 | D52: 585.35 | E52: 0.258 | F52: 15265 | G52: 54420 | H52: 49885 | I52: 68.9 | J52: 139 | K52: 28.4 | L52: 0.20 | M52: 2 | N52: 44670 | O52: 29300 | P52: 0.538 | Q52: 0.281 | R52: 0.917 | S52: 37.14 | T52: 3.60 | U52: 3.60 | V52: 10.32 | W52: 92.97 | X52: 28.47 | Y52: 3.73 | Z52: 8.72 | AA52: 0.206 | AB52: 24.00 | AC52: 0.670 | AD52: 14.96 | AE52: 6.90 | AF52: 3.18 | AG52: 0.750 | AH52: 0.5384 | AI52: 15.72 | AJ52: 0.161 | AK52: 0.089 | AL52: 25.60 | AM52: 11.23 | AN52: 4.93 | AO52: 0.318 | AP52: 18.45 | AQ52: 0.275 | AR52: 1.362 | AS52: 5.30 | AT52: 1.56 | AU52: 394.92
A53: McDON. | B53: /DOUG. | C53: MD-81 | D53: 565.45 | E53: 0.275 | F53: 17953 | G53: 63500 | H53: 58000 | I53: 85.6 | J53: 172 | K53: 35.20 | L53: 0.20 | M53: 2 | N53: 53500 | O53: 35570 | P53: 0.560 | Q53: 0.283 | R53: 0.913 | S53: 41.30 | T53: 3.61 | U53: 3.61 | V53: 11.44 | W53: 112.30 | X53: 32.87 | Y53: 4.08 | Z53: 9.62 | AA53: 0.195 | AB53: 24.50 | AC53: 0.670 | AD53: 15.60 | AE53: 4.10 | AF53: 1.08 | AG53: 0.707 | AH53: 0.5602 | AI53: 15.70 | AJ53: 0.139 | AK53: 0.066 | AL53: 29.17 | AM53: 12.24 | AN53: 5.14 | AO53: 0.330 | AP53: 18.00 | AQ53: 0.260 | AR53: 1.146 | AS53: 6.10 | AT53: 2.00 | AU53: 370.91
A54: McDON. | B54: /DOUG. | C54: MD-82 | D54: 603.85 | E54: 0.279 | F54: 18802 | G54: 67812 | H54: 58970 | I54: 92.7 | J54: 172 | K54: 35.20 | L54: 0.20 | M54: 2 | N54: 55340 | O54: 35630 | P54: 0.525 | Q54: 0.277 | R54: 0.870 | S54: 41.30 | T54: 3.61 | U54: 3.61 | V54: 11.44 | W54: 112.30 | X54: 32.87 | Y54: 4.08 | Z54: 9.62 | AA54: 0.195 | AB54: 24.50 | AC54: 0.670 | AD54: 15.60 | AE54: 4.10 | AF54: 1.08 | AG54: 0.707 | AH54: 0.5254 | AI54: 15.70 | AJ54: 0.139 | AK54: 0.066 | AL54: 29.17 | AM54: 12.24 | AN54: 5.14 | AO54: 0.330 | AP54: 18.00 | AQ54: 0.260 | AR54: 1.146 | AS54: 6.10 | AT54: 2.00 | AU54: 365.76
A55: McDON. | B55: /DOUG. | C55: MD-83 | D55: 646.30 | E55: 0.271 | F55: 18721 | G55: 72580 | H55: 63280 | I55: 96.5 | J55: 172 | K55: 28.70 | L55: 0.17 | M55: 2 | N55: 55340 | O55: 36620 | P55: 0.505 | Q55: 0.258 | R55: 0.872 | S55: 41.30 | T55: 3.61 | U55: 3.61 | V55: 11.44 | W55: 112.30 | X55: 32.87 | Y55: 4.08 | Z55: 9.62 | AA55: 0.195 | AB55: 24.50 | AC55: 0.670 | AD55: 15.60 | AE55: 4.10 | AF55: 1.08 | AG55: 0.707 | AH55: 0.5045 | AI55: 15.70 | AJ55: 0.139 | AK55: 0.066 | AL55: 29.17 | AM55: 12.24 | AN55: 5.14 | AO55: 0.330 | AP55: 18.00 | AQ55: 0.260 | AR55: 1.146 | AS55: 6.10 | AT55: 2.00 | AU55: 376.06
A56: McDON. | B56: /DOUG. | C56: MD-87 | D56: 565.45 | E56: 0.298 | F56: 17619 | G56: 63500 | H56: 58000 | I56: 92.7 | J56: 130 | K56: 26.60 | L56: 0.20 | M56: 2 | N56: 53524 | O56: 33253 | P56: 0.524 | Q56: 0.277 | R56: 0.913 | S56: 36.30 | T56: 3.61 | U56: 3.61 | V56: 10.06 | W56: 112.30 | X56: 32.87 | Y56: 4.08 | Z56: 9.62 | AA56: 0.195 | AB56: 24.50 | AC56: 0.670 | AD56: 18.50 | AE56: 4.20 | AF56: 0.95 | AG56: 0.750 | AH56: 0.5237 | AI56: 13.60 | AJ56: 0.165 | AK56: 0.068 | AL56: 29.17 | AM56: 12.24 | AN56: 5.14 | AO56: 0.400 | AP56: 16.30 | AQ56: 0.260 | AR56: 1.038 | AS56: 6.10 | AT56: 1.95 | AU56: 342.50
A57: McDON. | B57: /DOUG. | C57: MD-90-30 | D57: 630.10 | E57: 0.320 | F57: 17350 | G57: 70760 | H57: 64410 | I57: 111.2 | J57: 182 | K57: 38.03 | L57: 0.21 | M57: 2 | N57: 58965 | O57: 39415 | P57: 0.557 | Q57: 0.245 | R57: 0.910 | S57: 43.00 | T57: 3.61 | U57: 3.61 | V57: 11.91 | W57: 112.30 | X57: 32.87 | Y57: 4.08 | Z57: 9.62 | AA57: 0.195 | AB57: 24.50 | AC57: 0.630 | AD57: 21.40 | AE57: 4.70 | AF57: 1.03 | AG57: 0.770 | AH57: 0.5570 | AI57: 15.60 | AJ57: 0.191 | AK57: 0.090 | AL57: 33.00 | AM57: 12.24 | AN57: 4.54 | AO57: 0.360 | AP57: 18.60 | AQ57: 0.294 | AR57: 1.340 | AS57: 5.75 | AT57: 1.55 | AU57: 318.14
A58: DOUG. | C58: DC10-10 | D58: 519.05 | E58: 0.285 | F58: 48330 | G58: 190854 | H58: 164854 | I58: 178.0 | J58: 380 | K58: 132.20 | L58: 0.35 | M58: 3 | N58: 151956 | O58: 111344 | P58: 0.583 | Q58: 0.253 | R58: 0.864 | S58: 51.97 | T58: 6.02 | U58: 6.02 | V58: 8.63 | W58: 367.70 | X58: 50.40 | Y58: 8.59 | Z58: 6.91 | AA58: 0.22 | AB58: 35.00 | AC58: 0.680 | AD58: 56.21 | AE58: 11.16 | AF58: 2.22 | AG58: 0.475 | AH58: 0.5834 | AI58: 20.65 | AJ58: 0.153 | AK58: 0.063 | AL58: 124.30 | AM58: 21.69 | AN58: 3.78 | AO58: 0.344 | AP58: 19.80 | AQ58: 0.338 | AR58: 0.780 | AS58: 6.50 | AT58: 2.70 | AU58: 357.40
A59: DOUG. | C59: DC10-30 | D59: 716.99 | E59: 0.274 | F59: 48330 | G59: 263636 | H59: 182798 | I59: 236.0 | J59: 380 | K59: 132.20 | L59: 0.35 | M59: 3 | N59: 166922 | O59: 121364 | P59: 0.460 | Q59: 0.183 | R59: 0.693 | S59: 51.97 | T59: 6.02 | U59: 6.02 | V59: 8.63 | W59: 367.70 | X59: 50.40 | Y59: 8.59 | Z59: 6.91 | AA59: 0.22 | AB59: 35.00 | AC59: 0.680 | AD59: 56.21 | AE59: 11.16 | AF59: 2.22 | AG59: 0.475 | AH59: 0.4603 | AI59: 20.65 | AJ59: 0.153 | AK59: 0.063 | AL59: 124.30 | AM59: 21.69 | AN59: 3.78 | AO59: 0.344 | AP59: 19.80 | AQ59: 0.338 | AR59: 0.780 | AS59: 6.50 | AT59: 2.70 | AU59: 372.37
A60: McDON. | B60: /DOUG. | C60: MD-11 | D60: 837.18 | E60: 0.295 | F60: 55566 | G60: 283720 | H60: 207744 | I60: 274.0 | J60: 405 | K60: 194.00 | L60: 0.48 | M60: 3 | N60: 195043 | O60: 134081 | P60: 0.473 | Q60: 0.196 | R60: 0.732 | S60: 58.65 | T60: 6.02 | U60: 6.02 | V60: 9.74 | W60: 338.90 | X60: 51.77 | Y60: 7.68 | Z60: 7.91 | AA60: 0.239 | AB60: 35.00 | AC60: 0.700 | AD60: 56.20 | AE60: 11.16 | AF60: 2.22 | AG60: 0.369 | AH60: 0.4726 | AI60: 20.92 | AJ60: 0.166 | AK60: 0.067 | AL60: 85.50 | AM60: 18.03 | AN60: 3.80 | AO60: 0.383 | AP60: 20.92 | AQ60: 0.252 | AR60: 0.687 | AS60: 6.50 | AT60: 2.70 | AU60: 345.16
A61: LOCKHD | C61: L1011-100 | D61: 657.46 | E61: 0.271 | F61: 33355 | G61: 211374 | H61: 166922 | I61: 187 | J61: 400 | K61: 110.40 | L61: 0.276 | M61: 3 | N61: 145150 | O61: 111795 | P61: 0.529 | Q61: 0.158 | R61: 0.790 | S61: 54.20 | T61: 6.06 | U61: 6.06 | V61: 8.94 | W61: 321.50 | X61: 47.35 | Y61: 7.90 | Z61: 6.97 | AA61: 0.259 | AB61: 35.00 | AC61: 0.77 | AD61: 51.10 | AE61: 9.90 | AF61: 1.92 | AG61: 0.290 | AH61: 0.5289 | AI61: 20.60 | AJ61: 0.159 | AK61: 0.069 | AL61: 119.10 | AM61: 21.90 | AN61: 4.03 | AO61: 0.310 | AP61: 17.70 | AQ61: 0.370 | AR61: 0.830 | AS61: 6.3 | AT61: 2.75 | AU61: 376.78
A62: ILYUSHIN | C62: Il-62M/MK | D62: 590.23 | E62: 0.267 | F62: 23000 | G62: 165000 | H62: 105000 | I62: 107.9 | J62: 174 | K62: 48.00 | L62: 0.28 | M62: 4 | N62: 94600 | O62: 71600 | P62: 0.434 | Q62: 0.139 | R62: 0.636 | S62: 49.00 | T62: 4.30 | U62: 4.30 | V62: 11.40 | W62: 279.55 | X62: 43.20 | Y62: 7.47 | Z62: 6.68 | AA62: 0.254 | AB62: 32.50 | AC62: 0.720 | AD62: 35.60 | AE62: 6.05 | AF62: 1.03 | AG62: 0.540 | AH62: 0.4339 | AI62: 16.60 | AJ62: 0.127 | AK62: 0.049 | AL62: 50.50 | AM62: 12.23 | AN62: 2.96 | AO62: 0.360 | AP62: 22.50 | AQ62: 0.181 | AR62: 0.544 | AS62: 6.15 | AT62: 2.35 | AU62: 382.30
A63: ILYUSHIN | C63: Il-96-300 | D63: 551.58 | E63: 0.296 | F63: 40000 | G63: 216000 | H63: 175000 | I63: 156.9 | J63: 300 | K63: 115.90 | L63: 0.39 | M63: 4 | N63: 157000 | O63: 117000 | P63: 0.542 | Q63: 0.185 | R63: 0.810 | S63: 51.15 | T63: 6.08 | U63: 6.08 | V63: 8.41 | W63: 391.60 | X63: 55.57 | Y63: 8.04 | Z63: 7.89 | AA63: 0.279 | AB63: 30.00 | AC63: 0.790 | AD63: 61.00 | AE63: 9.40 | AF63: 1.45 | AG63: 0.280 | AH63: 0.5417 | AI63: 23.55 | AJ63: 0.156 | AK63: 0.066 | AL63: 96.50 | AM63: 20.57 | AN63: 4.38 | AO63: 0.290 | AP63: 24.25 | AQ63: 0.246 | AR63: 0.743 | AS63: 5.90 | AT63: 2.20 | AU63: 344.17
A64: ILYUSHIN | C64: Il-96M | D64: 689.48 | E64: 0.249 | F64: 58000 | G64: 270000 | H64: 175158 | I64: 164.6 | J64: 375 | K64: 143.04 | L64: 0.38 | M64: 4 | N64: 190423 | O64: 132400 | P64: 0.490 | Q64: 0.215 | R64: 0.649 | S64: 60.50 | T64: 6.08 | U64: 6.08 | V64: 9.95 | W64: 391.60 | X64: 55.57 | Y64: 8.04 | Z64: 7.89 | AA64: 0.279 | AB64: 30.00 | AC64: 0.790 | AD64: 56.20 | AE64: 8.00 | AF64: 1.14 | AG64: 0.400 | AH64: 0.4904 | AI64: 25.90 | AJ64: 0.144 | AK64: 0.067 | AL64: 96.50 | AM64: 20.57 | AN64: 4.38 | AO64: 0.290 | AP64: 26.50 | AQ64: 0.246 | AR64: 0.812 | AS64: 6.00 | AT64: 2.60 | AU64: 410.09
A65: TUPOLEV | C65: Tu-134 | D65: 369.21 | E65: 0.289 | F65: 8200 | G65: 47000 | H65: 43000 | I65: 66.7 | J65: 84 | K65: 14.5 | L65: 0.17 | M65: 2 | N65: 37250 | O65: 29050 | P65: 0.618 | Q65: 0.174 | R65: 0.915 | S65: 33.20 | T65: 2.90 | U65: 2.90 | V65: 11.45 | W65: 127.30 | X65: 29.00 | Y65: 5.13 | Z65: 6.61 | AA65: 0.255 | AB65: 35.00 | AC65: 0.605 | AD65: 21.25 | AE65: 5.25 | AF65: 1.30 | AG65: 0.560 | AH65: 0.6181 | AI65: 13.20 | AJ65: 0.167 | AK65: 0.076 | AL65: 30.68 | AM65: 11.80 | AN65: 4.54 | AO65: 0.396 | AP65: 14.90 | AQ65: 0.241 | AR65: 0.700 | AS65: 5.75 | AT65: 1.55 | AU65: 352.32
A66: TUPOLEV | C66: Tu-154M | D66: 496.40 | E66: 0.318 | F66: 18000 | G66: 100000 | H66: 80000 | I66: 104.0 | J66: 180 | K66: 43.00 | L66: 0.24 | M66: 3 | N66: 74000 | O66: 55300 | P66: 0.553 | Q66: 0.180 | R66: 0.800 | S66: 43.50 | T66: 3.80 | U66: 3.80 | V66: 11.45 | W66: 201.45 | X66: 37.55 | Y66: 6.25 | Z66: 7.00 | AA66: 0.267 | AB66: 35.00 | AC66: 0.750 | AD66: 31.70 | AE66: 5.60 | AF66: 0.99 | AG66: 0.650 | AH66: 0.5530 | AI66: 14.40 | AJ66: 0.157 | AK66: 0.060 | AL66: 42.20 | AM66: 13.40 | AN66: 4.25 | AO66: 0.480 | AP66: 18.30 | AQ66: 0.209 | AR66: 0.613 | AS66: 7.10 | AT66: 2.20 | AU66: 320.51
A67: TUPOLEV | B67: Tu-204 | C67: -200 | D67: 607.18 | E67: 0.289 | F67: 25200 | G67: 110750 | H67: 89500 | I67: 157.0 | J67: 214 | K67: 26.40 | L67: 0.12 | M67: 2 | N67: 84200 | O67: 59000 | P67: 0.533 | Q67: 0.228 | R67: 0.808 | S67: 46.70 | T67: 3.80 | U67: 4.10 | V67: 11.39 | W67: 182.40 | X67: 40.30 | Y67: 5.40 | Z67: 8.90 | AA67: 0.228 | AB67: 28.00 | AC67: 0.770 | AD67: 34.20 | AE67: 7.70 | AF67: 1.73 | AG67: 0.340 | AH67: 0.5327 | AI67: 21.80 | AJ67: 0.188 | AK67: 0.101 | AL67: 44.60 | AM67: 15.10 | AN67: 5.11 | AO67: 0.300 | AP67: 21.30 | AQ67: 0.245 | AR67: 0.964 | AS67: 6.00 | AT67: 2.60 | AU67: 352.71
A68: TUPOLEV | C68: Tu-334 | D68: 558.72 | E68: 0.322 | F68: 11000 | G68: 46500 | H68: 43404 | I68: 73.6 | J68: 102 | L68: 0.00 | M68: 2 | N68: 41050 | O68: 30050 | P68: 0.646 | Q68: 0.237 | R68: 0.933 | S68: 25.90 | T68: 4.05 | U68: 4.05 | V68: 6.40 | W68: 83.23 | X68: 28.00 | Y68: 3.53 | Z68: 9.42 | AA68: 0.228 | AB68: 24.00 | AC68: 0.670 | AD68: 23.50 | AE68: 4.65 | AF68: 0.92 | AG68: 0.830 | AH68: =O68/G68 -> 0.6462 | AI68: 10.20 | AJ68: 0.282 | AK68: 0.103 | AL68: 22.30 | AM68: 10.70 | AN68: 5.13 | AO68: 0.360 | AP68: 12.80 | AQ68: 0.268 | AR68: 0.972 | AS68: 5.00 | AT68: 1.90 | AU68: 316.11
A69: BAe | C69: RJ70 | D69: 528.11 | E69: 0.2724 | F69: 9072 | G69: 40823 | H69: 37875 | I69: 27.3 | J69: 94 | K69: 13.70 | L69: 0.15 | M69: 4 | N69: 32432 | O69: 23360 | P69: 0.572 | Q69: 0.222 | R69: 0.928 | S69: 24.00 | T69: 3.56 | U69: 3.56 | V69: 6.74 | W69: 77.30 | X69: 26.21 | Y69: 3.17 | Z69: 8.89 | AA69: 0.356 | AB69: 15.00 | AC69: 0.780 | AD69: 15.51 | AE69: 4.85 | AF69: 1.52 | AG69: 0.670 | AH69: 0.5722 | AI69: 12.85 | AJ69: 0.201 | AK69: 0.098 | AL69: 15.61 | AM69: 11.09 | AN69: 7.88 | AO69: 0.410 | AP69: 10.85 | AQ69: 0.202 | AR69: 0.691 | AS69: 2.60 | AT69: 1.40 | AU69: 374.25
A70: BAe | C70: RJ85 | D70: 545.72 | E70: 0.3010 | F70: 11749 | G70: 42184 | H70: 38555 | I70: 31.1 | J70: 112 | K70: 18.30 | L70: 0.16 | M70: 4 | N70: 35834 | O70: 24086 | P70: 0.571 | Q70: 0.279 | R70: 0.914 | S70: 26.50 | T70: 3.56 | U70: 3.56 | V70: 7.44 | W70: 77.30 | X70: 26.21 | Y70: 3.17 | Z70: 8.89 | AA70: 0.356 | AB70: 15.00 | AC70: 0.780 | AD70: 15.51 | AE70: 4.85 | AF70: 1.52 | AG70: 0.670 | AH70: 0.5710 | AI70: 14.35 | AJ70: 0.201 | AK70: 0.110 | AL70: 15.61 | AM70: 11.09 | AN70: 7.88 | AO70: 0.410 | AP70: 12.35 | AQ70: 0.202 | AR70: 0.787 | AS70: 2.60 | AT70: 1.40 | AU70: 338.66
A71: BAe | C71: RJ100 | D71: 572.12 | E71: 0.2871 | F71: 12429 | G71: 44225 | H71: 40143 | I71: 31.1 | J71: 112 | K71: 22.99 | L71: 0.21 | M71: 4 | N71: 37421 | O71: 24993 | P71: 0.565 | Q71: 0.281 | R71: 0.908 | S71: 28.90 | T71: 3.56 | U71: 3.56 | V71: 8.12 | W71: 77.30 | X71: 26.21 | Y71: 3.17 | Z71: 8.89 | AA71: 0.356 | AB71: 15.00 | AC71: 0.780 | AD71: 15.51 | AE71: 4.85 | AF71: 1.52 | AG71: 0.670 | AH71: 0.5651 | AI71: 15.30 | AJ71: 0.201 | AK71: 0.117 | AL71: 15.61 | AM71: 11.09 | AN71: 7.88 | AO71: 0.410 | AP71: 13.45 | AQ71: 0.202 | AR71: 0.857 | AS71: 2.60 | AT71: 1.40 | AU71: 355.05
A72: BAe | C72: RJ115 | D72: 595.60 | E72: 0.2758 | F72: 11265 | G72: 46040 | H72: 40143 | I72: 31.1 | J72: 128 | K72: 22.99 | L72: 0.18 | M72: 4 | N72: 37421 | O72: 26160 | P72: 0.568 | Q72: 0.245 | R72: 0.872 | S72: 28.90 | T72: 3.56 | U72: 3.56 | V72: 8.12 | W72: 77.30 | X72: 26.21 | Y72: 3.17 | Z72: 8.89 | AA72: 0.356 | AB72: 15.00 | AC72: 0.780 | AD72: 15.51 | AE72: 4.85 | AF72: 1.52 | AG72: 0.670 | AH72: 0.5682 | AI72: 15.30 | AJ72: 0.201 | AK72: 0.117 | AL72: 15.61 | AM72: 11.09 | AN72: 7.88 | AO72: 0.410 | AP72: 13.45 | AQ72: 0.202 | AR72: 0.857 | AS72: 2.60 | AT72: 1.40 | AU72: 369.62
A73: CADAIR | B73: Reg. Jet | C73: 100 | D73: 394.63 | E73: 0.3884 | F73: 5488 | G73: 21523 | H73: 20275 | I73: 41.0 | J73: 52 | K73: 14.04 | L73: 0.27 | M73: 2 | N73: 19141 | O73: 13653 | P73: 0.634 | Q73: 0.255 | R73: 0.942 | S73: 24.38 | T73: 2.69 | U73: 2.69 | V73: 9.06 | W73: 54.54 | X73: 20.52 | Y73: 3.15 | Z73: 7.72 | AA73: 0.288 | AB73: 24.75 | AC73: 0.660 | AD73: 9.18 | AE73: 2.60 | AF73: 0.74 | AG73: 0.730 | AH73: 0.6343 | AI73: 10.70 | AJ73: 0.168 | AK73: 0.088 | AL73: 9.44 | AM73: 6.35 | AN73: 4.27 | AO73: 0.550 | AP73: 12.90 | AQ73: 0.173 | AR73: 0.709 | AS73: 3.80 | AT73: 1.50 | AU73: 262.48
A74: CADAIR | B74: Reg. Jet | C74: 100ER | D74: 424.15 | E74: 0.3613 | F74: 6295 | G74: 23133 | H74: 21319 | I74: 41.0 | J74: 52 | K74: 14.04 | L74: 0.27 | M74: 2 | N74: 19958 | O74: 13663 | P74: 0.591 | Q74: 0.272 | R74: 0.922 | S74: 24.38 | T74: 2.69 | U74: 2.69 | V74: 9.06 | W74: 54.54 | X74: 20.52 | Y74: 3.15 | Z74: 7.72 | AA74: 0.288 | AB74: 24.75 | AC74: 0.660 | AD74: 9.18 | AE74: 2.60 | AF74: 0.74 | AG74: 0.730 | AH74: 0.5906 | AI74: 10.70 | AJ74: 0.168 | AK74: 0.088 | AL74: 9.44 | AM74: 6.35 | AN74: 4.27 | AO74: 0.550 | AP74: 12.90 | AQ74: 0.173 | AR74: 0.709 | AS74: 3.80 | AT74: 1.50 | AU74: 282.11
A75: EMBRAER | C75: EMB-145 | D75: 375.15 | E75: 0.3326 | F75: 5515 | G75: 19200 | H75: 18700 | I75: 31.3 | J75: 50 | K75: 13.61 | L75: 0.27 | M75: 2 | N75: 17100 | O75: 11585 | P75: 0.603 | Q75: 0.287 | R75: 0.974 | S75: 27.93 | T75: 2.28 | U75: 2.28 | V75: 12.25 | W75: 51.18 | X75: 20.04 | Y75: 3.13 | Z75: 7.85 | AA75: 0.231 | AB75: 22.73 | AC75: 0.720 | AD75: 7.20 | AE75: 3.10 | AF75: 1.33 | AG75: 0.600 | AH75: 0.6034 | AI75: 11.50 | AJ75: 0.141 | AK75: 0.081 | AL75: 11.20 | AM75: 7.60 | AN75: 5.16 | AO75: 0.560 | AP75: 12.90 | AQ75: 0.219 | AR75: 0.902 | AS75: 4.00 | AT75: 1.50 | AU75: 306.51
A76: FOKKER | C76: F70 | D76: 392.94 | E76: 0.3418 | F76: 9302 | G76: 36740 | H76: 34020 | I76: 61.6 | J76: 79 | K76: 12.78 | L76: 0.16 | M76: 2 | N76: 31975 | O76: 22673 | P76: 0.617 | Q76: 0.253 | R76: 0.926 | S76: 27.88 | T76: 3.30 | U76: 3.30 | V76: 8.45 | W76: 93.50 | X76: 28.08 | Y76: 3.80 | Z76: 8.43 | AA76: 0.235 | AB76: 17.45 | AC76: 0.580 | AD76: 12.30 | AE76: 3.30 | AF76: 0.89 | AG76: 0.740 | AH76: 0.6171 | AI76: 11.40 | AJ76: 0.132 | AK76: 0.053 | AL76: 21.72 | AM76: 10.04 | AN76: 4.64 | AO76: 0.390 | AP76: 14.40 | AQ76: 0.232 | AR76: 0.880 | AS76: 5.10 | AT76: 1.70 | AU76: 298.21
A77: FOKKER | C77: F100 | D77: 460.86 | E77: 0.2915 | F77: 11108 | G77: 43090 | H77: 38780 | I77: 61.6 | J77: 119 | K77: 16.72 | L77: 0.14 | M77: 2 | N77: 35830 | O77: 24593 | P77: 0.571 | Q77: 0.258 | R77: 0.900 | S77: 32.50 | T77: 3.30 | U77: 3.30 | V77: 9.85 | W77: 93.50 | X77: 28.08 | Y77: 3.80 | Z77: 8.43 | AA77: 0.235 | AB77: 17.45 | AC77: 0.580 | AD77: 12.30 | AE77: 3.30 | AF77: 0.89 | AG77: 0.740 | AH77: 0.5707 | AI77: 13.60 | AJ77: 0.132 | AK77: 0.064 | AL77: 21.72 | AM77: 10.04 | AN77: 4.64 | AO77: 0.390 | AP77: 16.00 | AQ77: 0.232 | AR77: 0.978 | AS77: 5.10 | AT77: 1.70 | AU77: 349.76
A86: Manufacturer | B86: Type | C86: Model | D86: T/W [kN/kg] | E86: W/S [N/m²] | F86: design range [nm] | G86: max Payload [kg] | H86: Number of engines | I86: cruise speed [kt] | J86: m_OE / m_MTO
A87: AIRBUS | B87: A300- | C87: 600R | D87: 0.31 | E87: 655.77 | F87: 4000.00 | G87: 41100.00 | H87: 2.00 | I87: 480.00 | J87: 0.52
A88: AIRBUS | B88: A310- | C88: 300 | D88: 0.31 | E88: 684.93 | F88: 4300.00 | G88: 33300.00 | H88: 2.00 | I88: 484.00 | J88: 0.53
A89: AIRBUS | B89: A319- | C89: 100 | D89: 0.32 | E89: 522.88 | F89: 1900.00 | G89: 17390.00 | H89: 2.00 | I89: 487.00 | J89: 0.61
A90: AIRBUS | B90: A320- | C90: 200 | D90: 0.31 | E90: 600.49 | F90: 2700.00 | G90: 19190.00 | H90: 2.00 | I90: 487.00 | J90: 0.56
A91: AIRBUS | B91: A321- | C91: 200 | D91: 0.33 | E91: 727.12 | F91: 2700.00 | G91: 22780.00 | H91: 2.00 | I91: 487.00 | J91: 0.54
A92: AIRBUS | B92: A330- | C92: 200 | D92: 0.27 | E92: 633.43 | F92: 6370.00 | G92: 36400.00 | H92: 2.00 | I92: 487.00 | J92: 0.52
A93: AIRBUS | B93: A330- | C93: 300 | D93: 0.28 | E93: 597.63 | F93: 4500.00 | G93: 48400.00 | H93: 2.00 | I93: 500.00 | J93: 0.54
A94: AIRBUS | B94: A340- | C94: 200 | D94: 0.22 | E94: 707.79 | F94: 7350.00 | G94: 49400.00 | H94: 4.00 | I94: 500.00 | J94: 0.47
A95: AIRBUS | B95: A340- | C95: 300 | D95: 0.23 | E95: 746.35 | F95: 7150.00 | G95: 48150.00 | H95: 4.00 | I95: 500.00 | J95: 0.48
A96: AIRBUS | B96: A340- | C96: 500 | D96: 0.26 | E96: 834.67 | F96: 8500.00 | G96: 51635.00 | H96: 4.00 | I96: 500.00 | J96: 0.47
A97: AIRBUS | B97: A340- | C97: 600 | D97: 0.28 | E97: 834.67 | F97: 7500.00 | G97: 63000.00 | H97: 4.00 | I97: 500.00 | J97: 0.48
A98: AIRBUS | B98: A3XX- | C98: 100 | D98: 0.22 | E98: 660.95 | F98: 7650.00 | G98: 85000.00 | H98: 4.00 | I98: 507.00 | J98: 0.50
A99: BOEING | B99: 717- | C99: 200 | D99: 0.39 | E99: 556.20 | F99: 1375.00 | G99: 12220.00 | H99: 2.00 | I99: 521.00 | J99: 0.61
A100: BOEING | B100: 727- | C100: 200Adv | D100: 0.23 | E100: 601.82 | F100: 2400.00 | G100: 18597.00 | H100: 3.00 | I100: 530.00 | J100: 0.49
A101: BOEING | B101: 737- | C101: 200 | D101: 0.28 | E101: 575.46 | F101: 1900.00 | G101: 15445.00 | H101: 2.00 | I101: 488.00 | J101: 0.53
A102: BOEING | B102: 737- | C102: 300 | D102: 0.32 | E102: 620.28 | F102: 2850.00 | G102: 16030.00 | H102: 2.00 | I102: 491.00 | J102: 0.56
A103: BOEING | B103: 737- | C103: 400 | D103: 0.32 | E103: 690.03 | F103: 2700.00 | G103: 17740.00 | H103: 2.00 | I103: 492.00 | J103: 0.53
A104: BOEING | B104: 737- | C104: 500 | D104: 0.32 | E104: 575.46 | F104: 1700.00 | G104: 15530.00 | H104: 2.00 | I104: 492.00 | J104: 0.59
A105: BOEING | B105: 737- | C105: 600 | D105: 0.26 | E105: 522.39 | F105: 3191.00 | G105: 9800.00 | H105: 2.00 | I105: 492.00 | J105: 0.56
A106: BOEING | B106: 737- | C106: 700 | D106: 0.26 | E106: 556.98 | F106: 3197.00 | G106: 11610.00 | H106: 2.00 | I106: 492.00 | J106: 0.54
A107: BOEING | B107: 737- | C107: 800 | D107: 0.28 | E107: 627.77 | F107: 2897.00 | G107: 14690.00 | H107: 2.00 | I107: 492.00 | J107: 0.53
A108: BOEING | B108: 747- | C108: 100 | D108: 0.25 | E108: 665.74 | F108: 5000.00 | G108: 69625.00 | H108: 4.00 | I108: 507.00 | J108: 0.50
A109: BOEING | B109: 747- | C109: 200 | D109: 0.25 | E109: 739.41 | F109: 6500.00 | G109: 62820.00 | H109: 4.00 | I109: 507.00 | J109: 0.47
A110: BOEING | B110: 747- | C110: 400 | D110: 0.26 | E110: 755.87 | F110: 7100.00 | G110: 61186.00 | H110: 4.00 | I110: 507.00 | J110: 0.46
A111: BOEING | B111: 757- | C111: 200 | D111: 0.34 | E111: 625.64 | F111: 4000.00 | G111: 25690.00 | H111: 2.00 | I111: 513.00 | J111: 0.50
A112: BOEING | B112: 767- | C112: 200 | D112: 0.32 | E112: 480.33 | F112: 3220.00 | G112: 34065.00 | H112: 2.00 | I112: 488.00 | J112: 0.59
A113: BOEING | B113: 767- | C113: 200ER | D113: 0.30 | E113: 619.63 | F113: 6805.00 | G113: 35652.00 | H113: 2.00 | I113: 488.00 | J113: 0.48
A114: BOEING | B114: 767- | C114: 300 | D114: 0.29 | E114: 552.38 | F114: 4020.00 | G114: 39140.00 | H114: 2.00 | I114: 489.00 | J114: 0.56
A115: BOEING | B115: 767- | C115: 300ER | D115: 0.31 | E115: 640.44 | F115: 5760.00 | G115: 45541.00 | H115: 2.00 | I115: 486.00 | J115: 0.50
A116: BOEING | B116: 777- | C116: 200 | D116: 0.29 | E116: 567.25 | F116: 4820.00 | G116: 54635.00 | H116: 2.00 | I116: 476.00 | J116: 0.56
A117: BOEING | B117: 777- | C117: 200IGW | D117: 0.27 | E117: 670.63 | F117: 7380.00 | G117: 56925.00 | H117: 2.00 | I117: 476.00 | J117: 0.48
A118: BOEING | B118: 777- | C118: 300 | D118: 0.29 | E118: 699.79 | F118: 5604.00 | G118: 68570.00 | H118: 2.00 | I118: 476.00 | J118: 0.52
A119: DOUG. | C119: DC8-63 | D119: 0.21 | E119: 583.89 | F119: 3907.00 | G119: 30719.00 | H119: 4.00 | I119: 479.00 | J119: 0.44
A120: DOUG. | C120: DC 9-10 | D120: 0.32 | E120: 406.19 | F120: 1311.00 | G120: 9570.00 | H120: 2.00 | I120: 501.00 | J120: 0.58
A121: DOUG. | C121: DC 9-30 | D121: 0.26 | E121: 527.05 | F121: 1725.00 | G121: 14000.00 | H121: 2.00 | I121: 503.00 | J121: 0.52
A122: DOUG. | C122: DC 9-40 | D122: 0.27 | E122: 556.20 | F122: 1685.00 | G122: 15510.00 | H122: 2.00 | I122: 501.00 | J122: 0.54
A123: DOUG. | C123: DC 9-50 | D123: 0.26 | E123: 585.35 | F123: 1500.00 | G123: 15265.00 | H123: 2.00 | I123: 501.00 | J123: 0.54
A124: McDON. | B124: /DOUG. | C124: MD-81 | D124: 0.27 | E124: 565.45 | F124: 1564.00 | G124: 17953.00 | H124: 2.00 | I124: 499.00 | J124: 0.56
A125: McDON. | B125: /DOUG. | C125: MD-82 | D125: 0.28 | E125: 603.85 | F125: 2050.00 | G125: 18802.00 | H125: 2.00 | I125: 499.00 | J125: 0.53
A126: McDON. | B126: /DOUG. | C126: MD-83 | D126: 0.27 | E126: 646.30 | F126: 2502.00 | G126: 18721.00 | H126: 2.00 | I126: 499.00 | J126: 0.50
A127: McDON. | B127: /DOUG. | C127: MD-87 | D127: 0.30 | E127: 565.45 | F127: 2372.00 | G127: 17619.00 | H127: 2.00 | I127: 499.00 | J127: 0.52
A128: DOUG. | C128: DC10-10 | D128: 0.29 | E128: 519.05 | F128: 4000.00 | G128: 48330.00 | H128: 3.00 | I128: 475.00 | J128: 0.58
A129: DOUG. | C129: DC10-30 | D129: 0.27 | E129: 716.99 | F129: 5373.00 | G129: 48330.00 | H129: 3.00 | I129: 530.00 | J129: 0.46
A130: LOCKHD | C130: L1011-100 | D130: 0.27 | E130: 657.46 | F130: 3455.00 | G130: 33355.00 | H130: 3.00 | I130: 512.00 | J130: 0.53
A131: ILYUSHIN | C131: Il-96-300 | D131: 0.30 | E131: 551.58 | F131: 4860.00 | G131: 40000.00 | H131: 4.00 | I131: 486.00 | J131: 0.54
A132: ILYUSHIN | C132: Il-96M | D132: 0.25 | E132: 689.48 | F132: 6195.00 | G132: 58000.00 | H132: 4.00 | I132: 469.00 | J132: 0.49
A133: TUPOLEV | C133: Tu-134 | D133: 0.29 | E133: 369.21 | F133: 1550.00 | G133: 8200.00 | H133: 2.00 | I133: 458.00 | J133: 0.62
A134: TUPOLEV | C134: Tu-154M | D134: 0.32 | E134: 496.40 | F134: 2805.00 | G134: 18000.00 | H134: 3.00 | I134: 514.00 | J134: 0.55
A135: BAe | C135: RJ70 | D135: 0.27 | E135: 528.11 | F135: 1952.00 | G135: 9072.00 | H135: 4.00 | I135: 432.00 | J135: 0.57
A136: BAe | C136: RJ85 | D136: 0.30 | E136: 545.72 | F136: 1782.00 | G136: 11749.00 | H136: 4.00 | I136: 432.00 | J136: 0.57
A137: BAe | C137: RJ100 | D137: 0.29 | E137: 572.12 | F137: 1671.00 | G137: 12429.00 | H137: 4.00 | I137: 432.00 | J137: 0.57
A138: BAe | C138: RJ115 | D138: 0.28 | E138: 595.60 | F138: 1794.00 | G138: 11265.00 | H138: 4.00 | I138: 432.00 | J138: 0.57
A139: CADAIR | B139: Reg. Jet | C139: 100 | D139: 0.39 | E139: 394.63 | F139: 980.00 | G139: 5488.00 | H139: 2.00 | I139: 459.00 | J139: 0.63
A140: CADAIR | B140: Reg. Jet | C140: 100ER | D140: 0.36 | E140: 424.15 | F140: 1620.00 | G140: 6295.00 | H140: 2.00 | I140: 459.00 | J140: 0.59
A141: EMBRAER | C141: EMB-145 | D141: 0.33 | E141: 375.15 | F141: 1390.00 | G141: 5515.00 | H141: 2.00 | I141: 410.00 | J141: 0.60
A142: FOKKER | C142: F70 | D142: 0.34 | E142: 392.94 | F142: 1080.00 | G142: 9302.00 | H142: 2.00 | I142: 461.00 | J142: 0.62
A143: FOKKER | C143: F100 | D143: 0.29 | E143: 460.86 | F143: 1290.00 | G143: 11108.00 | H143: 2.00 | I143: 456.00 | J143: 0.57

Sheet (c)
A2: Copyright © 2018
A3: Jan Lehnert
A12: This is free software: you can redistribute it and/or modify
A13: it under the terms of the GNU General Public License as published by
A14: the Free Software Foundation, License Version 3.
A16: The software is distributed in the hope that it will be useful,
A17: but WITHOUT ANY WARRANTY; without even the implied warranty of
A18: MERCHANTABILITY or FITNESS FOR A PARTICULAR PURPOSE.
A19: See the GNU General Public License for more details.
A21: http://www.gnu.org/licenses/gpl.html
A23: Dataset:
A24: https://doi.org/10.7910/DVN/IF5W4L
A25: Publication:
A26: http://nbn-resolving.org/urn:nbn:de:gbv:18302-aero2018-05-24.014
